Unique Reference No,Vendor Name,Subjective Mapping 1 (Higher Level),Subjective Mapping 2 (lower level),Subjective  Description,Net Amount,Capital/Revenue,GL Posting Date,Directorate
WC54-0001,1ST HAND CARE LTD,Third Party Payments,Private Contractor Fees,73372-DOMICILIARY CARE,360.4,Revenue,24/03/2015,Social Care & Inclusion
WC54-0002,1ST HAND CARE LTD,Third Party Payments,Private Contractor Fees,73373-RESIDENTIAL & NURSING CARE PLACEMENTS,"1,391.50",Revenue,23/03/2015,Social Care & Inclusion
WC54-0003,1ST HAND CARE LTD,Third Party Payments,Private Contractor Fees,73372-DOMICILIARY CARE,"2,551.69",Revenue,24/03/2015,Social Care & Inclusion
WC54-0004,1ST HAND CARE LTD,Third Party Payments,Private Contractor Fees,73372-DOMICILIARY CARE,"13,965.41",Revenue,10/03/2015,Social Care & Inclusion
WC54-0005,247 CARS (WILLENHALL) LIMITED,Transport,Hire,52000-WITH DRIVER-HIRE OF VEHICLES,252,Revenue,31/03/2015,Childrens
WC54-0006,247 CARS (WILLENHALL) LIMITED,Transport,Hire,52000-WITH DRIVER-HIRE OF VEHICLES,280,Revenue,31/03/2015,Childrens
WC54-0007,247 CARS (WILLENHALL) LIMITED,Transport,Hire,52000-WITH DRIVER-HIRE OF VEHICLES,288,Revenue,31/03/2015,Childrens
WC54-0008,247 CARS (WILLENHALL) LIMITED,Transport,Hire,52000-WITH DRIVER-HIRE OF VEHICLES,316,Revenue,31/03/2015,Childrens
WC54-0009,247 CARS (WILLENHALL) LIMITED,Transport,Hire,52000-WITH DRIVER-HIRE OF VEHICLES,324,Revenue,31/03/2015,Childrens
WC54-0010,247 CARS (WILLENHALL) LIMITED,Transport,Hire,52000-WITH DRIVER-HIRE OF VEHICLES,420,Revenue,31/03/2015,Childrens
WC54-0011,247 CARS (WILLENHALL) LIMITED,Transport,Hire,52000-WITH DRIVER-HIRE OF VEHICLES,420,Revenue,31/03/2015,Childrens
WC54-0012,247 CARS (WILLENHALL) LIMITED,Transport,Hire,52000-WITH DRIVER-HIRE OF VEHICLES,442,Revenue,31/03/2015,Childrens
WC54-0013,247 CARS (WILLENHALL) LIMITED,Transport,Hire,52000-WITH DRIVER-HIRE OF VEHICLES,444,Revenue,31/03/2015,Childrens
WC54-0014,247 CARS (WILLENHALL) LIMITED,Transport,Hire,52000-WITH DRIVER-HIRE OF VEHICLES,444,Revenue,31/03/2015,Childrens
WC54-0015,247 CARS (WILLENHALL) LIMITED,Transport,Hire,52000-WITH DRIVER-HIRE OF VEHICLES,500,Revenue,31/03/2015,Childrens
WC54-0016,247 CARS (WILLENHALL) LIMITED,Transport,Hire,52000-WITH DRIVER-HIRE OF VEHICLES,744,Revenue,31/03/2015,Childrens
WC54-0017,247 CARS (WILLENHALL) LIMITED,Transport,Hire,52000-WITH DRIVER-HIRE OF VEHICLES,750,Revenue,31/03/2015,Childrens
WC54-0018,247 CARS (WILLENHALL) LIMITED,Transport,Hire,52000-WITH DRIVER-HIRE OF VEHICLES,954,Revenue,31/03/2015,Childrens
WC54-0019,247 CARS (WILLENHALL) LIMITED,Transport,Hire,52000-WITH DRIVER-HIRE OF VEHICLES,"1,105.00",Revenue,31/03/2015,Childrens
WC54-0020,2SIMPLE SOFTWARE LTD,Supplies & Services,Communications & Computing,63800-COMPUTER EQUIPMENT AND SUPPLIES,"1,500.00",Revenue,03/03/2015,Childrens
WC54-0021,2SIMPLE SOFTWARE LTD,Supplies & Services,Communications & Computing,63800-COMPUTER EQUIPMENT AND SUPPLIES,"1,500.00",Revenue,03/03/2015,Childrens
WC54-0022,2SIMPLE SOFTWARE LTD,Supplies & Services,Communications & Computing,63800-COMPUTER EQUIPMENT AND SUPPLIES,"1,500.00",Revenue,03/03/2015,Childrens
WC54-0023,5 CARE SERVICES LTD,Third Party Payments,Private Contractor Fees,73372-DOMICILIARY CARE,280,Revenue,04/03/2015,Social Care & Inclusion
WC54-0024,5 CARE SERVICES LTD,Third Party Payments,Private Contractor Fees,73372-DOMICILIARY CARE,288,Revenue,04/03/2015,Social Care & Inclusion
WC54-0025,5 CARE SERVICES LTD,Third Party Payments,Private Contractor Fees,73372-DOMICILIARY CARE,377,Revenue,04/03/2015,Social Care & Inclusion
WC54-0026,5 CARE SERVICES LTD,Third Party Payments,Private Contractor Fees,73372-DOMICILIARY CARE,392,Revenue,09/03/2015,Social Care & Inclusion
WC54-0027,5 CARE SERVICES LTD,Third Party Payments,Private Contractor Fees,73372-DOMICILIARY CARE,423,Revenue,04/03/2015,Social Care & Inclusion
WC54-0028,5 CARE SERVICES LTD,Third Party Payments,Private Contractor Fees,73372-DOMICILIARY CARE,430.5,Revenue,03/03/2015,Social Care & Inclusion
WC54-0029,5 CARE SERVICES LTD,Third Party Payments,Private Contractor Fees,73372-DOMICILIARY CARE,457,Revenue,04/03/2015,Social Care & Inclusion
WC54-0030,5 CARE SERVICES LTD,Third Party Payments,Private Contractor Fees,73372-DOMICILIARY CARE,476.5,Revenue,09/03/2015,Social Care & Inclusion
WC54-0031,5 CARE SERVICES LTD,Third Party Payments,Private Contractor Fees,73372-DOMICILIARY CARE,485.5,Revenue,04/03/2015,Social Care & Inclusion
WC54-0032,5 CARE SERVICES LTD,Third Party Payments,Private Contractor Fees,73372-DOMICILIARY CARE,507.5,Revenue,03/03/2015,Social Care & Inclusion
WC54-0033,5 CARE SERVICES LTD,Third Party Payments,Private Contractor Fees,73372-DOMICILIARY CARE,588,Revenue,04/03/2015,Social Care & Inclusion
WC54-0034,5 CARE SERVICES LTD,Third Party Payments,Private Contractor Fees,73372-DOMICILIARY CARE,603,Revenue,09/03/2015,Social Care & Inclusion
WC54-0035,5 CARE SERVICES LTD,Third Party Payments,Private Contractor Fees,73372-DOMICILIARY CARE,698,Revenue,09/03/2015,Social Care & Inclusion
WC54-0036,5 CARE SERVICES LTD,Third Party Payments,Private Contractor Fees,73372-DOMICILIARY CARE,756,Revenue,03/03/2015,Social Care & Inclusion
WC54-0037,5 CARE SERVICES LTD,Third Party Payments,Private Contractor Fees,73372-DOMICILIARY CARE,766.5,Revenue,04/03/2015,Social Care & Inclusion
WC54-0038,5 CARE SERVICES LTD,Third Party Payments,Private Contractor Fees,73372-DOMICILIARY CARE,821.5,Revenue,04/03/2015,Social Care & Inclusion
WC54-0039,5 CARE SERVICES LTD,Third Party Payments,Private Contractor Fees,73372-DOMICILIARY CARE,873.5,Revenue,04/03/2015,Social Care & Inclusion
WC54-0040,5 CARE SERVICES LTD,Third Party Payments,Private Contractor Fees,73372-DOMICILIARY CARE,889,Revenue,04/03/2015,Social Care & Inclusion
WC54-0041,5 CARE SERVICES LTD,Third Party Payments,Private Contractor Fees,73372-DOMICILIARY CARE,"1,050.00",Revenue,09/03/2015,Social Care & Inclusion
WC54-0042,5 CARE SERVICES LTD,Third Party Payments,Private Contractor Fees,73372-DOMICILIARY CARE,"1,185.63",Revenue,03/03/2015,Social Care & Inclusion
WC54-0043,5 CARE SERVICES LTD,Third Party Payments,Private Contractor Fees,73372-DOMICILIARY CARE,"1,306.00",Revenue,09/03/2015,Social Care & Inclusion
WC54-0044,5 CARE SERVICES LTD,Third Party Payments,Private Contractor Fees,73372-DOMICILIARY CARE,"30,723.61",Revenue,04/03/2015,Social Care & Inclusion
WC54-0045,7VIDEO LTD,Supplies & Services,Services,63102-CONSULTANTS FEES - CORPORATE,850,Revenue,04/03/2015,Neighbourhood Services
WC54-0046,A D T FIRE AND SECURITY PLC,Premises,Premises-Repairs & Maintenance,"40000-REPAIRS,ALTERATIONS & MAINTENANCE-PREM",496,Revenue,18/03/2015,Resources
WC54-0047,A D T FIRE AND SECURITY PLC,Third Party Payments,Private Contractor Fees,73002-SECURITY-PRIV CONTRACTOR FEES,811.76,Revenue,04/03/2015,Regeneration
WC54-0048,A D T FIRE AND SECURITY PLC,Third Party Payments,Private Contractor Fees,73002-SECURITY-PRIV CONTRACTOR FEES,828.65,Revenue,09/03/2015,Regeneration
WC54-0049,A D T FIRE AND SECURITY PLC,Supplies & Services,"Equip,Furniture & Materials",60008-MAINTENANCE-FURNITURE & EQUIPMENT,"4,050.00",Revenue,17/03/2015,Social Care & Inclusion
WC54-0050,A F BLAKEMORE & SON LTD,Supplies & Services,Provisions,61305-CATERING,253.25,Revenue,18/03/2015,Neighbourhood Services
WC54-0051,A F BLAKEMORE & SON LTD,Supplies & Services,Provisions,61016-FOOD AND BEVERAGES-PROVISIONS,275.28,Revenue,31/03/2015,Social Care & Inclusion
WC54-0052,A F BLAKEMORE & SON LTD,Supplies & Services,Provisions,61305-CATERING,276.67,Revenue,04/03/2015,Neighbourhood Services
WC54-0053,A F BLAKEMORE & SON LTD,Supplies & Services,Provisions,61016-FOOD AND BEVERAGES-PROVISIONS,283.54,Revenue,23/03/2015,Social Care & Inclusion
WC54-0054,A F BLAKEMORE & SON LTD,Supplies & Services,Provisions,61305-CATERING,322.17,Revenue,18/03/2015,Neighbourhood Services
WC54-0055,A F BLAKEMORE & SON LTD,Supplies & Services,Provisions,61016-FOOD AND BEVERAGES-PROVISIONS,323.46,Revenue,31/03/2015,Social Care & Inclusion
WC54-0056,A F BLAKEMORE & SON LTD,Supplies & Services,Provisions,61016-FOOD AND BEVERAGES-PROVISIONS,459.72,Revenue,04/03/2015,Social Care & Inclusion
WC54-0057,A F BLAKEMORE & SON LTD,Supplies & Services,Provisions,61016-FOOD AND BEVERAGES-PROVISIONS,523.06,Revenue,03/03/2015,Social Care & Inclusion
WC54-0058,A F BLAKEMORE & SON LTD,Supplies & Services,Provisions,61305-CATERING,869.43,Revenue,01/03/2015,Social Care & Inclusion
WC54-0059,A F BLAKEMORE & SON LTD,Supplies & Services,Provisions,61008-CONFECTIONERY/SNACKS-PROVISIONS,"1,322.67",Revenue,18/03/2015,Neighbourhood Services
WC54-0060,REDACTED,Third Party Payments,Private Contractor Fees,74006-HOLIDAY/CHRISTMAS ALLOWANCE-FOSTER CARERS-OTH AGENCY PROVISION,333.92,Revenue,16/03/2015,Childrens
WC54-0061,A KARIMS CHUCKERY PHARMACY,Supplies & Services,Services,63000-PROFESSIONAL FEES AND SERVICES,30,Revenue,23/03/2015,Neighbourhood Services
WC54-0062,A KARIMS CHUCKERY PHARMACY,Supplies & Services,Services,63000-PROFESSIONAL FEES AND SERVICES,"1,036.83",Revenue,23/03/2015,Neighbourhood Services
WC54-0063,REDACTED,Supplies & Services,Other Supplies & Services,62515-MISCELLANEOUS SUPPLIES,896.24,Revenue,02/03/2015,Childrens
WC54-0064,REDACTED,Supplies & Services,Other Supplies & Services,62515-MISCELLANEOUS SUPPLIES,898.12,Revenue,30/03/2015,Childrens
WC54-0065,REDACTED,Third Party Payments,Private Contractor Fees,74006-HOLIDAY/CHRISTMAS ALLOWANCE-FOSTER CARERS-OTH AGENCY PROVISION,968.32,Revenue,02/03/2015,Childrens
WC54-0066,REDACTED,Third Party Payments,Private Contractor Fees,74006-HOLIDAY/CHRISTMAS ALLOWANCE-FOSTER CARERS-OTH AGENCY PROVISION,971.44,Revenue,30/03/2015,Childrens
WC54-0067,REDACTED,Third Party Payments,Private Contractor Fees,74023-SHORT TERM BREAKS,294.08,Revenue,19/03/2015,Childrens
WC54-0068,A4E LTD#3,Transfer Payments,Transfer Payments,76423-DIRECT PAYMENTS SUPPORT,"2,072.00",Revenue,02/03/2015,Social Care & Inclusion
WC54-0069,REDACTED,Transfer Payments,Transfer Payments,76422-DIRECT PAYMENTS TO SOCIAL SERVICES CLIENTS,431.55,Revenue,18/03/2015,Childrens
WC54-0070,REDACTED,Third Party Payments,Private Contractor Fees,74006-HOLIDAY/CHRISTMAS ALLOWANCE-FOSTER CARERS-OTH AGENCY PROVISION,639.4,Revenue,16/03/2015,Childrens
WC54-0071,ABBEY COURT NURSING & RESIDEN,Third Party Payments,Private Contractor Fees,73373-RESIDENTIAL & NURSING CARE PLACEMENTS,"1,814.14",Revenue,27/03/2015,Social Care & Inclusion
WC54-0072,ABBEY HEALTHCARE HOMES LTD,Third Party Payments,Private Contractor Fees,73373-RESIDENTIAL & NURSING CARE PLACEMENTS,474.82,Revenue,27/03/2015,Social Care & Inclusion
WC54-0073,ABBEY HEALTHCARE HOMES LTD,Third Party Payments,Private Contractor Fees,73373-RESIDENTIAL & NURSING CARE PLACEMENTS,641.02,Revenue,27/03/2015,Social Care & Inclusion
WC54-0074,ABBEY HEALTHCARE HOMES LTD,Third Party Payments,Private Contractor Fees,73373-RESIDENTIAL & NURSING CARE PLACEMENTS,"1,187.06",Revenue,27/03/2015,Social Care & Inclusion
WC54-0075,ABBEY HEALTHCARE HOMES LTD,Third Party Payments,Private Contractor Fees,73373-RESIDENTIAL & NURSING CARE PLACEMENTS,"1,602.58",Revenue,27/03/2015,Social Care & Inclusion
WC54-0076,ABBEY HEALTHCARE HOMES LTD,Third Party Payments,Private Contractor Fees,73373-RESIDENTIAL & NURSING CARE PLACEMENTS,"1,661.88",Revenue,10/03/2015,Social Care & Inclusion
WC54-0077,ABBEY HEALTHCARE HOMES LTD,Third Party Payments,Private Contractor Fees,73373-RESIDENTIAL & NURSING CARE PLACEMENTS,"1,661.88",Revenue,27/03/2015,Social Care & Inclusion
WC54-0078,ABBEY HEALTHCARE HOMES LTD,Third Party Payments,Private Contractor Fees,73373-RESIDENTIAL & NURSING CARE PLACEMENTS,"2,243.60",Revenue,10/03/2015,Social Care & Inclusion
WC54-0079,ABC DAY NURSERY (WILLENHALL) LIMITED,Third Party Payments,Grants to Other Orgs,66505-OTHER-GRANTS TO OTHER ORGS,"10,634.28",Revenue,17/03/2015,Childrens
WC54-0080,ABC DAY NURSERY (WILLENHALL) LIMITED,Third Party Payments,Grants to Other Orgs,66505-OTHER-GRANTS TO OTHER ORGS,"21,613.56",Revenue,11/03/2015,Childrens
WC54-0081,ABC FOSTERING,Third Party Payments,Private Contractor Fees,74037-INDEPENDENT FOSTER CARE-OTH AGENCY PROVISION,"2,980.34",Revenue,19/03/2015,Childrens
WC54-0082,ABC FOSTERING,Third Party Payments,Private Contractor Fees,74037-INDEPENDENT FOSTER CARE-OTH AGENCY PROVISION,"3,137.20",Revenue,19/03/2015,Childrens
WC54-0083,ABEL ALARM CO LTD,Premises,Premises-Repairs & Maintenance,"40000-REPAIRS,ALTERATIONS & MAINTENANCE-PREM",346,Revenue,24/03/2015,Resources
WC54-0084,ABEL ALARM CO LTD,Premises,Premises-Repairs & Maintenance,"40000-REPAIRS,ALTERATIONS & MAINTENANCE-PREM",346,Revenue,31/03/2015,Resources
WC54-0085,REDACTED,Transfer Payments,Transfer Payments,76422-DIRECT PAYMENTS TO SOCIAL SERVICES CLIENTS,"2,947.49",Revenue,18/03/2015,Social Care & Inclusion
WC54-0086,ABLEWELL CARS,Transport,Hire,52000-WITH DRIVER-HIRE OF VEHICLES,297,Revenue,24/03/2015,Childrens
WC54-0087,ABLEWELL CARS,Transport,Hire,52000-WITH DRIVER-HIRE OF VEHICLES,300,Revenue,24/03/2015,Childrens
WC54-0088,ABLEWELL CARS,Transport,Hire,52000-WITH DRIVER-HIRE OF VEHICLES,302,Revenue,24/03/2015,Childrens
WC54-0089,ABLEWELL CARS,Transport,Hire,52000-WITH DRIVER-HIRE OF VEHICLES,330,Revenue,24/03/2015,Childrens
WC54-0090,ABLEWELL CARS,Transport,Hire,52000-WITH DRIVER-HIRE OF VEHICLES,530,Revenue,24/03/2015,Childrens
WC54-0091,ABU BAKR NURSERY,Third Party Payments,Grants to Other Orgs,66505-OTHER-GRANTS TO OTHER ORGS,"3,902.22",Revenue,17/03/2015,Childrens
WC54-0092,ABU BAKR NURSERY,Third Party Payments,Grants to Other Orgs,66505-OTHER-GRANTS TO OTHER ORGS,"18,153.04",Revenue,11/03/2015,Childrens
WC54-0093,ABV TRAINING LTD,Employees,Training,30030-EXTERNAL TRAINING,299,Revenue,23/03/2015,Neighbourhood Services
WC54-0094,AC COACHING & SPORTS DEVELOPMENT LIMITED,Supplies & Services,Other Supplies & Services,62523-EVENTS,250,Revenue,16/03/2015,Neighbourhood Services
WC54-0095,ACCESS PLATFORM SALES LTD (APS),Supplies & Services,"Equip,Furniture & Materials",60500-GENERAL MATERIALS,"10,191.00",Revenue,09/03/2015,Neighbourhood Services
WC54-0096,ACCORD HOUSING ASSOCIATION LTD#135,Third Party Payments,Private Contractor Fees,73372-DOMICILIARY CARE,-942.79,Revenue,02/03/2015,Social Care & Inclusion
WC54-0097,ACCORD HOUSING ASSOCIATION LTD#135,Third Party Payments,Private Contractor Fees,73374-SUPPORTED & OTHER ACCOMMODATION,-456,Revenue,02/03/2015,Social Care & Inclusion
WC54-0098,ACCORD HOUSING ASSOCIATION LTD#135,Third Party Payments,Private Contractor Fees,73372-DOMICILIARY CARE,270.48,Revenue,24/03/2015,Social Care & Inclusion
WC54-0099,ACCORD HOUSING ASSOCIATION LTD#135,Third Party Payments,Private Contractor Fees,73372-DOMICILIARY CARE,270.48,Revenue,24/03/2015,Social Care & Inclusion
WC54-0100,ACCORD HOUSING ASSOCIATION LTD#135,Third Party Payments,Private Contractor Fees,73372-DOMICILIARY CARE,321.76,Revenue,03/03/2015,Social Care & Inclusion
WC54-0101,ACCORD HOUSING ASSOCIATION LTD#135,Third Party Payments,Private Contractor Fees,73374-SUPPORTED & OTHER ACCOMMODATION,411.2,Revenue,03/03/2015,Social Care & Inclusion
WC54-0102,ACCORD HOUSING ASSOCIATION LTD#135,Third Party Payments,Private Contractor Fees,73374-SUPPORTED & OTHER ACCOMMODATION,411.2,Revenue,23/03/2015,Social Care & Inclusion
WC54-0103,ACCORD HOUSING ASSOCIATION LTD#135,Third Party Payments,Private Contractor Fees,73372-DOMICILIARY CARE,444.92,Revenue,24/03/2015,Social Care & Inclusion
WC54-0104,ACCORD HOUSING ASSOCIATION LTD#135,Third Party Payments,Private Contractor Fees,73372-DOMICILIARY CARE,444.92,Revenue,24/03/2015,Social Care & Inclusion
WC54-0105,ACCORD HOUSING ASSOCIATION LTD#135,Third Party Payments,Private Contractor Fees,73372-DOMICILIARY CARE,444.92,Revenue,24/03/2015,Social Care & Inclusion
WC54-0106,ACCORD HOUSING ASSOCIATION LTD#135,Third Party Payments,Private Contractor Fees,73372-DOMICILIARY CARE,450.8,Revenue,03/03/2015,Social Care & Inclusion
WC54-0107,ACCORD HOUSING ASSOCIATION LTD#135,Third Party Payments,Private Contractor Fees,73372-DOMICILIARY CARE,450.8,Revenue,23/03/2015,Social Care & Inclusion
WC54-0108,ACCORD HOUSING ASSOCIATION LTD#135,Third Party Payments,Private Contractor Fees,73372-DOMICILIARY CARE,450.8,Revenue,24/03/2015,Social Care & Inclusion
WC54-0109,ACCORD HOUSING ASSOCIATION LTD#135,Third Party Payments,Private Contractor Fees,73372-DOMICILIARY CARE,463.6,Revenue,23/03/2015,Social Care & Inclusion
WC54-0110,ACCORD HOUSING ASSOCIATION LTD#135,Third Party Payments,Private Contractor Fees,73372-DOMICILIARY CARE,492.4,Revenue,01/03/2015,Social Care & Inclusion
WC54-0111,ACCORD HOUSING ASSOCIATION LTD#135,Third Party Payments,Private Contractor Fees,73372-DOMICILIARY CARE,508.11,Revenue,03/03/2015,Social Care & Inclusion
WC54-0112,ACCORD HOUSING ASSOCIATION LTD#135,Third Party Payments,Private Contractor Fees,73372-DOMICILIARY CARE,531.32,Revenue,03/03/2015,Social Care & Inclusion
WC54-0113,ACCORD HOUSING ASSOCIATION LTD#135,Third Party Payments,Private Contractor Fees,73374-SUPPORTED & OTHER ACCOMMODATION,550.71,Revenue,03/03/2015,Social Care & Inclusion
WC54-0114,ACCORD HOUSING ASSOCIATION LTD#135,Third Party Payments,Private Contractor Fees,73374-SUPPORTED & OTHER ACCOMMODATION,569.07,Revenue,03/03/2015,Social Care & Inclusion
WC54-0115,ACCORD HOUSING ASSOCIATION LTD#135,Third Party Payments,Private Contractor Fees,73374-SUPPORTED & OTHER ACCOMMODATION,569.07,Revenue,03/03/2015,Social Care & Inclusion
WC54-0116,ACCORD HOUSING ASSOCIATION LTD#135,Third Party Payments,Private Contractor Fees,73374-SUPPORTED & OTHER ACCOMMODATION,569.07,Revenue,24/03/2015,Social Care & Inclusion
WC54-0117,ACCORD HOUSING ASSOCIATION LTD#135,Third Party Payments,Private Contractor Fees,73372-DOMICILIARY CARE,595.44,Revenue,03/03/2015,Social Care & Inclusion
WC54-0118,ACCORD HOUSING ASSOCIATION LTD#135,Third Party Payments,Private Contractor Fees,73372-DOMICILIARY CARE,697.64,Revenue,03/03/2015,Social Care & Inclusion
WC54-0119,ACCORD HOUSING ASSOCIATION LTD#135,Third Party Payments,Private Contractor Fees,73372-DOMICILIARY CARE,721.28,Revenue,23/03/2015,Social Care & Inclusion
WC54-0120,ACCORD HOUSING ASSOCIATION LTD#135,Third Party Payments,Private Contractor Fees,73372-DOMICILIARY CARE,750.24,Revenue,23/03/2015,Social Care & Inclusion
WC54-0121,ACCORD HOUSING ASSOCIATION LTD#135,Third Party Payments,Private Contractor Fees,73372-DOMICILIARY CARE,772.56,Revenue,10/03/2015,Social Care & Inclusion
WC54-0122,ACCORD HOUSING ASSOCIATION LTD#135,Third Party Payments,Private Contractor Fees,73372-DOMICILIARY CARE,775.76,Revenue,24/03/2015,Social Care & Inclusion
WC54-0123,ACCORD HOUSING ASSOCIATION LTD#135,Third Party Payments,Private Contractor Fees,73372-DOMICILIARY CARE,850.08,Revenue,03/03/2015,Social Care & Inclusion
WC54-0124,ACCORD HOUSING ASSOCIATION LTD#135,Third Party Payments,Private Contractor Fees,73372-DOMICILIARY CARE,850.08,Revenue,26/03/2015,Social Care & Inclusion
WC54-0125,ACCORD HOUSING ASSOCIATION LTD#135,Third Party Payments,Private Contractor Fees,73372-DOMICILIARY CARE,862.96,Revenue,23/03/2015,Social Care & Inclusion
WC54-0126,ACCORD HOUSING ASSOCIATION LTD#135,Third Party Payments,Private Contractor Fees,73374-SUPPORTED & OTHER ACCOMMODATION,883.28,Revenue,02/03/2015,Social Care & Inclusion
WC54-0127,ACCORD HOUSING ASSOCIATION LTD#135,Third Party Payments,Private Contractor Fees,73372-DOMICILIARY CARE,"1,055.92",Revenue,02/03/2015,Social Care & Inclusion
WC54-0128,ACCORD HOUSING ASSOCIATION LTD#135,Third Party Payments,Private Contractor Fees,73372-DOMICILIARY CARE,"1,107.44",Revenue,12/03/2015,Social Care & Inclusion
WC54-0129,ACCORD HOUSING ASSOCIATION LTD#135,Third Party Payments,Private Contractor Fees,73372-DOMICILIARY CARE,"1,107.44",Revenue,12/03/2015,Social Care & Inclusion
WC54-0130,ACCORD HOUSING ASSOCIATION LTD#135,Third Party Payments,Private Contractor Fees,73372-DOMICILIARY CARE,"1,107.44",Revenue,12/03/2015,Social Care & Inclusion
WC54-0131,ACCORD HOUSING ASSOCIATION LTD#135,Third Party Payments,Private Contractor Fees,73372-DOMICILIARY CARE,"1,107.44",Revenue,12/03/2015,Social Care & Inclusion
WC54-0132,ACCORD HOUSING ASSOCIATION LTD#135,Third Party Payments,Private Contractor Fees,73372-DOMICILIARY CARE,"1,107.44",Revenue,12/03/2015,Social Care & Inclusion
WC54-0133,ACCORD HOUSING ASSOCIATION LTD#135,Third Party Payments,Private Contractor Fees,73372-DOMICILIARY CARE,"1,107.44",Revenue,12/03/2015,Social Care & Inclusion
WC54-0134,ACCORD HOUSING ASSOCIATION LTD#135,Third Party Payments,Private Contractor Fees,73372-DOMICILIARY CARE,"1,107.44",Revenue,26/03/2015,Social Care & Inclusion
WC54-0135,ACCORD HOUSING ASSOCIATION LTD#135,Third Party Payments,Private Contractor Fees,73372-DOMICILIARY CARE,"1,133.20",Revenue,03/03/2015,Social Care & Inclusion
WC54-0136,ACCORD HOUSING ASSOCIATION LTD#135,Third Party Payments,Private Contractor Fees,73372-DOMICILIARY CARE,"1,133.20",Revenue,03/03/2015,Social Care & Inclusion
WC54-0137,ACCORD HOUSING ASSOCIATION LTD#135,Third Party Payments,Private Contractor Fees,73372-DOMICILIARY CARE,"1,133.20",Revenue,23/03/2015,Social Care & Inclusion
WC54-0138,ACCORD HOUSING ASSOCIATION LTD#135,Third Party Payments,Private Contractor Fees,73372-DOMICILIARY CARE,"1,133.20",Revenue,24/03/2015,Social Care & Inclusion
WC54-0139,ACCORD HOUSING ASSOCIATION LTD#135,Third Party Payments,Private Contractor Fees,73372-DOMICILIARY CARE,"1,144.04",Revenue,03/03/2015,Social Care & Inclusion
WC54-0140,ACCORD HOUSING ASSOCIATION LTD#135,Third Party Payments,Private Contractor Fees,73372-DOMICILIARY CARE,"1,184.72",Revenue,09/03/2015,Social Care & Inclusion
WC54-0141,ACCORD HOUSING ASSOCIATION LTD#135,Third Party Payments,Private Contractor Fees,73372-DOMICILIARY CARE,"1,184.72",Revenue,10/03/2015,Social Care & Inclusion
WC54-0142,ACCORD HOUSING ASSOCIATION LTD#135,Third Party Payments,Private Contractor Fees,73372-DOMICILIARY CARE,"1,184.72",Revenue,10/03/2015,Social Care & Inclusion
WC54-0143,ACCORD HOUSING ASSOCIATION LTD#135,Third Party Payments,Private Contractor Fees,73372-DOMICILIARY CARE,"1,184.72",Revenue,10/03/2015,Social Care & Inclusion
WC54-0144,ACCORD HOUSING ASSOCIATION LTD#135,Third Party Payments,Private Contractor Fees,73372-DOMICILIARY CARE,"1,184.72",Revenue,23/03/2015,Social Care & Inclusion
WC54-0145,ACCORD HOUSING ASSOCIATION LTD#135,Third Party Payments,Private Contractor Fees,73372-DOMICILIARY CARE,"1,184.72",Revenue,24/03/2015,Social Care & Inclusion
WC54-0146,ACCORD HOUSING ASSOCIATION LTD#135,Third Party Payments,Private Contractor Fees,73372-DOMICILIARY CARE,"1,184.72",Revenue,26/03/2015,Social Care & Inclusion
WC54-0147,ACCORD HOUSING ASSOCIATION LTD#135,Third Party Payments,Private Contractor Fees,73372-DOMICILIARY CARE,"1,197.80",Revenue,03/03/2015,Social Care & Inclusion
WC54-0148,ACCORD HOUSING ASSOCIATION LTD#135,Third Party Payments,Private Contractor Fees,73372-DOMICILIARY CARE,"1,416.56",Revenue,05/03/2015,Social Care & Inclusion
WC54-0149,ACCORD HOUSING ASSOCIATION LTD#135,Third Party Payments,Private Contractor Fees,73372-DOMICILIARY CARE,"1,416.56",Revenue,05/03/2015,Social Care & Inclusion
WC54-0150,ACCORD HOUSING ASSOCIATION LTD#135,Third Party Payments,Private Contractor Fees,73372-DOMICILIARY CARE,"1,416.56",Revenue,05/03/2015,Social Care & Inclusion
WC54-0151,ACCORD HOUSING ASSOCIATION LTD#135,Third Party Payments,Private Contractor Fees,73372-DOMICILIARY CARE,"1,416.56",Revenue,05/03/2015,Social Care & Inclusion
WC54-0152,ACCORD HOUSING ASSOCIATION LTD#135,Third Party Payments,Private Contractor Fees,73372-DOMICILIARY CARE,"1,416.56",Revenue,23/03/2015,Social Care & Inclusion
WC54-0153,ACCORD HOUSING ASSOCIATION LTD#135,Third Party Payments,Private Contractor Fees,73372-DOMICILIARY CARE,"1,416.56",Revenue,24/03/2015,Social Care & Inclusion
WC54-0154,ACCORD HOUSING ASSOCIATION LTD#135,Third Party Payments,Private Contractor Fees,73372-DOMICILIARY CARE,"1,416.56",Revenue,24/03/2015,Social Care & Inclusion
WC54-0155,ACCORD HOUSING ASSOCIATION LTD#135,Third Party Payments,Private Contractor Fees,73372-DOMICILIARY CARE,"1,538.68",Revenue,03/03/2015,Social Care & Inclusion
WC54-0156,ACCORD HOUSING ASSOCIATION LTD#135,Third Party Payments,Private Contractor Fees,73372-DOMICILIARY CARE,"1,663.64",Revenue,03/03/2015,Social Care & Inclusion
WC54-0157,ACCORD HOUSING ASSOCIATION LTD#135,Third Party Payments,Private Contractor Fees,73372-DOMICILIARY CARE,"1,725.68",Revenue,24/03/2015,Social Care & Inclusion
WC54-0158,ACCORD HOUSING ASSOCIATION LTD#135,Third Party Payments,Private Contractor Fees,73372-DOMICILIARY CARE,"2,189.60",Revenue,24/03/2015,Social Care & Inclusion
WC54-0159,ACCORD HOUSING ASSOCIATION LTD#135,Third Party Payments,Private Contractor Fees,73372-DOMICILIARY CARE,"2,214.88",Revenue,12/03/2015,Social Care & Inclusion
WC54-0160,ACCORD HOUSING ASSOCIATION LTD#135,Third Party Payments,Private Contractor Fees,73372-DOMICILIARY CARE,"2,369.44",Revenue,09/03/2015,Social Care & Inclusion
WC54-0161,ACCORD HOUSING ASSOCIATION LTD#135,Third Party Payments,Private Contractor Fees,73372-DOMICILIARY CARE,"2,408.32",Revenue,03/03/2015,Social Care & Inclusion
WC54-0162,ACCORD HOUSING ASSOCIATION LTD#135,Third Party Payments,Private Contractor Fees,73372-DOMICILIARY CARE,"2,833.12",Revenue,05/03/2015,Social Care & Inclusion
WC54-0163,ACCORD HOUSING ASSOCIATION LTD#135,Third Party Payments,Private Contractor Fees,73373-RESIDENTIAL & NURSING CARE PLACEMENTS,"4,191.40",Revenue,10/03/2015,Social Care & Inclusion
WC54-0164,ACCORD HOUSING ASSOCIATION LTD#135,Third Party Payments,Private Contractor Fees,73373-RESIDENTIAL & NURSING CARE PLACEMENTS,"4,191.40",Revenue,10/03/2015,Social Care & Inclusion
WC54-0165,ACCORD HOUSING ASSOCIATION LTD#135,Third Party Payments,Private Contractor Fees,73373-RESIDENTIAL & NURSING CARE PLACEMENTS,"4,191.40",Revenue,17/03/2015,Social Care & Inclusion
WC54-0166,ACCORD HOUSING ASSOCIATION LTD#135,Third Party Payments,Private Contractor Fees,73373-RESIDENTIAL & NURSING CARE PLACEMENTS,"5,849.84",Revenue,10/03/2015,Social Care & Inclusion
WC54-0167,ACCORD HOUSING ASSOCIATION LTD#135,Third Party Payments,Private Contractor Fees,73373-RESIDENTIAL & NURSING CARE PLACEMENTS,"5,849.84",Revenue,10/03/2015,Social Care & Inclusion
WC54-0168,ACCORD HOUSING ASSOCIATION LTD#135,Third Party Payments,Private Contractor Fees,73373-RESIDENTIAL & NURSING CARE PLACEMENTS,"5,849.84",Revenue,10/03/2015,Social Care & Inclusion
WC54-0169,ACCORD HOUSING ASSOCIATION LTD#135,Third Party Payments,Private Contractor Fees,73365-BLOCK GROSS-SUPPORTING PEOPLE,"7,500.00",Revenue,18/03/2015,Social Care & Inclusion
WC54-0170,ACCORD HOUSING ASSOCIATION LTD#135,Third Party Payments,Private Contractor Fees,73365-BLOCK GROSS-SUPPORTING PEOPLE,"42,876.25",Revenue,18/03/2015,Social Care & Inclusion
WC54-0171,ACE RADIO CARS,Transport,Hire,52000-WITH DRIVER-HIRE OF VEHICLES,"1,366.68",Revenue,11/03/2015,Childrens
WC54-0172,ACEPAY LTD (COTTAGE NUR HOME),Third Party Payments,Private Contractor Fees,73373-RESIDENTIAL & NURSING CARE PLACEMENTS,"1,933.16",Revenue,10/03/2015,Social Care & Inclusion
WC54-0173,ACEPAY LTD (COTTAGE NUR HOME),Third Party Payments,Private Contractor Fees,73373-RESIDENTIAL & NURSING CARE PLACEMENTS,"1,979.20",Revenue,10/03/2015,Social Care & Inclusion
WC54-0174,ACEPAY LTD (COTTAGE NUR HOME),Third Party Payments,Private Contractor Fees,73373-RESIDENTIAL & NURSING CARE PLACEMENTS,"1,979.20",Revenue,10/03/2015,Social Care & Inclusion
WC54-0175,ACEPAY LTD (COTTAGE NUR HOME),Third Party Payments,Private Contractor Fees,73373-RESIDENTIAL & NURSING CARE PLACEMENTS,"1,979.20",Revenue,10/03/2015,Social Care & Inclusion
WC54-0176,ACEPAY LTD (COTTAGE NUR HOME),Third Party Payments,Private Contractor Fees,73373-RESIDENTIAL & NURSING CARE PLACEMENTS,"2,372.32",Revenue,27/03/2015,Social Care & Inclusion
WC54-0177,ACEPAY LTD (COTTAGE NUR HOME),Third Party Payments,Private Contractor Fees,73373-RESIDENTIAL & NURSING CARE PLACEMENTS,"2,968.78",Revenue,27/03/2015,Social Care & Inclusion
WC54-0178,ACORN CARE LTD,Third Party Payments,Private Contractor Fees,73373-RESIDENTIAL & NURSING CARE PLACEMENTS,"14,840.32",Revenue,17/03/2015,Social Care & Inclusion
WC54-0179,ACORN FOSTERING SERVICES LTD,Third Party Payments,Private Contractor Fees,74037-INDEPENDENT FOSTER CARE-OTH AGENCY PROVISION,300,Revenue,23/03/2015,Childrens
WC54-0180,ACORN FOSTERING SERVICES LTD,Third Party Payments,Private Contractor Fees,74037-INDEPENDENT FOSTER CARE-OTH AGENCY PROVISION,"1,600.00",Revenue,17/03/2015,Childrens
WC54-0181,ACORN FOSTERING SERVICES LTD,Third Party Payments,Private Contractor Fees,74037-INDEPENDENT FOSTER CARE-OTH AGENCY PROVISION,"3,080.00",Revenue,11/03/2015,Childrens
WC54-0182,ACORN FOSTERING SERVICES LTD,Third Party Payments,Private Contractor Fees,74037-INDEPENDENT FOSTER CARE-OTH AGENCY PROVISION,"3,410.00",Revenue,11/03/2015,Childrens
WC54-0183,ACORN FOSTERING SERVICES LTD,Third Party Payments,Private Contractor Fees,74037-INDEPENDENT FOSTER CARE-OTH AGENCY PROVISION,"3,410.00",Revenue,11/03/2015,Childrens
WC54-0184,ACORN REST HOME,Third Party Payments,Private Contractor Fees,73373-RESIDENTIAL & NURSING CARE PLACEMENTS,"1,408.25",Revenue,27/03/2015,Social Care & Inclusion
WC54-0185,ACORNS CHILDRENS HOSPICE TRUST,Supplies & Services,Services,63000-PROFESSIONAL FEES AND SERVICES,750,Revenue,03/03/2015,Childrens
WC54-0186,ACTION DIGITAL MEDIA LTD,Supplies & Services,"Printing, Stationery & Office Exp",62000-EXTERNAL PRINTING SERVICES,510.36,Revenue,18/03/2015,Neighbourhood Services
WC54-0187,ACTION FOR CHILDREN,Transfer Payments,Transfer Payments,74009-ADOPTION ALLOWANCE,"-5,775.00",Revenue,18/03/2015,Childrens
WC54-0188,ACTION FOR CHILDREN,Transfer Payments,Transfer Payments,74009-ADOPTION ALLOWANCE,825,Revenue,01/03/2015,Childrens
WC54-0189,ACTION FOR CHILDREN,Transfer Payments,Transfer Payments,74009-ADOPTION ALLOWANCE,825,Revenue,01/03/2015,Childrens
WC54-0190,ACTION FOR CHILDREN,Transfer Payments,Transfer Payments,74009-ADOPTION ALLOWANCE,825,Revenue,01/03/2015,Childrens
WC54-0191,ACTION FOR CHILDREN,Transfer Payments,Transfer Payments,74009-ADOPTION ALLOWANCE,825,Revenue,01/03/2015,Childrens
WC54-0192,ACTION FOR CHILDREN,Transfer Payments,Transfer Payments,74009-ADOPTION ALLOWANCE,825,Revenue,18/03/2015,Childrens
WC54-0193,ACTION FOR CHILDREN,Transfer Payments,Transfer Payments,74009-ADOPTION ALLOWANCE,825,Revenue,18/03/2015,Childrens
WC54-0194,ACTION FOR CHILDREN,Transfer Payments,Transfer Payments,74009-ADOPTION ALLOWANCE,825,Revenue,18/03/2015,Childrens
WC54-0195,ACTION FOR CHILDREN,Third Party Payments,Private Contractor Fees,74037-INDEPENDENT FOSTER CARE-OTH AGENCY PROVISION,"3,518.85",Revenue,23/03/2015,Childrens
WC54-0196,ACTION FOR CHILDREN,Third Party Payments,Grants to Other Orgs,66502-TOP UP FUNDING -GRANTS TO SCHOOLS,"60,000.00",Revenue,19/03/2015,Childrens
WC54-0197,ACTION ON HEARING LOSS,Third Party Payments,Private Contractor Fees,73374-SUPPORTED & OTHER ACCOMMODATION,479.28,Revenue,13/03/2015,Social Care & Inclusion
WC54-0198,ACTION ON HEARING LOSS,Third Party Payments,Private Contractor Fees,73374-SUPPORTED & OTHER ACCOMMODATION,479.28,Revenue,27/03/2015,Social Care & Inclusion
WC54-0199,ACTION ON HEARING LOSS,Third Party Payments,Private Contractor Fees,73374-SUPPORTED & OTHER ACCOMMODATION,479.28,Revenue,31/03/2015,Social Care & Inclusion
WC54-0200,ACTION ON HEARING LOSS,Supplies & Services,"Equip,Furniture & Materials",60013-DISABLED-EQUIPMENT,"2,989.37",Revenue,01/03/2015,Social Care & Inclusion
WC54-0201,ACTIVE ASSISTANCE,Supplies & Services,Services,63000-PROFESSIONAL FEES AND SERVICES,"1,310.64",Revenue,10/03/2015,Childrens
WC54-0202,ACTIVE ASSISTANCE,Supplies & Services,Services,63000-PROFESSIONAL FEES AND SERVICES,"1,666.24",Revenue,10/03/2015,Childrens
WC54-0203,REDACTED,Transfer Payments,Transfer Payments,76422-DIRECT PAYMENTS TO SOCIAL SERVICES CLIENTS,609.5,Revenue,18/03/2015,Childrens
WC54-0204,REDACTED,Transfer Payments,Transfer Payments,76422-DIRECT PAYMENTS TO SOCIAL SERVICES CLIENTS,"1,015.00",Revenue,18/03/2015,Social Care & Inclusion
WC54-0205,ADASS,Supplies & Services,Other Supplies & Services,62523-EVENTS,499,Revenue,24/03/2015,Social Care & Inclusion
WC54-0206,ADCS (ASSOCIATION OF DIRECTORS OF CHILDRENS SERVICES),Supplies & Services,Services,63000-PROFESSIONAL FEES AND SERVICES,"2,351.25",Revenue,25/03/2015,Childrens
WC54-0207,REDACTED,Transfer Payments,Transfer Payments,76422-DIRECT PAYMENTS TO SOCIAL SERVICES CLIENTS,418,Revenue,02/03/2015,Social Care & Inclusion
WC54-0208,REDACTED,Transfer Payments,Transfer Payments,76422-DIRECT PAYMENTS TO SOCIAL SERVICES CLIENTS,"1,075.00",Revenue,18/03/2015,Social Care & Inclusion
WC54-0209,ADMIRAL SELF STORAGE LTD,Supplies & Services,Services,63000-PROFESSIONAL FEES AND SERVICES,419.32,Revenue,04/03/2015,Resources
WC54-0210,ADOPTION UK,Supplies & Services,Communications & Computing,68001-PUBLICITY & ADVERTISING (NOT STAFF ADVERTISING),413.25,Revenue,04/03/2015,Childrens
WC54-0211,ADOPTION UK,Supplies & Services,Communications & Computing,68001-PUBLICITY & ADVERTISING (NOT STAFF ADVERTISING),413.25,Revenue,04/03/2015,Childrens
WC54-0212,REDACTED,Third Party Payments,Private Contractor Fees,74006-HOLIDAY/CHRISTMAS ALLOWANCE-FOSTER CARERS-OTH AGENCY PROVISION,681.52,Revenue,16/03/2015,Childrens
WC54-0213,ADVANCE HEALTH CARE (UK) LTD,Third Party Payments,Private Contractor Fees,73372-DOMICILIARY CARE,307.94,Revenue,03/03/2015,Social Care & Inclusion
WC54-0214,ADVANCE HEALTH CARE (UK) LTD,Employees,Agency,34305-AGENCY STAFF-EMPLOYEES,325,Revenue,09/03/2015,Social Care & Inclusion
WC54-0215,ADVANCE HEALTH CARE (UK) LTD,Employees,Agency,34305-AGENCY STAFF-EMPLOYEES,338,Revenue,09/03/2015,Social Care & Inclusion
WC54-0216,ADVANCE HEALTH CARE (UK) LTD,Employees,Agency,34305-AGENCY STAFF-EMPLOYEES,403,Revenue,09/03/2015,Social Care & Inclusion
WC54-0217,ADVANCE HEALTH CARE (UK) LTD,Employees,Agency,34305-AGENCY STAFF-EMPLOYEES,429,Revenue,09/03/2015,Social Care & Inclusion
WC54-0218,ADVANCE HEALTH CARE (UK) LTD,Employees,Agency,34305-AGENCY STAFF-EMPLOYEES,516.75,Revenue,09/03/2015,Social Care & Inclusion
WC54-0219,ADVANCE HEALTH CARE (UK) LTD,Employees,Agency,34305-AGENCY STAFF-EMPLOYEES,728,Revenue,09/03/2015,Social Care & Inclusion
WC54-0220,ADVANCE HEALTH CARE (UK) LTD,Employees,Agency,34305-AGENCY STAFF-EMPLOYEES,802.75,Revenue,09/03/2015,Social Care & Inclusion
WC54-0221,ADVANCE HEALTH CARE (UK) LTD,Employees,Agency,34305-AGENCY STAFF-EMPLOYEES,890.5,Revenue,09/03/2015,Social Care & Inclusion
WC54-0222,ADVANCE HEALTH CARE (UK) LTD,Employees,Agency,34305-AGENCY STAFF-EMPLOYEES,"1,313.00",Revenue,09/03/2015,Social Care & Inclusion
WC54-0223,ADVANCE HEALTH CARE (UK) LTD,Employees,Agency,34305-AGENCY STAFF-EMPLOYEES,"2,330.25",Revenue,01/03/2015,Social Care & Inclusion
WC54-0224,ADVANCE HEALTH CARE (UK) LTD,Employees,Agency,34305-AGENCY STAFF-EMPLOYEES,"2,356.25",Revenue,01/03/2015,Social Care & Inclusion
WC54-0225,ADVANCE HEALTH CARE (UK) LTD,Employees,Agency,34305-AGENCY STAFF-EMPLOYEES,"2,502.50",Revenue,09/03/2015,Social Care & Inclusion
WC54-0226,ADVANCE HEALTH CARE (UK) LTD,Employees,Agency,34305-AGENCY STAFF-EMPLOYEES,"2,587.00",Revenue,01/03/2015,Social Care & Inclusion
WC54-0227,ADVANCE HEALTH CARE (UK) LTD,Third Party Payments,Private Contractor Fees,73372-DOMICILIARY CARE,"2,591.49",Revenue,03/03/2015,Social Care & Inclusion
WC54-0228,ADVANCE HEALTH CARE (UK) LTD,Third Party Payments,Private Contractor Fees,73372-DOMICILIARY CARE,"2,782.50",Revenue,03/03/2015,Social Care & Inclusion
WC54-0229,ADVANCE HEALTH CARE (UK) LTD,Third Party Payments,Private Contractor Fees,73372-DOMICILIARY CARE,"30,864.97",Revenue,02/03/2015,Social Care & Inclusion
WC54-0230,ADVANCE HEALTH CARE (UK) LTD,Third Party Payments,Private Contractor Fees,73372-DOMICILIARY CARE,"36,208.09",Revenue,31/03/2015,Social Care & Inclusion
WC54-0231,ADVANCED CONTRACTS (MIDLANDS) LTD,Premises,Premises-Repairs & Maintenance,"40000-REPAIRS,ALTERATIONS & MAINTENANCE-PREM",489.8,Revenue,11/03/2015,Regeneration
WC54-0232,ADVANCED CONTRACTS (MIDLANDS) LTD,Premises,Premises-Repairs & Maintenance,"40000-REPAIRS,ALTERATIONS & MAINTENANCE-PREM","2,489.00",Revenue,25/03/2015,Regeneration
WC54-0233,ADVANCED CONTRACTS (MIDLANDS) LTD,Premises,Premises-Repairs & Maintenance,"40000-REPAIRS,ALTERATIONS & MAINTENANCE-PREM","2,495.00",Revenue,01/03/2015,Regeneration
WC54-0234,ADVANCED CONTRACTS (MIDLANDS) LTD,Premises,Premises-Repairs & Maintenance,"40000-REPAIRS,ALTERATIONS & MAINTENANCE-PREM","2,500.00",Revenue,25/03/2015,Regeneration
WC54-0235,ADVANCED HEALTH AND CARE,Supplies & Services,Communications & Computing,63800-COMPUTER EQUIPMENT AND SUPPLIES,"7,674.89",Revenue,09/03/2015,Social Care & Inclusion
WC54-0236,ADVENTURELAND DAY NURSERY,Employees,Other Staff Costs,32000-MISC FEES AND EXPENSES,290.8,Revenue,05/03/2015,Childrens
WC54-0237,ADVENTURELAND DAY NURSERY,Supplies & Services,Other Supplies & Services,63120-CRECHE FACILITIES-SERVICES-FEES,360,Revenue,09/03/2015,Childrens
WC54-0238,ADVENTURELAND DAY NURSERY,Third Party Payments,Grants to Other Orgs,66505-OTHER-GRANTS TO OTHER ORGS,"8,611.29",Revenue,17/03/2015,Childrens
WC54-0239,ADVENTURELAND DAY NURSERY,Third Party Payments,Grants to Other Orgs,66505-OTHER-GRANTS TO OTHER ORGS,"8,996.50",Revenue,11/03/2015,Childrens
WC54-0240,ADVENTURELAND DAY NURSERY,Employees,Other Staff Costs,32000-MISC FEES AND EXPENSES,"13,641.05",Revenue,04/03/2015,Childrens
WC54-0241,AECOM INFRASTRUCTURE & ENVIRONMENT UK LIMITED,Supplies & Services,Services,63102-CONSULTANTS FEES - CORPORATE,398,Revenue,16/03/2015,Neighbourhood Services
WC54-0242,AGE UK WALSALL,Supplies & Services,Services,63000-PROFESSIONAL FEES AND SERVICES,"5,000.00",Revenue,04/03/2015,Social Care & Inclusion
WC54-0243,AGE UK WALSALL,Transfer Payments,Transfer Payments,76423-DIRECT PAYMENTS SUPPORT,"6,360.00",Revenue,25/03/2015,Social Care & Inclusion
WC54-0244,AGGORA TECHNICAL LTD,Supplies & Services,"Printing, Stationery & Office Exp",63500-POSTAGES AND COURIER SERVICES,59,Revenue,23/03/2015,Neighbourhood Services
WC54-0245,AGGORA TECHNICAL LTD,Supplies & Services,"Equip,Furniture & Materials",60006-NEW-FURNITURE & EQUIPMENT,"1,129.00",Revenue,23/03/2015,Neighbourhood Services
WC54-0246,REDACTED,Transfer Payments,Transfer Payments,76422-DIRECT PAYMENTS TO SOCIAL SERVICES CLIENTS,"2,352.50",Revenue,18/03/2015,Social Care & Inclusion
WC54-0247,AIR MONITORS LIMITED,Supplies & Services,"Equip,Furniture & Materials",60000-FURNITURE & EQUIPMENT,"1,600.00",Revenue,16/03/2015,Neighbourhood Services
WC54-0248,REDACTED,Transfer Payments,Transfer Payments,76422-DIRECT PAYMENTS TO SOCIAL SERVICES CLIENTS,"1,170.65",Revenue,18/03/2015,Social Care & Inclusion
WC54-0249,REDACTED,Transfer Payments,Transfer Payments,76422-DIRECT PAYMENTS TO SOCIAL SERVICES CLIENTS,834.75,Revenue,18/03/2015,Social Care & Inclusion
WC54-0250,ALDERGROVE MANOR CARE HOME,Third Party Payments,Private Contractor Fees,73373-RESIDENTIAL & NURSING CARE PLACEMENTS,"1,784.48",Revenue,10/03/2015,Social Care & Inclusion
WC54-0251,ALDRIDGE & BARONS LIMITED,Transport,Hire,52000-WITH DRIVER-HIRE OF VEHICLES,979.04,Revenue,03/03/2015,Childrens
WC54-0252,ALDRIDGE & BARONS LIMITED,Transport,Hire,52000-WITH DRIVER-HIRE OF VEHICLES,"1,012.50",Revenue,03/03/2015,Childrens
WC54-0253,ALDRIDGE & BARONS LIMITED,Transport,Hire,52000-WITH DRIVER-HIRE OF VEHICLES,"1,050.00",Revenue,03/03/2015,Childrens
WC54-0254,ALDRIDGE & BARONS LIMITED,Transport,Hire,52000-WITH DRIVER-HIRE OF VEHICLES,"1,330.00",Revenue,03/03/2015,Childrens
WC54-0255,ALDRIDGE & BARONS LIMITED,Transport,Hire,52000-WITH DRIVER-HIRE OF VEHICLES,"1,495.24",Revenue,03/03/2015,Childrens
WC54-0256,ALDRIDGE & BARONS LIMITED,Transport,Hire,52000-WITH DRIVER-HIRE OF VEHICLES,"1,734.00",Revenue,03/03/2015,Childrens
WC54-0257,ALDRIDGE & BARONS LIMITED,Transport,Hire,52000-WITH DRIVER-HIRE OF VEHICLES,"1,856.00",Revenue,03/03/2015,Childrens
WC54-0258,ALDRIDGE & BARONS LIMITED,Transport,Hire,52000-WITH DRIVER-HIRE OF VEHICLES,"2,038.70",Revenue,03/03/2015,Childrens
WC54-0259,ALDRIDGE & BARONS LIMITED,Transport,Hire,52000-WITH DRIVER-HIRE OF VEHICLES,"2,053.00",Revenue,06/03/2015,Childrens
WC54-0260,ALDRIDGE & BARONS LIMITED,Transport,Hire,52000-WITH DRIVER-HIRE OF VEHICLES,"2,056.80",Revenue,06/03/2015,Childrens
WC54-0261,ALDRIDGE & BARONS LIMITED,Transport,Hire,52000-WITH DRIVER-HIRE OF VEHICLES,"2,334.00",Revenue,03/03/2015,Childrens
WC54-0262,ALDRIDGE & BARONS LIMITED,Transport,Hire,52000-WITH DRIVER-HIRE OF VEHICLES,"2,436.00",Revenue,03/03/2015,Childrens
WC54-0263,ALDRIDGE & BARONS LIMITED,Transport,Hire,52000-WITH DRIVER-HIRE OF VEHICLES,"2,490.00",Revenue,06/03/2015,Childrens
WC54-0264,ALDRIDGE & BARONS LIMITED,Transport,Hire,52000-WITH DRIVER-HIRE OF VEHICLES,"2,784.00",Revenue,03/03/2015,Childrens
WC54-0265,ALDRIDGE & BARONS LIMITED,Transport,Hire,52000-WITH DRIVER-HIRE OF VEHICLES,"3,240.00",Revenue,03/03/2015,Childrens
WC54-0266,ALDRIDGE & BARONS LIMITED,Transport,Hire,52000-WITH DRIVER-HIRE OF VEHICLES,"3,364.00",Revenue,03/03/2015,Childrens
WC54-0267,ALDRIDGE & BARONS LIMITED,Transport,Hire,52000-WITH DRIVER-HIRE OF VEHICLES,"3,561.20",Revenue,03/03/2015,Childrens
WC54-0268,ALDRIDGE VOLUNTEER GARDENERS,Supplies & Services,Other Supplies & Services,62515-MISCELLANEOUS SUPPLIES,750,Revenue,24/03/2015,Neighbourhood Services
WC54-0269,ALERE LTD,Supplies & Services,Communications & Computing,63809-LICENCES-COMPUTER,"1,065.00",Revenue,03/03/2015,Neighbourhood Services
WC54-0270,REDACTED,Transfer Payments,Transfer Payments,76422-DIRECT PAYMENTS TO SOCIAL SERVICES CLIENTS,"1,505.00",Revenue,18/03/2015,Social Care & Inclusion
WC54-0271,ALEXANDRA HOUSE CARE SERVICES LTD T/A STONEBRIDGE NURSING HOME,Third Party Payments,Private Contractor Fees,73373-RESIDENTIAL & NURSING CARE PLACEMENTS,"6,960.84",Revenue,10/03/2015,Social Care & Inclusion
WC54-0272,REDACTED,Transfer Payments,Transfer Payments,76422-DIRECT PAYMENTS TO SOCIAL SERVICES CLIENTS,728.33,Revenue,18/03/2015,Childrens
WC54-0273,REDACTED,Transfer Payments,Transfer Payments,76422-DIRECT PAYMENTS TO SOCIAL SERVICES CLIENTS,"1,067.50",Revenue,18/03/2015,Social Care & Inclusion
WC54-0274,REDACTED,Transfer Payments,Transfer Payments,76422-DIRECT PAYMENTS TO SOCIAL SERVICES CLIENTS,411,Revenue,18/03/2015,Social Care & Inclusion
WC54-0275,REDACTED,Third Party Payments,Private Contractor Fees,74006-HOLIDAY/CHRISTMAS ALLOWANCE-FOSTER CARERS-OTH AGENCY PROVISION,968.32,Revenue,02/03/2015,Childrens
WC54-0276,REDACTED,Third Party Payments,Private Contractor Fees,74006-HOLIDAY/CHRISTMAS ALLOWANCE-FOSTER CARERS-OTH AGENCY PROVISION,971.44,Revenue,30/03/2015,Childrens
WC54-0277,REDACTED,Supplies & Services,Other Supplies & Services,62515-MISCELLANEOUS SUPPLIES,"1,428.44",Revenue,02/03/2015,Childrens
WC54-0278,REDACTED,Supplies & Services,Other Supplies & Services,62515-MISCELLANEOUS SUPPLIES,"1,431.45",Revenue,30/03/2015,Childrens
WC54-0279,REDACTED,Third Party Payments,Grants to Other Orgs,66505-OTHER-GRANTS TO OTHER ORGS,264.06,Revenue,17/03/2015,Childrens
WC54-0280,REDACTED,Third Party Payments,Grants to Other Orgs,66505-OTHER-GRANTS TO OTHER ORGS,287,Revenue,11/03/2015,Childrens
WC54-0281,REDACTED,Third Party Payments,Private Contractor Fees,74006-HOLIDAY/CHRISTMAS ALLOWANCE-FOSTER CARERS-OTH AGENCY PROVISION,542.8,Revenue,16/03/2015,Childrens
WC54-0282,ALL SAINTS C OF E PRIMARY SCHOOL,Transfer Payments,Transfer Payments,77300-ISB-FORMULA ALLOCATION,"1,027.50",Revenue,24/03/2015,Childrens
WC54-0283,REDACTED,Supplies & Services,Other Supplies & Services,63128-HIRE OF ROOM-SERVICES-FEES,594,Revenue,16/03/2015,Neighbourhood Services
WC54-0284,ALLSORTS OFFICE SUPPLIES LTD,Supplies & Services,Communications & Computing,63800-COMPUTER EQUIPMENT AND SUPPLIES,"1,680.00",Revenue,01/03/2015,Resources
WC54-0285,ALMA COURT,Third Party Payments,Private Contractor Fees,73373-RESIDENTIAL & NURSING CARE PLACEMENTS,"6,177.86",Revenue,27/03/2015,Social Care & Inclusion
WC54-0286,ALMOZENE NURSERY & CHILDRENS CENTRE,Third Party Payments,Grants to Other Orgs,66505-OTHER-GRANTS TO OTHER ORGS,"4,675.88",Revenue,11/03/2015,Childrens
WC54-0287,ALMOZENE NURSERY & CHILDRENS CENTRE,Third Party Payments,Grants to Other Orgs,66505-OTHER-GRANTS TO OTHER ORGS,"10,048.95",Revenue,17/03/2015,Childrens
WC54-0288,ALPHA HAIR DESIGN ACADEMY,Third Party Payments,Grants to Other Orgs,66502-TOP UP FUNDING -GRANTS TO SCHOOLS,"1,506.52",Revenue,11/03/2015,Childrens
WC54-0289,ALPHA HEALTH CARE LTD,Third Party Payments,Private Contractor Fees,73373-RESIDENTIAL & NURSING CARE PLACEMENTS,678.04,Revenue,17/03/2015,Social Care & Inclusion
WC54-0290,ALPHA HEALTH CARE LTD,Third Party Payments,Private Contractor Fees,73373-RESIDENTIAL & NURSING CARE PLACEMENTS,"1,424.73",Revenue,17/03/2015,Social Care & Inclusion
WC54-0291,ALPHA HEALTH CARE LTD,Third Party Payments,Private Contractor Fees,73373-RESIDENTIAL & NURSING CARE PLACEMENTS,"1,424.73",Revenue,17/03/2015,Social Care & Inclusion
WC54-0292,ALPHA HEALTH CARE LTD,Third Party Payments,Private Contractor Fees,73373-RESIDENTIAL & NURSING CARE PLACEMENTS,"1,431.36",Revenue,17/03/2015,Social Care & Inclusion
WC54-0293,ALPHA HEALTH CARE LTD,Third Party Payments,Private Contractor Fees,73373-RESIDENTIAL & NURSING CARE PLACEMENTS,"1,476.84",Revenue,17/03/2015,Social Care & Inclusion
WC54-0294,ALPHA HEALTH CARE LTD,Third Party Payments,Private Contractor Fees,73373-RESIDENTIAL & NURSING CARE PLACEMENTS,"1,512.55",Revenue,17/03/2015,Social Care & Inclusion
WC54-0295,ALPHA HEALTH CARE LTD,Third Party Payments,Private Contractor Fees,73373-RESIDENTIAL & NURSING CARE PLACEMENTS,"1,523.12",Revenue,17/03/2015,Social Care & Inclusion
WC54-0296,ALPHA HEALTH CARE LTD,Third Party Payments,Private Contractor Fees,73373-RESIDENTIAL & NURSING CARE PLACEMENTS,"1,529.58",Revenue,17/03/2015,Social Care & Inclusion
WC54-0297,ALPHA HEALTH CARE LTD,Third Party Payments,Private Contractor Fees,73373-RESIDENTIAL & NURSING CARE PLACEMENTS,"1,529.59",Revenue,17/03/2015,Social Care & Inclusion
WC54-0298,ALPHA HEALTH CARE LTD,Third Party Payments,Private Contractor Fees,73373-RESIDENTIAL & NURSING CARE PLACEMENTS,"1,529.59",Revenue,17/03/2015,Social Care & Inclusion
WC54-0299,ALPHA HEALTH CARE LTD,Third Party Payments,Private Contractor Fees,73373-RESIDENTIAL & NURSING CARE PLACEMENTS,"1,542.80",Revenue,17/03/2015,Social Care & Inclusion
WC54-0300,ALPHA HEALTH CARE LTD,Third Party Payments,Private Contractor Fees,73373-RESIDENTIAL & NURSING CARE PLACEMENTS,"1,542.80",Revenue,17/03/2015,Social Care & Inclusion
WC54-0301,ALPHA HEALTH CARE LTD,Third Party Payments,Private Contractor Fees,73373-RESIDENTIAL & NURSING CARE PLACEMENTS,"1,542.80",Revenue,17/03/2015,Social Care & Inclusion
WC54-0302,ALPHA HEALTH CARE LTD,Third Party Payments,Private Contractor Fees,73373-RESIDENTIAL & NURSING CARE PLACEMENTS,"1,542.80",Revenue,17/03/2015,Social Care & Inclusion
WC54-0303,ALPHA HEALTH CARE LTD,Third Party Payments,Private Contractor Fees,73373-RESIDENTIAL & NURSING CARE PLACEMENTS,"1,542.80",Revenue,17/03/2015,Social Care & Inclusion
WC54-0304,ALPHA HEALTH CARE LTD,Third Party Payments,Private Contractor Fees,73373-RESIDENTIAL & NURSING CARE PLACEMENTS,"1,542.80",Revenue,17/03/2015,Social Care & Inclusion
WC54-0305,ALPHA HEALTH CARE LTD,Third Party Payments,Private Contractor Fees,73373-RESIDENTIAL & NURSING CARE PLACEMENTS,"1,542.80",Revenue,17/03/2015,Social Care & Inclusion
WC54-0306,ALPHA HEALTH CARE LTD,Third Party Payments,Private Contractor Fees,73373-RESIDENTIAL & NURSING CARE PLACEMENTS,"1,542.80",Revenue,17/03/2015,Social Care & Inclusion
WC54-0307,ALPHA HEALTH CARE LTD,Third Party Payments,Private Contractor Fees,73373-RESIDENTIAL & NURSING CARE PLACEMENTS,"1,542.84",Revenue,17/03/2015,Social Care & Inclusion
WC54-0308,ALPHA HEALTH CARE LTD,Third Party Payments,Private Contractor Fees,73373-RESIDENTIAL & NURSING CARE PLACEMENTS,"1,588.91",Revenue,17/03/2015,Social Care & Inclusion
WC54-0309,ALPHA HEALTH CARE LTD,Third Party Payments,Private Contractor Fees,73373-RESIDENTIAL & NURSING CARE PLACEMENTS,"1,588.91",Revenue,17/03/2015,Social Care & Inclusion
WC54-0310,ALPHA HEALTH CARE LTD,Third Party Payments,Private Contractor Fees,73373-RESIDENTIAL & NURSING CARE PLACEMENTS,"1,588.91",Revenue,17/03/2015,Social Care & Inclusion
WC54-0311,ALPHA HEALTH CARE LTD,Third Party Payments,Private Contractor Fees,73373-RESIDENTIAL & NURSING CARE PLACEMENTS,"1,588.91",Revenue,17/03/2015,Social Care & Inclusion
WC54-0312,ALPHA HEALTH CARE LTD,Third Party Payments,Private Contractor Fees,73373-RESIDENTIAL & NURSING CARE PLACEMENTS,"1,589.08",Revenue,17/03/2015,Social Care & Inclusion
WC54-0313,ALPHA HEALTH CARE LTD,Third Party Payments,Private Contractor Fees,73373-RESIDENTIAL & NURSING CARE PLACEMENTS,"1,647.11",Revenue,17/03/2015,Social Care & Inclusion
WC54-0314,ALPHA HEALTH CARE LTD,Third Party Payments,Private Contractor Fees,73373-RESIDENTIAL & NURSING CARE PLACEMENTS,"1,917.65",Revenue,17/03/2015,Social Care & Inclusion
WC54-0315,ALPHA HEALTH CARE LTD,Third Party Payments,Private Contractor Fees,73373-RESIDENTIAL & NURSING CARE PLACEMENTS,"2,006.76",Revenue,17/03/2015,Social Care & Inclusion
WC54-0316,ALPHA HEALTH CARE LTD,Third Party Payments,Private Contractor Fees,73373-RESIDENTIAL & NURSING CARE PLACEMENTS,"2,079.92",Revenue,17/03/2015,Social Care & Inclusion
WC54-0317,ALPHA HEALTH CARE LTD,Third Party Payments,Private Contractor Fees,73373-RESIDENTIAL & NURSING CARE PLACEMENTS,"2,184.78",Revenue,17/03/2015,Social Care & Inclusion
WC54-0318,ALPHA HEALTH CARE LTD,Third Party Payments,Private Contractor Fees,73373-RESIDENTIAL & NURSING CARE PLACEMENTS,"5,620.53",Revenue,17/03/2015,Social Care & Inclusion
WC54-0319,ALPHA HEALTH CARE LTD,Third Party Payments,Private Contractor Fees,73373-RESIDENTIAL & NURSING CARE PLACEMENTS,"5,800.00",Revenue,17/03/2015,Social Care & Inclusion
WC54-0320,ALTODIGITAL NETWORKS LTD,Supplies & Services,"Equip,Furniture & Materials",60009-LEASING/HIRE/RENTAL-EQUIPMENT,67.67,Revenue,20/03/2015,Neighbourhood Services
WC54-0321,ALTODIGITAL NETWORKS LTD,Central,Internal Recharges,82012-PRINT & DESIGN CHARGES-INTERNAL,337.58,Revenue,20/03/2015,Childrens
WC54-0322,ALTODIGITAL NETWORKS LTD,Supplies & Services,"Equip,Furniture & Materials",60009-LEASING/HIRE/RENTAL-EQUIPMENT,344.47,Revenue,24/03/2015,Resources
WC54-0323,ALTODIGITAL NETWORKS LTD,Supplies & Services,"Printing, Stationery & Office Exp",62003-GENERAL EXPENSES-OFFICE EXP,487.09,Revenue,20/03/2015,Neighbourhood Services
WC54-0324,ALTODIGITAL NETWORKS LTD,Supplies & Services,"Equip,Furniture & Materials",60009-LEASING/HIRE/RENTAL-EQUIPMENT,732.57,Revenue,24/03/2015,Social Care & Inclusion
WC54-0325,ALTODIGITAL NETWORKS LTD,Supplies & Services,"Printing, Stationery & Office Exp",62001-STATIONERY & GENERAL SUPPLIES-OFFICE EXP,920.32,Revenue,17/03/2015,Neighbourhood Services
WC54-0326,ALUMWELLIES NURSERY,Employees,Other Staff Costs,32000-MISC FEES AND EXPENSES,"2,832.00",Revenue,11/03/2015,Childrens
WC54-0327,ALUMWELLIES NURSERY,Third Party Payments,Grants to Other Orgs,66505-OTHER-GRANTS TO OTHER ORGS,"6,394.68",Revenue,11/03/2015,Childrens
WC54-0328,ALUMWELLIES NURSERY,Third Party Payments,Grants to Other Orgs,66505-OTHER-GRANTS TO OTHER ORGS,"9,564.84",Revenue,17/03/2015,Childrens
WC54-0329,REDACTED,Third Party Payments,Private Contractor Fees,74006-HOLIDAY/CHRISTMAS ALLOWANCE-FOSTER CARERS-OTH AGENCY PROVISION,"1,493.76",Revenue,16/03/2015,Childrens
WC54-0330,REDACTED,Supplies & Services,Other Supplies & Services,62515-MISCELLANEOUS SUPPLIES,350.4,Revenue,02/03/2015,Childrens
WC54-0331,REDACTED,Supplies & Services,Other Supplies & Services,62515-MISCELLANEOUS SUPPLIES,351.13,Revenue,30/03/2015,Childrens
WC54-0332,REDACTED,Third Party Payments,Private Contractor Fees,74006-HOLIDAY/CHRISTMAS ALLOWANCE-FOSTER CARERS-OTH AGENCY PROVISION,561.32,Revenue,02/03/2015,Childrens
WC54-0333,REDACTED,Third Party Payments,Private Contractor Fees,74006-HOLIDAY/CHRISTMAS ALLOWANCE-FOSTER CARERS-OTH AGENCY PROVISION,563.12,Revenue,30/03/2015,Childrens
WC54-0334,REDACTED,Transfer Payments,Transfer Payments,76422-DIRECT PAYMENTS TO SOCIAL SERVICES CLIENTS,818.13,Revenue,18/03/2015,Social Care & Inclusion
WC54-0335,REDACTED,Transfer Payments,Transfer Payments,76422-DIRECT PAYMENTS TO SOCIAL SERVICES CLIENTS,391.15,Revenue,18/03/2015,Childrens
WC54-0336,AMEY LG LIMITED,Capital,Capital,01009-SITE WORKS - OTHER CONTRACTORS,392.24,Capital,23/03/2015,Regeneration
WC54-0337,AMEY LG LIMITED,Capital,Capital,01009-SITE WORKS - OTHER CONTRACTORS,456.74,Capital,23/03/2015,Regeneration
WC54-0338,AMEY LG LIMITED,Supplies & Services,Other Supplies & Services,62515-MISCELLANEOUS SUPPLIES,672.09,Revenue,23/03/2015,Neighbourhood Services
WC54-0339,AMEY LG LIMITED,Capital,Capital,01009-SITE WORKS - OTHER CONTRACTORS,965.97,Capital,23/03/2015,Regeneration
WC54-0340,AMEY LG LIMITED,Capital,Capital,01006-SITE WORKS MAIN CONTRACTORS,995.61,Capital,24/03/2015,Neighbourhood Services
WC54-0341,AMEY LG LIMITED,Third Party Payments,Private Contractor Fees,73025-PROFESSIONAL SERVICES-PRIV CONTRACTOR & OTHER AGENCIES,"1,046.20",Revenue,03/03/2015,Neighbourhood Services
WC54-0342,AMEY LG LIMITED,Capital,Capital,01006-SITE WORKS MAIN CONTRACTORS,"1,378.37",Capital,19/03/2015,Regeneration
WC54-0343,AMEY LG LIMITED,Capital,Capital,01009-SITE WORKS - OTHER CONTRACTORS,"1,426.46",Capital,23/03/2015,Regeneration
WC54-0344,AMEY LG LIMITED,Capital,Capital,01009-SITE WORKS - OTHER CONTRACTORS,"3,137.92",Capital,23/03/2015,Regeneration
WC54-0345,AMEY LG LIMITED,Capital,Capital,01009-SITE WORKS - OTHER CONTRACTORS,"3,732.27",Capital,01/03/2015,Regeneration
WC54-0346,AMEY LG LIMITED,Capital,Capital,01009-SITE WORKS - OTHER CONTRACTORS,"3,927.45",Capital,23/03/2015,Regeneration
WC54-0347,AMEY LG LIMITED,Capital,Capital,01006-SITE WORKS MAIN CONTRACTORS,"5,670.90",Capital,19/03/2015,Regeneration
WC54-0348,AMEY LG LIMITED,Third Party Payments,Private Contractor Fees,73025-PROFESSIONAL SERVICES-PRIV CONTRACTOR & OTHER AGENCIES,"8,578.11",Revenue,01/03/2015,Neighbourhood Services
WC54-0349,AMEY LG LIMITED,Supplies & Services,Other Supplies & Services,62515-MISCELLANEOUS SUPPLIES,"12,152.84",Revenue,23/03/2015,Neighbourhood Services
WC54-0350,AMG NURSING CARE SERVICES,Supplies & Services,Services,63000-PROFESSIONAL FEES AND SERVICES,"1,088.88",Revenue,03/03/2015,Childrens
WC54-0351,AMG NURSING CARE SERVICES,Third Party Payments,Private Contractor Fees,73374-SUPPORTED & OTHER ACCOMMODATION,"1,833.84",Revenue,25/03/2015,Social Care & Inclusion
WC54-0352,AMG NURSING CARE SERVICES,Supplies & Services,Services,63000-PROFESSIONAL FEES AND SERVICES,"2,229.76",Revenue,11/03/2015,Childrens
WC54-0353,AMG NURSING CARE SERVICES,Supplies & Services,Services,63000-PROFESSIONAL FEES AND SERVICES,"2,229.76",Revenue,24/03/2015,Childrens
WC54-0354,AMG NURSING CARE SERVICES,Third Party Payments,Private Contractor Fees,73374-SUPPORTED & OTHER ACCOMMODATION,"3,006.56",Revenue,25/03/2015,Social Care & Inclusion
WC54-0355,REDACTED,Transfer Payments,Transfer Payments,76422-DIRECT PAYMENTS TO SOCIAL SERVICES CLIENTS,"1,114.05",Revenue,18/03/2015,Social Care & Inclusion
WC54-0356,REDACTED,Third Party Payments,Private Contractor Fees,74006-HOLIDAY/CHRISTMAS ALLOWANCE-FOSTER CARERS-OTH AGENCY PROVISION,417.56,Revenue,16/03/2015,Childrens
WC54-0357,REDACTED,Transfer Payments,Transfer Payments,76422-DIRECT PAYMENTS TO SOCIAL SERVICES CLIENTS,711.88,Revenue,18/03/2015,Social Care & Inclusion
WC54-0358,REDACTED,Supplies & Services,Other Supplies & Services,62515-MISCELLANEOUS SUPPLIES,350.4,Revenue,02/03/2015,Childrens
WC54-0359,REDACTED,Supplies & Services,Other Supplies & Services,62515-MISCELLANEOUS SUPPLIES,351.13,Revenue,30/03/2015,Childrens
WC54-0360,REDACTED,Supplies & Services,Other Supplies & Services,62515-MISCELLANEOUS SUPPLIES,916.16,Revenue,30/03/2015,Childrens
WC54-0361,REDACTED,Third Party Payments,Private Contractor Fees,74006-HOLIDAY/CHRISTMAS ALLOWANCE-FOSTER CARERS-OTH AGENCY PROVISION,"1,278.80",Revenue,02/03/2015,Childrens
WC54-0362,REDACTED,Third Party Payments,Private Contractor Fees,74006-HOLIDAY/CHRISTMAS ALLOWANCE-FOSTER CARERS-OTH AGENCY PROVISION,"1,282.92",Revenue,30/03/2015,Childrens
WC54-0363,REDACTED,Supplies & Services,Other Supplies & Services,62515-MISCELLANEOUS SUPPLIES,"1,738.40",Revenue,02/03/2015,Childrens
WC54-0364,REDACTED,Transfer Payments,Transfer Payments,76422-DIRECT PAYMENTS TO SOCIAL SERVICES CLIENTS,472.5,Revenue,18/03/2015,Social Care & Inclusion
WC54-0365,REDACTED,Third Party Payments,Private Contractor Fees,74006-HOLIDAY/CHRISTMAS ALLOWANCE-FOSTER CARERS-OTH AGENCY PROVISION,886.32,Revenue,02/03/2015,Childrens
WC54-0366,REDACTED,Supplies & Services,Other Supplies & Services,62515-MISCELLANEOUS SUPPLIES,896.24,Revenue,02/03/2015,Childrens
WC54-0367,REDACTED,Supplies & Services,Other Supplies & Services,62515-MISCELLANEOUS SUPPLIES,898.12,Revenue,30/03/2015,Childrens
WC54-0368,REDACTED,Third Party Payments,Private Contractor Fees,74006-HOLIDAY/CHRISTMAS ALLOWANCE-FOSTER CARERS-OTH AGENCY PROVISION,904.08,Revenue,30/03/2015,Childrens
WC54-0369,REDACTED,Third Party Payments,Private Contractor Fees,74006-HOLIDAY/CHRISTMAS ALLOWANCE-FOSTER CARERS-OTH AGENCY PROVISION,"3,664.79",Revenue,16/03/2015,Childrens
WC54-0370,ANGEL SOLUTIONS LTD,Supplies & Services,Other Supplies & Services,63114-OTHER FEES & LICENCES-SERVICES-FEES,"13,000.00",Revenue,26/03/2015,Childrens
WC54-0371,REDACTED,Third Party Payments,Private Contractor Fees,74006-HOLIDAY/CHRISTMAS ALLOWANCE-FOSTER CARERS-OTH AGENCY PROVISION,"1,998.13",Revenue,16/03/2015,Childrens
WC54-0372,REDACTED,Third Party Payments,Private Contractor Fees,74006-HOLIDAY/CHRISTMAS ALLOWANCE-FOSTER CARERS-OTH AGENCY PROVISION,398,Revenue,16/03/2015,Childrens
WC54-0373,ANGLIA STAIRLIFTS LTD,Capital,Capital,01045-PRIVATE GRANTS,"3,805.00",Capital,01/03/2015,Resources
WC54-0374,ANGLIA STAIRLIFTS LTD,Capital,Capital,01045-PRIVATE GRANTS,"4,290.00",Capital,01/03/2015,Resources
WC54-0375,REDACTED,Supplies & Services,Other Supplies & Services,62515-MISCELLANEOUS SUPPLIES,803.18,Revenue,02/03/2015,Childrens
WC54-0376,REDACTED,Third Party Payments,Private Contractor Fees,74006-HOLIDAY/CHRISTMAS ALLOWANCE-FOSTER CARERS-OTH AGENCY PROVISION,"1,435.40",Revenue,02/03/2015,Childrens
WC54-0377,REDACTED,Third Party Payments,Private Contractor Fees,74006-HOLIDAY/CHRISTMAS ALLOWANCE-FOSTER CARERS-OTH AGENCY PROVISION,"1,519.95",Revenue,30/03/2015,Childrens
WC54-0378,REDACTED,Supplies & Services,Other Supplies & Services,62515-MISCELLANEOUS SUPPLIES,"4,781.96",Revenue,30/03/2015,Childrens
WC54-0379,REDACTED,Transfer Payments,Transfer Payments,76422-DIRECT PAYMENTS TO SOCIAL SERVICES CLIENTS,397.5,Revenue,18/03/2015,Social Care & Inclusion
WC54-0380,REDACTED,Supplies & Services,Services,63000-PROFESSIONAL FEES AND SERVICES,300,Revenue,20/03/2015,Neighbourhood Services
WC54-0381,REDACTED,Supplies & Services,Services,63000-PROFESSIONAL FEES AND SERVICES,437.5,Revenue,31/03/2015,Neighbourhood Services
WC54-0382,REDACTED,Third Party Payments,Private Contractor Fees,73374-SUPPORTED & OTHER ACCOMMODATION,"1,323.30",Revenue,11/03/2015,Social Care & Inclusion
WC54-0383,REDACTED,Transfer Payments,Transfer Payments,76422-DIRECT PAYMENTS TO SOCIAL SERVICES CLIENTS,782.28,Revenue,18/03/2015,Social Care & Inclusion
WC54-0384,REDACTED,Transfer Payments,Transfer Payments,76422-DIRECT PAYMENTS TO SOCIAL SERVICES CLIENTS,250,Revenue,18/03/2015,Social Care & Inclusion
WC54-0385,ANSON COURT RESIDENTIAL HOME,Third Party Payments,Private Contractor Fees,73373-RESIDENTIAL & NURSING CARE PLACEMENTS,821.85,Revenue,17/03/2015,Social Care & Inclusion
WC54-0386,ANSON COURT RESIDENTIAL HOME,Third Party Payments,Private Contractor Fees,73373-RESIDENTIAL & NURSING CARE PLACEMENTS,"1,150.59",Revenue,17/03/2015,Social Care & Inclusion
WC54-0387,ANSON COURT RESIDENTIAL HOME,Third Party Payments,Private Contractor Fees,73373-RESIDENTIAL & NURSING CARE PLACEMENTS,"1,150.59",Revenue,17/03/2015,Social Care & Inclusion
WC54-0388,ANSON COURT RESIDENTIAL HOME,Third Party Payments,Private Contractor Fees,73373-RESIDENTIAL & NURSING CARE PLACEMENTS,"1,534.12",Revenue,17/03/2015,Social Care & Inclusion
WC54-0389,ANSON COURT RESIDENTIAL HOME,Third Party Payments,Private Contractor Fees,73373-RESIDENTIAL & NURSING CARE PLACEMENTS,"1,534.12",Revenue,17/03/2015,Social Care & Inclusion
WC54-0390,ANSON COURT RESIDENTIAL HOME,Third Party Payments,Private Contractor Fees,73373-RESIDENTIAL & NURSING CARE PLACEMENTS,"1,587.26",Revenue,17/03/2015,Social Care & Inclusion
WC54-0391,ANSON COURT RESIDENTIAL HOME,Third Party Payments,Private Contractor Fees,73373-RESIDENTIAL & NURSING CARE PLACEMENTS,"1,588.91",Revenue,17/03/2015,Social Care & Inclusion
WC54-0392,ANSON COURT RESIDENTIAL HOME,Third Party Payments,Private Contractor Fees,73373-RESIDENTIAL & NURSING CARE PLACEMENTS,"1,588.91",Revenue,17/03/2015,Social Care & Inclusion
WC54-0393,ANSON COURT RESIDENTIAL HOME,Third Party Payments,Private Contractor Fees,73373-RESIDENTIAL & NURSING CARE PLACEMENTS,"1,588.91",Revenue,17/03/2015,Social Care & Inclusion
WC54-0394,ANSON COURT RESIDENTIAL HOME,Third Party Payments,Private Contractor Fees,73373-RESIDENTIAL & NURSING CARE PLACEMENTS,"1,588.91",Revenue,17/03/2015,Social Care & Inclusion
WC54-0395,ANSON COURT RESIDENTIAL HOME,Third Party Payments,Private Contractor Fees,73373-RESIDENTIAL & NURSING CARE PLACEMENTS,"1,588.91",Revenue,17/03/2015,Social Care & Inclusion
WC54-0396,ANSON COURT RESIDENTIAL HOME,Third Party Payments,Private Contractor Fees,73373-RESIDENTIAL & NURSING CARE PLACEMENTS,"1,588.91",Revenue,17/03/2015,Social Care & Inclusion
WC54-0397,ANSON COURT RESIDENTIAL HOME,Third Party Payments,Private Contractor Fees,73373-RESIDENTIAL & NURSING CARE PLACEMENTS,"1,588.91",Revenue,17/03/2015,Social Care & Inclusion
WC54-0398,ANSON COURT RESIDENTIAL HOME,Third Party Payments,Private Contractor Fees,73373-RESIDENTIAL & NURSING CARE PLACEMENTS,"1,588.91",Revenue,17/03/2015,Social Care & Inclusion
WC54-0399,ANSON COURT RESIDENTIAL HOME,Third Party Payments,Private Contractor Fees,73373-RESIDENTIAL & NURSING CARE PLACEMENTS,"1,588.91",Revenue,17/03/2015,Social Care & Inclusion
WC54-0400,ANSON COURT RESIDENTIAL HOME,Third Party Payments,Private Contractor Fees,73373-RESIDENTIAL & NURSING CARE PLACEMENTS,"1,588.91",Revenue,17/03/2015,Social Care & Inclusion
WC54-0401,ANSON COURT RESIDENTIAL HOME,Third Party Payments,Private Contractor Fees,73373-RESIDENTIAL & NURSING CARE PLACEMENTS,"1,588.91",Revenue,17/03/2015,Social Care & Inclusion
WC54-0402,ANSON COURT RESIDENTIAL HOME,Third Party Payments,Private Contractor Fees,73373-RESIDENTIAL & NURSING CARE PLACEMENTS,"1,589.54",Revenue,17/03/2015,Social Care & Inclusion
WC54-0403,ANSON COURT RESIDENTIAL HOME,Third Party Payments,Private Contractor Fees,73373-RESIDENTIAL & NURSING CARE PLACEMENTS,"1,614.12",Revenue,17/03/2015,Social Care & Inclusion
WC54-0404,ANSON COURT RESIDENTIAL HOME,Third Party Payments,Private Contractor Fees,73373-RESIDENTIAL & NURSING CARE PLACEMENTS,"1,670.52",Revenue,17/03/2015,Social Care & Inclusion
WC54-0405,ANSON COURT RESIDENTIAL HOME,Third Party Payments,Private Contractor Fees,73373-RESIDENTIAL & NURSING CARE PLACEMENTS,"1,671.76",Revenue,17/03/2015,Social Care & Inclusion
WC54-0406,ANSON COURT RESIDENTIAL HOME,Third Party Payments,Private Contractor Fees,73373-RESIDENTIAL & NURSING CARE PLACEMENTS,"1,671.77",Revenue,17/03/2015,Social Care & Inclusion
WC54-0407,ANSON COURT RESIDENTIAL HOME,Third Party Payments,Private Contractor Fees,73373-RESIDENTIAL & NURSING CARE PLACEMENTS,"1,672.39",Revenue,17/03/2015,Social Care & Inclusion
WC54-0408,ANSON COURT RESIDENTIAL HOME,Third Party Payments,Private Contractor Fees,73373-RESIDENTIAL & NURSING CARE PLACEMENTS,"1,672.39",Revenue,17/03/2015,Social Care & Inclusion
WC54-0409,ANSON COURT RESIDENTIAL HOME,Third Party Payments,Private Contractor Fees,73373-RESIDENTIAL & NURSING CARE PLACEMENTS,"1,862.86",Revenue,17/03/2015,Social Care & Inclusion
WC54-0410,ANSON COURT RESIDENTIAL HOME,Third Party Payments,Private Contractor Fees,73373-RESIDENTIAL & NURSING CARE PLACEMENTS,"3,013.45",Revenue,03/03/2015,Social Care & Inclusion
WC54-0411,ANTERIOR VISION LIMITED,Supplies & Services,Services,73047-CONSULTANTS FEES,"1,750.00",Revenue,25/03/2015,Neighbourhood Services
WC54-0412,REDACTED,Third Party Payments,Private Contractor Fees,74006-HOLIDAY/CHRISTMAS ALLOWANCE-FOSTER CARERS-OTH AGENCY PROVISION,"1,364.56",Revenue,16/03/2015,Childrens
WC54-0413,REDACTED,Third Party Payments,Private Contractor Fees,74006-HOLIDAY/CHRISTMAS ALLOWANCE-FOSTER CARERS-OTH AGENCY PROVISION,561.32,Revenue,16/03/2015,Childrens
WC54-0414,APCOA PARKING SERVICES (UK) LTD,Supplies & Services,Other Supplies & Services,83900-CIVIC EVENTS-OTHER DEMOCRACY COSTS,700,Revenue,27/03/2015,Resources
WC54-0415,APCOA PARKING SERVICES (UK) LTD,Third Party Payments,Private Contractor Fees,73025-PROFESSIONAL SERVICES-PRIV CONTRACTOR & OTHER AGENCIES,"43,708.65",Revenue,24/03/2015,Neighbourhood Services
WC54-0416,APIC UK LTD,Capital,Capital,01006-SITE WORKS MAIN CONTRACTORS,"10,828.75",Capital,18/03/2015,Childrens
WC54-0417,APPLE CONSTRUCTION TRAINING LTD,Employees,Training,30030-EXTERNAL TRAINING,"2,000.00",Revenue,09/03/2015,Neighbourhood Services
WC54-0418,APPLE CONSTRUCTION TRAINING LTD,Employees,Training,30030-EXTERNAL TRAINING,"2,000.00",Revenue,19/03/2015,Neighbourhood Services
WC54-0419,APSE 001,Employees,Training,30030-EXTERNAL TRAINING,507,Revenue,16/03/2015,Neighbourhood Services
WC54-0420,ARBORETUM NURSING HOME.,Third Party Payments,Private Contractor Fees,73373-RESIDENTIAL & NURSING CARE PLACEMENTS,276.17,Revenue,17/03/2015,Social Care & Inclusion
WC54-0421,ARBORETUM NURSING HOME.,Third Party Payments,Private Contractor Fees,73373-RESIDENTIAL & NURSING CARE PLACEMENTS,276.17,Revenue,17/03/2015,Social Care & Inclusion
WC54-0422,ARBORETUM NURSING HOME.,Third Party Payments,Private Contractor Fees,73373-RESIDENTIAL & NURSING CARE PLACEMENTS,483.29,Revenue,17/03/2015,Social Care & Inclusion
WC54-0423,ARBORETUM NURSING HOME.,Third Party Payments,Private Contractor Fees,73373-RESIDENTIAL & NURSING CARE PLACEMENTS,552.33,Revenue,25/03/2015,Social Care & Inclusion
WC54-0424,ARBORETUM NURSING HOME.,Third Party Payments,Private Contractor Fees,73373-RESIDENTIAL & NURSING CARE PLACEMENTS,"1,518.91",Revenue,17/03/2015,Social Care & Inclusion
WC54-0425,ARBORETUM NURSING HOME.,Third Party Payments,Private Contractor Fees,73373-RESIDENTIAL & NURSING CARE PLACEMENTS,"1,656.99",Revenue,17/03/2015,Social Care & Inclusion
WC54-0426,ARBORETUM NURSING HOME.,Third Party Payments,Private Contractor Fees,73373-RESIDENTIAL & NURSING CARE PLACEMENTS,"1,656.99",Revenue,17/03/2015,Social Care & Inclusion
WC54-0427,ARBORETUM NURSING HOME.,Third Party Payments,Private Contractor Fees,73373-RESIDENTIAL & NURSING CARE PLACEMENTS,"1,933.16",Revenue,25/03/2015,Social Care & Inclusion
WC54-0428,ARBORETUM NURSING HOME.,Third Party Payments,Private Contractor Fees,73373-RESIDENTIAL & NURSING CARE PLACEMENTS,"2,278.36",Revenue,25/03/2015,Social Care & Inclusion
WC54-0429,ARBORETUM NURSING HOME.,Third Party Payments,Private Contractor Fees,73373-RESIDENTIAL & NURSING CARE PLACEMENTS,"2,331.45",Revenue,10/03/2015,Social Care & Inclusion
WC54-0430,ARBORETUM NURSING HOME.,Third Party Payments,Private Contractor Fees,73373-RESIDENTIAL & NURSING CARE PLACEMENTS,"2,347.41",Revenue,10/03/2015,Social Care & Inclusion
WC54-0431,ARBORETUM NURSING HOME.,Third Party Payments,Private Contractor Fees,73373-RESIDENTIAL & NURSING CARE PLACEMENTS,"2,416.45",Revenue,10/03/2015,Social Care & Inclusion
WC54-0432,ARBORETUM NURSING HOME.,Third Party Payments,Private Contractor Fees,73373-RESIDENTIAL & NURSING CARE PLACEMENTS,"2,417.35",Revenue,10/03/2015,Social Care & Inclusion
WC54-0433,ARBORETUM NURSING HOME.,Third Party Payments,Private Contractor Fees,73373-RESIDENTIAL & NURSING CARE PLACEMENTS,"2,417.35",Revenue,10/03/2015,Social Care & Inclusion
WC54-0434,ARBORETUM NURSING HOME.,Third Party Payments,Private Contractor Fees,73373-RESIDENTIAL & NURSING CARE PLACEMENTS,"2,559.55",Revenue,10/03/2015,Social Care & Inclusion
WC54-0435,ARBORETUM NURSING HOME.,Third Party Payments,Private Contractor Fees,73019-PSE'S-PRIV CONTRACTOR FEES,"7,821.44",Revenue,24/03/2015,Social Care & Inclusion
WC54-0436,ARBORETUM NURSING HOME.,Third Party Payments,Private Contractor Fees,73019-PSE'S-PRIV CONTRACTOR FEES,"14,142.86",Revenue,24/03/2015,Social Care & Inclusion
WC54-0437,ARBORETUM NURSING HOME.,Third Party Payments,Private Contractor Fees,73019-PSE'S-PRIV CONTRACTOR FEES,"15,000.00",Revenue,24/03/2015,Social Care & Inclusion
WC54-0438,ARBORETUM NURSING HOME.,Third Party Payments,Private Contractor Fees,73019-PSE'S-PRIV CONTRACTOR FEES,"15,000.00",Revenue,24/03/2015,Social Care & Inclusion
WC54-0439,ARCHWAY TCS LTD,Third Party Payments,Private Contractor Fees,73025-PROFESSIONAL SERVICES-PRIV CONTRACTOR & OTHER AGENCIES,27.66,Revenue,23/03/2015,Neighbourhood Services
WC54-0440,ARCHWAY TCS LTD,Supplies & Services,"Equip,Furniture & Materials",60537-VEHICLE WASH PLANT-MATERIALS,"1,359.84",Revenue,23/03/2015,Neighbourhood Services
WC54-0441,ASDA PHARMACY,Supplies & Services,Services,63000-PROFESSIONAL FEES AND SERVICES,62.5,Revenue,20/03/2015,Neighbourhood Services
WC54-0442,ASDA PHARMACY,Supplies & Services,Services,63000-PROFESSIONAL FEES AND SERVICES,160,Revenue,20/03/2015,Neighbourhood Services
WC54-0443,ASDA PHARMACY,Supplies & Services,Services,63000-PROFESSIONAL FEES AND SERVICES,179.3,Revenue,20/03/2015,Neighbourhood Services
WC54-0444,ASDA PHARMACY,Supplies & Services,Services,63000-PROFESSIONAL FEES AND SERVICES,230.1,Revenue,20/03/2015,Neighbourhood Services
WC54-0445,ASH GRANGE CARE HOME,Third Party Payments,Private Contractor Fees,73373-RESIDENTIAL & NURSING CARE PLACEMENTS,"-1,868.88",Revenue,17/03/2015,Social Care & Inclusion
WC54-0446,ASH GRANGE CARE HOME,Third Party Payments,Private Contractor Fees,73373-RESIDENTIAL & NURSING CARE PLACEMENTS,"-1,383.97",Revenue,17/03/2015,Social Care & Inclusion
WC54-0447,ASH GRANGE CARE HOME,Third Party Payments,Private Contractor Fees,73373-RESIDENTIAL & NURSING CARE PLACEMENTS,625.89,Revenue,25/03/2015,Social Care & Inclusion
WC54-0448,ASH GRANGE CARE HOME,Third Party Payments,Private Contractor Fees,73373-RESIDENTIAL & NURSING CARE PLACEMENTS,"1,383.97",Revenue,10/03/2015,Social Care & Inclusion
WC54-0449,ASH GRANGE CARE HOME,Third Party Payments,Private Contractor Fees,73373-RESIDENTIAL & NURSING CARE PLACEMENTS,"1,460.40",Revenue,10/03/2015,Social Care & Inclusion
WC54-0450,ASH GRANGE CARE HOME,Third Party Payments,Private Contractor Fees,73373-RESIDENTIAL & NURSING CARE PLACEMENTS,"1,460.40",Revenue,10/03/2015,Social Care & Inclusion
WC54-0451,ASH GRANGE CARE HOME,Third Party Payments,Private Contractor Fees,73373-RESIDENTIAL & NURSING CARE PLACEMENTS,"1,460.40",Revenue,10/03/2015,Social Care & Inclusion
WC54-0452,ASH GRANGE CARE HOME,Third Party Payments,Private Contractor Fees,73373-RESIDENTIAL & NURSING CARE PLACEMENTS,"1,937.56",Revenue,03/03/2015,Social Care & Inclusion
WC54-0453,ASH GRANGE CARE HOME,Third Party Payments,Private Contractor Fees,73373-RESIDENTIAL & NURSING CARE PLACEMENTS,"1,937.56",Revenue,10/03/2015,Social Care & Inclusion
WC54-0454,ASH GRANGE CARE HOME,Third Party Payments,Private Contractor Fees,73373-RESIDENTIAL & NURSING CARE PLACEMENTS,"1,937.56",Revenue,10/03/2015,Social Care & Inclusion
WC54-0455,ASH GRANGE CARE HOME,Third Party Payments,Private Contractor Fees,73373-RESIDENTIAL & NURSING CARE PLACEMENTS,"1,937.56",Revenue,10/03/2015,Social Care & Inclusion
WC54-0456,ASH GRANGE CARE HOME,Third Party Payments,Private Contractor Fees,73373-RESIDENTIAL & NURSING CARE PLACEMENTS,"1,937.56",Revenue,10/03/2015,Social Care & Inclusion
WC54-0457,ASH GRANGE CARE HOME,Third Party Payments,Private Contractor Fees,73373-RESIDENTIAL & NURSING CARE PLACEMENTS,"1,937.56",Revenue,10/03/2015,Social Care & Inclusion
WC54-0458,ASH GRANGE CARE HOME,Third Party Payments,Private Contractor Fees,73373-RESIDENTIAL & NURSING CARE PLACEMENTS,"1,937.56",Revenue,10/03/2015,Social Care & Inclusion
WC54-0459,ASH GRANGE CARE HOME,Third Party Payments,Private Contractor Fees,73373-RESIDENTIAL & NURSING CARE PLACEMENTS,"1,937.56",Revenue,10/03/2015,Social Care & Inclusion
WC54-0460,ASH GRANGE CARE HOME,Third Party Payments,Private Contractor Fees,73373-RESIDENTIAL & NURSING CARE PLACEMENTS,"1,937.56",Revenue,10/03/2015,Social Care & Inclusion
WC54-0461,ASH GRANGE CARE HOME,Third Party Payments,Private Contractor Fees,73373-RESIDENTIAL & NURSING CARE PLACEMENTS,"1,937.56",Revenue,10/03/2015,Social Care & Inclusion
WC54-0462,ASH GRANGE CARE HOME,Third Party Payments,Private Contractor Fees,73373-RESIDENTIAL & NURSING CARE PLACEMENTS,"2,012.64",Revenue,10/03/2015,Social Care & Inclusion
WC54-0463,ASH GRANGE CARE HOME,Third Party Payments,Private Contractor Fees,73373-RESIDENTIAL & NURSING CARE PLACEMENTS,"2,070.60",Revenue,10/03/2015,Social Care & Inclusion
WC54-0464,ASH GRANGE CARE HOME,Third Party Payments,Private Contractor Fees,73373-RESIDENTIAL & NURSING CARE PLACEMENTS,"2,864.40",Revenue,10/03/2015,Social Care & Inclusion
WC54-0465,ASHBOURNE LODGE,Third Party Payments,Private Contractor Fees,73373-RESIDENTIAL & NURSING CARE PLACEMENTS,"2,126.16",Revenue,10/03/2015,Social Care & Inclusion
WC54-0466,ASKEWS AND HOLTS LIBRARY SERVICES LTD,Supplies & Services,"Equip,Furniture & Materials",60501-LIBRARY BOOKS,257.56,Revenue,03/03/2015,Neighbourhood Services
WC54-0467,ASKEWS AND HOLTS LIBRARY SERVICES LTD,Supplies & Services,"Equip,Furniture & Materials",60501-LIBRARY BOOKS,258.25,Revenue,04/03/2015,Neighbourhood Services
WC54-0468,ASKEWS AND HOLTS LIBRARY SERVICES LTD,Supplies & Services,"Equip,Furniture & Materials",60501-LIBRARY BOOKS,294.87,Revenue,26/03/2015,Neighbourhood Services
WC54-0469,ASKEWS AND HOLTS LIBRARY SERVICES LTD,Supplies & Services,"Equip,Furniture & Materials",60501-LIBRARY BOOKS,298.83,Revenue,27/03/2015,Neighbourhood Services
WC54-0470,ASKEWS AND HOLTS LIBRARY SERVICES LTD,Supplies & Services,"Equip,Furniture & Materials",60501-LIBRARY BOOKS,361.64,Revenue,23/03/2015,Neighbourhood Services
WC54-0471,ASKEWS AND HOLTS LIBRARY SERVICES LTD,Supplies & Services,"Equip,Furniture & Materials",60501-LIBRARY BOOKS,377.68,Revenue,23/03/2015,Neighbourhood Services
WC54-0472,ASKEWS AND HOLTS LIBRARY SERVICES LTD,Supplies & Services,"Equip,Furniture & Materials",60501-LIBRARY BOOKS,460.34,Revenue,27/03/2015,Neighbourhood Services
WC54-0473,ASKEWS AND HOLTS LIBRARY SERVICES LTD,Supplies & Services,"Equip,Furniture & Materials",60501-LIBRARY BOOKS,465.7,Revenue,18/03/2015,Neighbourhood Services
WC54-0474,ASKEWS AND HOLTS LIBRARY SERVICES LTD,Supplies & Services,"Equip,Furniture & Materials",60501-LIBRARY BOOKS,538.36,Revenue,04/03/2015,Neighbourhood Services
WC54-0475,ASKEWS AND HOLTS LIBRARY SERVICES LTD,Supplies & Services,"Equip,Furniture & Materials",60501-LIBRARY BOOKS,573.53,Revenue,26/03/2015,Neighbourhood Services
WC54-0476,ASKEWS AND HOLTS LIBRARY SERVICES LTD,Supplies & Services,"Equip,Furniture & Materials",60501-LIBRARY BOOKS,653.42,Revenue,26/03/2015,Neighbourhood Services
WC54-0477,ASKEWS AND HOLTS LIBRARY SERVICES LTD,Supplies & Services,"Equip,Furniture & Materials",60501-LIBRARY BOOKS,774.36,Revenue,26/03/2015,Neighbourhood Services
WC54-0478,ASKEWS AND HOLTS LIBRARY SERVICES LTD,Supplies & Services,"Equip,Furniture & Materials",60501-LIBRARY BOOKS,"1,479.46",Revenue,19/03/2015,Neighbourhood Services
WC54-0479,REDACTED,Transfer Payments,Transfer Payments,76422-DIRECT PAYMENTS TO SOCIAL SERVICES CLIENTS,616.25,Revenue,18/03/2015,Social Care & Inclusion
WC54-0480,ASSOCIATION OF ACCOUNTING TECHNICIANS.,Supplies & Services,Other Supplies & Services,63013-EXAMINATIONS-SERVICES,283,Revenue,04/03/2015,Neighbourhood Services
WC54-0481,ASSOCIATION OF COLLEGES,Employees,Training,30030-EXTERNAL TRAINING,346.5,Revenue,30/03/2015,Neighbourhood Services
WC54-0482,A-STAT OFFICE TECHNOLOGY LTD,Central,Internal Recharges,82012-PRINT & DESIGN CHARGES-INTERNAL,263.11,Revenue,09/03/2015,Childrens
WC54-0483,A-STAT OFFICE TECHNOLOGY LTD,Supplies & Services,"Printing, Stationery & Office Exp",62000-EXTERNAL PRINTING SERVICES,409.16,Revenue,13/03/2015,Childrens
WC54-0484,ASTON CHILDRENS CARE,Third Party Payments,Private Contractor Fees,74036-EXTERNAL RESIDENTIAL CARE-OTH AGENCY PROVISION,"10,628.35",Revenue,10/03/2015,Childrens
WC54-0485,ATHWAL NEWS LTD,Supplies & Services,"Equip,Furniture & Materials",60501-LIBRARY BOOKS,545.96,Revenue,09/03/2015,Neighbourhood Services
WC54-0486,ATHWAL NEWS LTD,Supplies & Services,"Equip,Furniture & Materials",60501-LIBRARY BOOKS,550.77,Revenue,20/03/2015,Neighbourhood Services
WC54-0487,AURORA GRAPHICS & DISPLAYS LTD,Supplies & Services,"Printing, Stationery & Office Exp",62008-OUTWORK-PRINT ROOM,287.72,Revenue,23/03/2015,Resources
WC54-0488,AURORA GRAPHICS & DISPLAYS LTD,Supplies & Services,"Printing, Stationery & Office Exp",62008-OUTWORK-PRINT ROOM,303,Revenue,05/03/2015,Resources
WC54-0489,AURORA GRAPHICS & DISPLAYS LTD,Supplies & Services,"Printing, Stationery & Office Exp",62008-OUTWORK-PRINT ROOM,"1,296.20",Revenue,19/03/2015,Resources
WC54-0490,AUTISM WEST MIDLANDS,Third Party Payments,Private Contractor Fees,73373-RESIDENTIAL & NURSING CARE PLACEMENTS,"6,606.60",Revenue,03/03/2015,Social Care & Inclusion
WC54-0491,AUTISM WEST MIDLANDS,Third Party Payments,Private Contractor Fees,73373-RESIDENTIAL & NURSING CARE PLACEMENTS,"7,314.45",Revenue,27/03/2015,Social Care & Inclusion
WC54-0492,AUTISM WEST MIDLANDS 001,Third Party Payments,Private Contractor Fees,73373-RESIDENTIAL & NURSING CARE PLACEMENTS,"4,448.16",Revenue,03/03/2015,Social Care & Inclusion
WC54-0493,AUTISM WEST MIDLANDS 001,Third Party Payments,Private Contractor Fees,73373-RESIDENTIAL & NURSING CARE PLACEMENTS,"4,924.75",Revenue,27/03/2015,Social Care & Inclusion
WC54-0494,AUTOMATIC GEARBOX SPECIALISTS,Supplies & Services,"Equip,Furniture & Materials",60500-GENERAL MATERIALS,299,Revenue,26/03/2015,Neighbourhood Services
WC54-0495,AUTORITE INDUSTRIES (WILLENHALL)LTD,Third Party Payments,Private Contractor Fees,73025-PROFESSIONAL SERVICES-PRIV CONTRACTOR & OTHER AGENCIES,300,Revenue,24/03/2015,Neighbourhood Services
WC54-0496,REDACTED,Transfer Payments,Transfer Payments,76422-DIRECT PAYMENTS TO SOCIAL SERVICES CLIENTS,"3,315.00",Revenue,18/03/2015,Social Care & Inclusion
WC54-0497,REDACTED,Supplies & Services,"Equip,Furniture & Materials",60500-GENERAL MATERIALS,675,Revenue,13/03/2015,Childrens
WC54-0498,REDACTED,Third Party Payments,Private Contractor Fees,74006-HOLIDAY/CHRISTMAS ALLOWANCE-FOSTER CARERS-OTH AGENCY PROVISION,796,Revenue,02/03/2015,Childrens
WC54-0499,REDACTED,Supplies & Services,Other Supplies & Services,62515-MISCELLANEOUS SUPPLIES,896.24,Revenue,02/03/2015,Childrens
WC54-0500,REDACTED,Supplies & Services,Other Supplies & Services,62515-MISCELLANEOUS SUPPLIES,898.12,Revenue,30/03/2015,Childrens
WC54-0501,REDACTED,Third Party Payments,Private Contractor Fees,74006-HOLIDAY/CHRISTMAS ALLOWANCE-FOSTER CARERS-OTH AGENCY PROVISION,997.56,Revenue,30/03/2015,Childrens
WC54-0502,REDACTED,Supplies & Services,Other Supplies & Services,62515-MISCELLANEOUS SUPPLIES,"1,428.44",Revenue,02/03/2015,Childrens
WC54-0503,REDACTED,Supplies & Services,Other Supplies & Services,62515-MISCELLANEOUS SUPPLIES,"1,431.45",Revenue,30/03/2015,Childrens
WC54-0504,REDACTED,Third Party Payments,Private Contractor Fees,74006-HOLIDAY/CHRISTMAS ALLOWANCE-FOSTER CARERS-OTH AGENCY PROVISION,"1,936.64",Revenue,02/03/2015,Childrens
WC54-0505,REDACTED,Third Party Payments,Private Contractor Fees,74006-HOLIDAY/CHRISTMAS ALLOWANCE-FOSTER CARERS-OTH AGENCY PROVISION,"1,942.88",Revenue,30/03/2015,Childrens
WC54-0506,BAAF,Supplies & Services,Communications & Computing,68001-PUBLICITY & ADVERTISING (NOT STAFF ADVERTISING),455.7,Revenue,25/03/2015,Childrens
WC54-0507,BAAF,Supplies & Services,Communications & Computing,68001-PUBLICITY & ADVERTISING (NOT STAFF ADVERTISING),"1,008.00",Revenue,01/03/2015,Childrens
WC54-0508,BAAF,Supplies & Services,Communications & Computing,68001-PUBLICITY & ADVERTISING (NOT STAFF ADVERTISING),"1,210.65",Revenue,26/03/2015,Childrens
WC54-0509,BAAF,Supplies & Services,Subscriptions,64500-PUBLICATIONS/ORGANISATIONS-SUBSCRIPTIONS,"4,749.89",Revenue,01/03/2015,Childrens
WC54-0510,BAART HARRIES NEWALL,Capital,Capital,01005-ARCHITECTS INSTRUCTION,"5,950.00",Capital,27/03/2015,Neighbourhood Services
WC54-0511,REDACTED,Transfer Payments,Transfer Payments,76422-DIRECT PAYMENTS TO SOCIAL SERVICES CLIENTS,"1,079.00",Revenue,18/03/2015,Social Care & Inclusion
WC54-0512,BAKER HALL PARTNERSHIP,Capital,Capital,01007-ARCHITECTS ASSISTANTS TIME,"3,750.00",Capital,13/03/2015,Childrens
WC54-0513,REDACTED,Transfer Payments,Transfer Payments,76422-DIRECT PAYMENTS TO SOCIAL SERVICES CLIENTS,"3,562.40",Revenue,18/03/2015,Social Care & Inclusion
WC54-0514,REDACTED,Transfer Payments,Transfer Payments,76422-DIRECT PAYMENTS TO SOCIAL SERVICES CLIENTS,775,Revenue,18/03/2015,Social Care & Inclusion
WC54-0515,REDACTED,Transfer Payments,Transfer Payments,76422-DIRECT PAYMENTS TO SOCIAL SERVICES CLIENTS,"1,425.05",Revenue,18/03/2015,Social Care & Inclusion
WC54-0516,REDACTED,Transfer Payments,Transfer Payments,76422-DIRECT PAYMENTS TO SOCIAL SERVICES CLIENTS,562.82,Revenue,18/03/2015,Social Care & Inclusion
WC54-0517,REDACTED,Transfer Payments,Transfer Payments,76422-DIRECT PAYMENTS TO SOCIAL SERVICES CLIENTS,"1,643.60",Revenue,18/03/2015,Social Care & Inclusion
WC54-0518,REDACTED,Transfer Payments,Transfer Payments,76422-DIRECT PAYMENTS TO SOCIAL SERVICES CLIENTS,"1,600.00",Revenue,18/03/2015,Social Care & Inclusion
WC54-0519,REDACTED,Transfer Payments,Transfer Payments,76422-DIRECT PAYMENTS TO SOCIAL SERVICES CLIENTS,860.31,Revenue,09/03/2015,Social Care & Inclusion
WC54-0520,REDACTED,Transfer Payments,Transfer Payments,76422-DIRECT PAYMENTS TO SOCIAL SERVICES CLIENTS,790.65,Revenue,18/03/2015,Social Care & Inclusion
WC54-0521,BARCHAM TREES PLC,Premises,Premises-Repairs & Maintenance,41090-LANDSCAPING GROUNDS MAINTENANCE,421,Revenue,19/03/2015,Neighbourhood Services
WC54-0522,BARNARDOS SERVICES LTD,Employees,Training,30000-INTERNAL TRAINING,745,Revenue,05/03/2015,Childrens
WC54-0523,BARNARDOS SERVICES LTD,Third Party Payments,Private Contractor Fees,74037-INDEPENDENT FOSTER CARE-OTH AGENCY PROVISION,"4,627.86",Revenue,23/03/2015,Childrens
WC54-0524,BC MUSIC,Supplies & Services,Services,63000-PROFESSIONAL FEES AND SERVICES,270,Revenue,24/03/2015,Neighbourhood Services
WC54-0525,BEADEN POWERLEC LIMITED,Supplies & Services,"Equip,Furniture & Materials",60008-MAINTENANCE-FURNITURE & EQUIPMENT,481,Revenue,31/03/2015,Neighbourhood Services
WC54-0526,BEADEN POWERLEC LIMITED,Premises,Premises-Repairs & Maintenance,40413-NON PMI MTCE,"1,140.00",Revenue,31/03/2015,Neighbourhood Services
WC54-0527,REDACTED,Supplies & Services,Other Supplies & Services,62515-MISCELLANEOUS SUPPLIES,916.16,Revenue,30/03/2015,Childrens
WC54-0528,REDACTED,Supplies & Services,Other Supplies & Services,62515-MISCELLANEOUS SUPPLIES,"1,175.36",Revenue,02/03/2015,Childrens
WC54-0529,REDACTED,Transfer Payments,Transfer Payments,76422-DIRECT PAYMENTS TO SOCIAL SERVICES CLIENTS,802.2,Revenue,18/03/2015,Social Care & Inclusion
WC54-0530,BECKIE'S CHILDMINDING,Third Party Payments,Grants to Other Orgs,66505-OTHER-GRANTS TO OTHER ORGS,"1,433.00",Revenue,17/03/2015,Childrens
WC54-0531,BECKYS CHILDMINDING SERVICE,Third Party Payments,Grants to Other Orgs,66505-OTHER-GRANTS TO OTHER ORGS,440.1,Revenue,17/03/2015,Childrens
WC54-0532,REDACTED,Supplies & Services,Other Supplies & Services,62515-MISCELLANEOUS SUPPLIES,351.13,Revenue,30/03/2015,Childrens
WC54-0533,REDACTED,Supplies & Services,Other Supplies & Services,62515-MISCELLANEOUS SUPPLIES,512.24,Revenue,02/03/2015,Childrens
WC54-0534,REDACTED,Third Party Payments,Private Contractor Fees,74006-HOLIDAY/CHRISTMAS ALLOWANCE-FOSTER CARERS-OTH AGENCY PROVISION,561.32,Revenue,02/03/2015,Childrens
WC54-0535,REDACTED,Third Party Payments,Private Contractor Fees,74006-HOLIDAY/CHRISTMAS ALLOWANCE-FOSTER CARERS-OTH AGENCY PROVISION,563.12,Revenue,30/03/2015,Childrens
WC54-0536,BELLEVUE COURT CARE HOME,Third Party Payments,Private Contractor Fees,73373-RESIDENTIAL & NURSING CARE PLACEMENTS,"1,486.96",Revenue,10/03/2015,Social Care & Inclusion
WC54-0537,BELLEVUE COURT CARE HOME,Third Party Payments,Private Contractor Fees,73373-RESIDENTIAL & NURSING CARE PLACEMENTS,"1,494.00",Revenue,10/03/2015,Social Care & Inclusion
WC54-0538,BELLEVUE COURT CARE HOME,Third Party Payments,Private Contractor Fees,73373-RESIDENTIAL & NURSING CARE PLACEMENTS,"1,530.16",Revenue,10/03/2015,Social Care & Inclusion
WC54-0539,REDACTED,Transfer Payments,Transfer Payments,76422-DIRECT PAYMENTS TO SOCIAL SERVICES CLIENTS,"2,756.25",Revenue,18/03/2015,Social Care & Inclusion
WC54-0540,BENTFIELD PRIMARY SCHOOL,Transfer Payments,Transfer Payments,77300-ISB-FORMULA ALLOCATION,"1,600.00",Revenue,18/03/2015,Childrens
WC54-0541,BENTLEY COURT PRIORY,Third Party Payments,Private Contractor Fees,73373-RESIDENTIAL & NURSING CARE PLACEMENTS,"1,933.16",Revenue,10/03/2015,Social Care & Inclusion
WC54-0542,BENTLEY WEST J M I,Supplies & Services,Communications & Computing,63604-TELEPHONES MOBILE/PAGERS-TELEPHONES,584.41,Revenue,09/03/2015,Childrens
WC54-0543,BENTLEY WEST J M I,Supplies & Services,Communications & Computing,63604-TELEPHONES MOBILE/PAGERS-TELEPHONES,606.85,Revenue,09/03/2015,Childrens
WC54-0544,BENTLEY WEST J M I,Supplies & Services,Other Supplies & Services,63128-HIRE OF ROOM-SERVICES-FEES,"1,500.00",Revenue,27/03/2015,Childrens
WC54-0545,BENTLEY WEST J M I,Employees,Agency,34305-AGENCY STAFF-EMPLOYEES,"2,506.68",Revenue,09/03/2015,Childrens
WC54-0546,BENTLEY WEST J M I,Employees,Agency,34305-AGENCY STAFF-EMPLOYEES,"3,616.85",Revenue,09/03/2015,Childrens
WC54-0547,BENTLEY WEST J M I,Employees,Agency,34305-AGENCY STAFF-EMPLOYEES,"3,660.94",Revenue,09/03/2015,Childrens
WC54-0548,BENTLEY WEST J M I,Supplies & Services,Other Supplies & Services,63128-HIRE OF ROOM-SERVICES-FEES,"5,000.00",Revenue,27/03/2015,Childrens
WC54-0549,REDACTED,Transfer Payments,Transfer Payments,76422-DIRECT PAYMENTS TO SOCIAL SERVICES CLIENTS,530.7,Revenue,18/03/2015,Social Care & Inclusion
WC54-0550,BERTRAM TRADING LTD T/A BERTRAM LIBRARY SERVICES),Supplies & Services,"Equip,Furniture & Materials",60501-LIBRARY BOOKS,293.44,Revenue,03/03/2015,Neighbourhood Services
WC54-0551,REDACTED,Transfer Payments,Transfer Payments,76422-DIRECT PAYMENTS TO SOCIAL SERVICES CLIENTS,"1,140.00",Revenue,18/03/2015,Social Care & Inclusion
WC54-0552,REDACTED,Supplies & Services,Other Supplies & Services,62515-MISCELLANEOUS SUPPLIES,"1,028.44",Revenue,02/03/2015,Childrens
WC54-0553,REDACTED,Supplies & Services,Other Supplies & Services,62515-MISCELLANEOUS SUPPLIES,"1,031.45",Revenue,30/03/2015,Childrens
WC54-0554,REDACTED,Third Party Payments,Private Contractor Fees,74006-HOLIDAY/CHRISTMAS ALLOWANCE-FOSTER CARERS-OTH AGENCY PROVISION,"1,122.64",Revenue,02/03/2015,Childrens
WC54-0555,REDACTED,Third Party Payments,Private Contractor Fees,74006-HOLIDAY/CHRISTMAS ALLOWANCE-FOSTER CARERS-OTH AGENCY PROVISION,"1,126.24",Revenue,30/03/2015,Childrens
WC54-0556,REDACTED,Transfer Payments,Transfer Payments,76422-DIRECT PAYMENTS TO SOCIAL SERVICES CLIENTS,"1,210.00",Revenue,18/03/2015,Social Care & Inclusion
WC54-0557,BESCOT LODGE RESIDENTIAL CARE HOME,Third Party Payments,Private Contractor Fees,73373-RESIDENTIAL & NURSING CARE PLACEMENTS,"-1,369.75",Revenue,25/03/2015,Social Care & Inclusion
WC54-0558,BESCOT LODGE RESIDENTIAL CARE HOME,Third Party Payments,Private Contractor Fees,73373-RESIDENTIAL & NURSING CARE PLACEMENTS,493.11,Revenue,17/03/2015,Social Care & Inclusion
WC54-0559,BESCOT LODGE RESIDENTIAL CARE HOME,Third Party Payments,Private Contractor Fees,73373-RESIDENTIAL & NURSING CARE PLACEMENTS,986.22,Revenue,27/03/2015,Social Care & Inclusion
WC54-0560,BESCOT LODGE RESIDENTIAL CARE HOME,Third Party Payments,Private Contractor Fees,73373-RESIDENTIAL & NURSING CARE PLACEMENTS,"1,205.38",Revenue,17/03/2015,Social Care & Inclusion
WC54-0561,BESCOT LODGE RESIDENTIAL CARE HOME,Third Party Payments,Private Contractor Fees,73373-RESIDENTIAL & NURSING CARE PLACEMENTS,"1,534.12",Revenue,17/03/2015,Social Care & Inclusion
WC54-0562,BESCOT LODGE RESIDENTIAL CARE HOME,Third Party Payments,Private Contractor Fees,73373-RESIDENTIAL & NURSING CARE PLACEMENTS,"1,534.12",Revenue,25/03/2015,Social Care & Inclusion
WC54-0563,BESCOT LODGE RESIDENTIAL CARE HOME,Third Party Payments,Private Contractor Fees,73373-RESIDENTIAL & NURSING CARE PLACEMENTS,"1,534.12",Revenue,25/03/2015,Social Care & Inclusion
WC54-0564,BESCOT LODGE RESIDENTIAL CARE HOME,Third Party Payments,Private Contractor Fees,73373-RESIDENTIAL & NURSING CARE PLACEMENTS,"1,616.87",Revenue,10/03/2015,Social Care & Inclusion
WC54-0565,BESCOT LODGE RESIDENTIAL CARE HOME,Third Party Payments,Private Contractor Fees,73373-RESIDENTIAL & NURSING CARE PLACEMENTS,"1,616.87",Revenue,17/03/2015,Social Care & Inclusion
WC54-0566,BESCOT LODGE RESIDENTIAL CARE HOME,Third Party Payments,Private Contractor Fees,73373-RESIDENTIAL & NURSING CARE PLACEMENTS,"1,643.70",Revenue,17/03/2015,Social Care & Inclusion
WC54-0567,BESCOT LODGE RESIDENTIAL CARE HOME,Third Party Payments,Private Contractor Fees,73373-RESIDENTIAL & NURSING CARE PLACEMENTS,"1,643.70",Revenue,17/03/2015,Social Care & Inclusion
WC54-0568,BESCOT LODGE RESIDENTIAL CARE HOME,Third Party Payments,Private Contractor Fees,73373-RESIDENTIAL & NURSING CARE PLACEMENTS,"1,698.49",Revenue,17/03/2015,Social Care & Inclusion
WC54-0569,BESCOT LODGE RESIDENTIAL CARE HOME,Third Party Payments,Private Contractor Fees,73373-RESIDENTIAL & NURSING CARE PLACEMENTS,"1,698.49",Revenue,17/03/2015,Social Care & Inclusion
WC54-0570,BESCOT LODGE RESIDENTIAL CARE HOME,Third Party Payments,Private Contractor Fees,73373-RESIDENTIAL & NURSING CARE PLACEMENTS,"1,698.49",Revenue,17/03/2015,Social Care & Inclusion
WC54-0571,BESCOT LODGE RESIDENTIAL CARE HOME,Third Party Payments,Private Contractor Fees,73373-RESIDENTIAL & NURSING CARE PLACEMENTS,"1,698.49",Revenue,17/03/2015,Social Care & Inclusion
WC54-0572,BESCOT LODGE RESIDENTIAL CARE HOME,Third Party Payments,Private Contractor Fees,73373-RESIDENTIAL & NURSING CARE PLACEMENTS,"1,698.49",Revenue,17/03/2015,Social Care & Inclusion
WC54-0573,BESCOT LODGE RESIDENTIAL CARE HOME,Third Party Payments,Private Contractor Fees,73373-RESIDENTIAL & NURSING CARE PLACEMENTS,"1,698.49",Revenue,17/03/2015,Social Care & Inclusion
WC54-0574,BESCOT LODGE RESIDENTIAL CARE HOME,Third Party Payments,Private Contractor Fees,73373-RESIDENTIAL & NURSING CARE PLACEMENTS,"1,698.49",Revenue,17/03/2015,Social Care & Inclusion
WC54-0575,BESCOT LODGE RESIDENTIAL CARE HOME,Third Party Payments,Private Contractor Fees,73373-RESIDENTIAL & NURSING CARE PLACEMENTS,"1,698.49",Revenue,17/03/2015,Social Care & Inclusion
WC54-0576,BESCOT LODGE RESIDENTIAL CARE HOME,Third Party Payments,Private Contractor Fees,73373-RESIDENTIAL & NURSING CARE PLACEMENTS,"1,698.49",Revenue,17/03/2015,Social Care & Inclusion
WC54-0577,BESCOT LODGE RESIDENTIAL CARE HOME,Third Party Payments,Private Contractor Fees,73373-RESIDENTIAL & NURSING CARE PLACEMENTS,"1,716.65",Revenue,17/03/2015,Social Care & Inclusion
WC54-0578,BESCOT LODGE RESIDENTIAL CARE HOME,Third Party Payments,Private Contractor Fees,73373-RESIDENTIAL & NURSING CARE PLACEMENTS,"1,716.73",Revenue,17/03/2015,Social Care & Inclusion
WC54-0579,BESCOT PROMOTIONS,Third Party Payments,Private Contractor Fees,73025-PROFESSIONAL SERVICES-PRIV CONTRACTOR & OTHER AGENCIES,"2,600.00",Revenue,02/03/2015,Regeneration
WC54-0580,BEST PRACTICE NETWORK LTD,Supplies & Services,Services,63000-PROFESSIONAL FEES AND SERVICES,"1,980.00",Revenue,23/03/2015,Childrens
WC54-0581,BETHPHAGE.,Third Party Payments,Private Contractor Fees,73374-SUPPORTED & OTHER ACCOMMODATION,650,Revenue,02/03/2015,Social Care & Inclusion
WC54-0582,BETHPHAGE.,Third Party Payments,Private Contractor Fees,73374-SUPPORTED & OTHER ACCOMMODATION,650,Revenue,19/03/2015,Social Care & Inclusion
WC54-0583,BETHPHAGE.,Third Party Payments,Private Contractor Fees,73374-SUPPORTED & OTHER ACCOMMODATION,"1,460.40",Revenue,19/03/2015,Social Care & Inclusion
WC54-0584,BETHPHAGE.,Third Party Payments,Private Contractor Fees,73374-SUPPORTED & OTHER ACCOMMODATION,"1,768.00",Revenue,19/03/2015,Social Care & Inclusion
WC54-0585,BETHPHAGE.,Third Party Payments,Private Contractor Fees,73374-SUPPORTED & OTHER ACCOMMODATION,"2,031.84",Revenue,19/03/2015,Social Care & Inclusion
WC54-0586,BETHPHAGE.,Third Party Payments,Private Contractor Fees,73374-SUPPORTED & OTHER ACCOMMODATION,"3,831.92",Revenue,19/03/2015,Social Care & Inclusion
WC54-0587,REDACTED,Transfer Payments,Transfer Payments,76422-DIRECT PAYMENTS TO SOCIAL SERVICES CLIENTS,"1,186.90",Revenue,18/03/2015,Social Care & Inclusion
WC54-0588,REDACTED,Transfer Payments,Transfer Payments,76422-DIRECT PAYMENTS TO SOCIAL SERVICES CLIENTS,680.29,Revenue,02/03/2015,Social Care & Inclusion
WC54-0589,REDACTED,Transfer Payments,Transfer Payments,76422-DIRECT PAYMENTS TO SOCIAL SERVICES CLIENTS,"2,474.20",Revenue,18/03/2015,Social Care & Inclusion
WC54-0590,REDACTED,Transport,Hire,52000-WITH DRIVER-HIRE OF VEHICLES,739.2,Revenue,18/03/2015,Childrens
WC54-0591,BIBLIOGRAPHIC DATA SERVICES LTD,Supplies & Services,"Equip,Furniture & Materials",60501-LIBRARY BOOKS,"3,500.00",Revenue,26/03/2015,Neighbourhood Services
WC54-0592,BIFFA WASTE SERVICES LTD,Third Party Payments,Private Contractor Fees,73005-LANDFILL PTYS-PRIV CONTRACTOR FEES,977.03,Revenue,12/03/2015,Neighbourhood Services
WC54-0593,BIFFA WASTE SERVICES LTD,Third Party Payments,Private Contractor Fees,73039-LANDFILL TAX-PRIV CONTRACTOR FEES,"6,054.40",Revenue,12/03/2015,Neighbourhood Services
WC54-0594,REDACTED,Transfer Payments,Transfer Payments,76422-DIRECT PAYMENTS TO SOCIAL SERVICES CLIENTS,609.65,Revenue,18/03/2015,Childrens
WC54-0595,REDACTED,Transfer Payments,Transfer Payments,76422-DIRECT PAYMENTS TO SOCIAL SERVICES CLIENTS,671.5,Revenue,18/03/2015,Childrens
WC54-0596,BIOGAS TECHNOLOGY LIMITED,Supplies & Services,"Equip,Furniture & Materials",60008-MAINTENANCE-FURNITURE & EQUIPMENT,360,Revenue,26/03/2015,Neighbourhood Services
WC54-0597,BIRCHILLS C OF E COMMUNITY ACADEMY,Third Party Payments,Grants to Other Orgs,66505-OTHER-GRANTS TO OTHER ORGS,"7,206.40",Revenue,27/03/2015,Childrens
WC54-0598,BIRMINGHAM CITY COUNCIL,Third Party Payments,Private Contractor Fees,73025-PROFESSIONAL SERVICES-PRIV CONTRACTOR & OTHER AGENCIES,"12,444.00",Revenue,23/03/2015,Neighbourhood Services
WC54-0599,BIRMINGHAM CITY UNIVERSITY,Employees,Training,30030-EXTERNAL TRAINING,550,Revenue,24/03/2015,Social Care & Inclusion
WC54-0600,BIRMINGHAM CITY UNIVERSITY,Employees,Training,30030-EXTERNAL TRAINING,550,Revenue,24/03/2015,Social Care & Inclusion
WC54-0601,BIRMINGHAM WOMENS NHS FOUNDATION TRUST,Supplies & Services,Services,63000-PROFESSIONAL FEES AND SERVICES,"1,700.00",Revenue,18/03/2015,Neighbourhood Services
WC54-0602,BLACK COUNTRY CHAMBER OF COMMERCE & INDUSTRY.,Supplies & Services,Services,63000-PROFESSIONAL FEES AND SERVICES,"1,265.00",Revenue,20/03/2015,Regeneration
WC54-0603,BLACK COUNTRY CONSORTIUM LIMITED,Supplies & Services,Services,63102-CONSULTANTS FEES - CORPORATE,418.13,Revenue,31/03/2015,Regeneration
WC54-0604,BLACK COUNTRY CONSORTIUM LIMITED,Supplies & Services,Services,63102-CONSULTANTS FEES - CORPORATE,504.53,Revenue,27/03/2015,Regeneration
WC54-0605,BLACK COUNTRY CONSORTIUM LIMITED,Supplies & Services,Services,63000-PROFESSIONAL FEES AND SERVICES,"2,305.80",Revenue,20/03/2015,Regeneration
WC54-0606,BLACK COUNTRY CONSORTIUM LIMITED,Supplies & Services,Services,63000-PROFESSIONAL FEES AND SERVICES,"2,305.80",Revenue,20/03/2015,Regeneration
WC54-0607,BLACK COUNTRY PARTNERSHIP NHS,Third Party Payments,Joint Arrangements,71007-CONTRIBUTION TO PCT,"53,550.00",Revenue,18/03/2015,Social Care & Inclusion
WC54-0608,BLACK COUNTRY PARTNERSHIP NHS,Third Party Payments,Joint Arrangements,71007-CONTRIBUTION TO PCT,"261,332.09",Revenue,24/03/2015,Social Care & Inclusion
WC54-0609,BLAKENALL HEATH JMI SCHOOL,Transfer Payments,Transfer Payments,77300-ISB-FORMULA ALLOCATION,"86,631.80",Revenue,16/03/2015,Childrens
WC54-0610,BLOXWICH COMMUNITY PARTNERSHIP.,Supplies & Services,Other Supplies & Services,63128-HIRE OF ROOM-SERVICES-FEES,"4,400.00",Revenue,18/03/2015,Social Care & Inclusion
WC54-0611,BLOXWICH COMMUNITY PARTNERSHIP.,Third Party Payments,Grants to Other Orgs,66500-GRANTS TO OTHER ORGS,"33,936.75",Revenue,04/03/2015,Childrens
WC54-0612,BLOXWICH LIBRARY,Employees,Training,30030-EXTERNAL TRAINING,350,Revenue,18/03/2015,Neighbourhood Services
WC54-0613,BLOXWICH RADIO TAXIS,Transport,Hire,52000-WITH DRIVER-HIRE OF VEHICLES,500,Revenue,11/03/2015,Childrens
WC54-0614,BLOXWICH RADIO TAXIS,Transport,Hire,52000-WITH DRIVER-HIRE OF VEHICLES,517.6,Revenue,11/03/2015,Childrens
WC54-0615,BLUE GIRAFFE CHILDCARE,Third Party Payments,Grants to Other Orgs,66505-OTHER-GRANTS TO OTHER ORGS,"4,503.69",Revenue,17/03/2015,Childrens
WC54-0616,BLUE GIRAFFE CHILDCARE,Third Party Payments,Grants to Other Orgs,66505-OTHER-GRANTS TO OTHER ORGS,"5,707.48",Revenue,11/03/2015,Childrens
WC54-0617,BOLDMERE COURT CARE HOME,Third Party Payments,Private Contractor Fees,73373-RESIDENTIAL & NURSING CARE PLACEMENTS,"2,988.00",Revenue,10/03/2015,Social Care & Inclusion
WC54-0618,BOLDMERE COURT CARE HOME,Third Party Payments,Private Contractor Fees,73373-RESIDENTIAL & NURSING CARE PLACEMENTS,"4,108.50",Revenue,10/03/2015,Social Care & Inclusion
WC54-0619,BOLINDA UK LTD,Supplies & Services,"Equip,Furniture & Materials",60501-LIBRARY BOOKS,275.11,Revenue,27/03/2015,Neighbourhood Services
WC54-0620,BOLINDA UK LTD,Supplies & Services,"Equip,Furniture & Materials",60501-LIBRARY BOOKS,311.91,Revenue,03/03/2015,Neighbourhood Services
WC54-0621,BOLINDA UK LTD,Supplies & Services,"Equip,Furniture & Materials",60501-LIBRARY BOOKS,343.9,Revenue,27/03/2015,Neighbourhood Services
WC54-0622,BOLINDA UK LTD,Supplies & Services,"Equip,Furniture & Materials",60501-LIBRARY BOOKS,391.03,Revenue,27/03/2015,Neighbourhood Services
WC54-0623,BOLINDA UK LTD,Supplies & Services,"Equip,Furniture & Materials",60501-LIBRARY BOOKS,407.87,Revenue,27/03/2015,Neighbourhood Services
WC54-0624,BONINGALE NURSERIES,Premises,Premises-Repairs & Maintenance,41090-LANDSCAPING GROUNDS MAINTENANCE,274.95,Revenue,04/03/2015,Neighbourhood Services
WC54-0625,BOULTON TRAVEL LIMITED,Transport,Hire,52000-WITH DRIVER-HIRE OF VEHICLES,"1,695.00",Revenue,09/03/2015,Childrens
WC54-0626,BOULTON TRAVEL LIMITED,Transport,Hire,52000-WITH DRIVER-HIRE OF VEHICLES,"1,708.00",Revenue,09/03/2015,Childrens
WC54-0627,BOWDEN DERRA PARK,Third Party Payments,Private Contractor Fees,73373-RESIDENTIAL & NURSING CARE PLACEMENTS,733.68,Revenue,27/03/2015,Social Care & Inclusion
WC54-0628,BOWDEN DERRA PARK,Third Party Payments,Private Contractor Fees,73373-RESIDENTIAL & NURSING CARE PLACEMENTS,"9,537.96",Revenue,27/03/2015,Social Care & Inclusion
WC54-0629,BOWDEN DERRA PARK,Third Party Payments,Private Contractor Fees,73373-RESIDENTIAL & NURSING CARE PLACEMENTS,"10,271.64",Revenue,17/03/2015,Social Care & Inclusion
WC54-0630,BRADLEY ENVIRONMENTAL,Third Party Payments,Private Contractor Fees,73007-SAMPLING FEES-PRIV CONTRACTOR FEES,"4,000.00",Revenue,17/03/2015,Regeneration
WC54-0631,BRADVALE LTD T/A INSPIRE HEALTHCARE SERVICES,Supplies & Services,"Equip,Furniture & Materials",60500-GENERAL MATERIALS,379.6,Revenue,17/03/2015,Neighbourhood Services
WC54-0632,BRAMBLE HUB LIMITED,Capital,Capital,01002-PROJECT FEES,"31,504.00",Capital,27/03/2015,Resources
WC54-0633,BRANNEL SCHOOL,Transfer Payments,Transfer Payments,77300-ISB-FORMULA ALLOCATION,"5,000.00",Revenue,24/03/2015,Childrens
WC54-0634,BRELMAYNE LTD,Supplies & Services,"Equip,Furniture & Materials",60008-MAINTENANCE-FURNITURE & EQUIPMENT,34.91,Revenue,04/03/2015,Neighbourhood Services
WC54-0635,BRELMAYNE LTD,Supplies & Services,"Equip,Furniture & Materials",60008-MAINTENANCE-FURNITURE & EQUIPMENT,34.91,Revenue,04/03/2015,Neighbourhood Services
WC54-0636,BRELMAYNE LTD,Supplies & Services,"Equip,Furniture & Materials",60008-MAINTENANCE-FURNITURE & EQUIPMENT,46.4,Revenue,04/03/2015,Neighbourhood Services
WC54-0637,BRELMAYNE LTD,Supplies & Services,"Equip,Furniture & Materials",60008-MAINTENANCE-FURNITURE & EQUIPMENT,48.05,Revenue,04/03/2015,Neighbourhood Services
WC54-0638,BRELMAYNE LTD,Supplies & Services,"Equip,Furniture & Materials",60008-MAINTENANCE-FURNITURE & EQUIPMENT,51.15,Revenue,04/03/2015,Neighbourhood Services
WC54-0639,BRELMAYNE LTD,Supplies & Services,"Equip,Furniture & Materials",60008-MAINTENANCE-FURNITURE & EQUIPMENT,68.94,Revenue,04/03/2015,Neighbourhood Services
WC54-0640,BRELMAYNE LTD,Supplies & Services,"Equip,Furniture & Materials",60008-MAINTENANCE-FURNITURE & EQUIPMENT,91.23,Revenue,04/03/2015,Neighbourhood Services
WC54-0641,BRELMAYNE LTD,Supplies & Services,"Equip,Furniture & Materials",60008-MAINTENANCE-FURNITURE & EQUIPMENT,94.25,Revenue,04/03/2015,Neighbourhood Services
WC54-0642,BRELMAYNE LTD,Supplies & Services,"Equip,Furniture & Materials",60008-MAINTENANCE-FURNITURE & EQUIPMENT,116.34,Revenue,04/03/2015,Neighbourhood Services
WC54-0643,BRELMAYNE LTD,Supplies & Services,"Equip,Furniture & Materials",60008-MAINTENANCE-FURNITURE & EQUIPMENT,122.84,Revenue,04/03/2015,Neighbourhood Services
WC54-0644,BRELMAYNE LTD,Supplies & Services,"Equip,Furniture & Materials",60008-MAINTENANCE-FURNITURE & EQUIPMENT,126.72,Revenue,04/03/2015,Neighbourhood Services
WC54-0645,BRELMAYNE LTD,Supplies & Services,"Equip,Furniture & Materials",60008-MAINTENANCE-FURNITURE & EQUIPMENT,155.6,Revenue,04/03/2015,Neighbourhood Services
WC54-0646,BRELMAYNE LTD,Supplies & Services,"Equip,Furniture & Materials",60008-MAINTENANCE-FURNITURE & EQUIPMENT,167.32,Revenue,04/03/2015,Neighbourhood Services
WC54-0647,BRELMAYNE LTD,Supplies & Services,"Equip,Furniture & Materials",60008-MAINTENANCE-FURNITURE & EQUIPMENT,182.06,Revenue,04/03/2015,Neighbourhood Services
WC54-0648,BRELMAYNE LTD,Supplies & Services,"Equip,Furniture & Materials",60008-MAINTENANCE-FURNITURE & EQUIPMENT,183.88,Revenue,04/03/2015,Neighbourhood Services
WC54-0649,BRELMAYNE LTD,Supplies & Services,"Equip,Furniture & Materials",60008-MAINTENANCE-FURNITURE & EQUIPMENT,213.05,Revenue,04/03/2015,Neighbourhood Services
WC54-0650,BRELMAYNE LTD,Supplies & Services,"Equip,Furniture & Materials",60008-MAINTENANCE-FURNITURE & EQUIPMENT,220.76,Revenue,04/03/2015,Neighbourhood Services
WC54-0651,BRELMAYNE LTD,Third Party Payments,Private Contractor Fees,73025-PROFESSIONAL SERVICES-PRIV CONTRACTOR & OTHER AGENCIES,254.4,Revenue,01/03/2015,Regeneration
WC54-0652,BRELMAYNE LTD,Supplies & Services,"Equip,Furniture & Materials",60008-MAINTENANCE-FURNITURE & EQUIPMENT,262.24,Revenue,04/03/2015,Neighbourhood Services
WC54-0653,BRELMAYNE LTD,Premises,Premises-Repairs & Maintenance,"40000-REPAIRS,ALTERATIONS & MAINTENANCE-PREM",264,Revenue,04/03/2015,Regeneration
WC54-0654,BRELMAYNE LTD,Premises,Premises-Repairs & Maintenance,"40000-REPAIRS,ALTERATIONS & MAINTENANCE-PREM",273.23,Revenue,04/03/2015,Regeneration
WC54-0655,BRELMAYNE LTD,Premises,Premises-Repairs & Maintenance,"40000-REPAIRS,ALTERATIONS & MAINTENANCE-PREM",291.57,Revenue,05/03/2015,Regeneration
WC54-0656,BRELMAYNE LTD,Third Party Payments,Private Contractor Fees,73025-PROFESSIONAL SERVICES-PRIV CONTRACTOR & OTHER AGENCIES,300,Revenue,17/03/2015,Regeneration
WC54-0657,BRELMAYNE LTD,Supplies & Services,"Equip,Furniture & Materials",60008-MAINTENANCE-FURNITURE & EQUIPMENT,310.95,Revenue,04/03/2015,Neighbourhood Services
WC54-0658,BRELMAYNE LTD,Premises,Premises-Repairs & Maintenance,"40000-REPAIRS,ALTERATIONS & MAINTENANCE-PREM",318.95,Revenue,11/03/2015,Regeneration
WC54-0659,BRELMAYNE LTD,Third Party Payments,Private Contractor Fees,73025-PROFESSIONAL SERVICES-PRIV CONTRACTOR & OTHER AGENCIES,320.41,Revenue,17/03/2015,Regeneration
WC54-0660,BRELMAYNE LTD,Third Party Payments,Private Contractor Fees,73025-PROFESSIONAL SERVICES-PRIV CONTRACTOR & OTHER AGENCIES,330.33,Revenue,04/03/2015,Regeneration
WC54-0661,BRELMAYNE LTD,Third Party Payments,Private Contractor Fees,73025-PROFESSIONAL SERVICES-PRIV CONTRACTOR & OTHER AGENCIES,335.07,Revenue,17/03/2015,Regeneration
WC54-0662,BRELMAYNE LTD,Premises,Premises-Repairs & Maintenance,"40000-REPAIRS,ALTERATIONS & MAINTENANCE-PREM",339.08,Revenue,31/03/2015,Regeneration
WC54-0663,BRELMAYNE LTD,Premises,Premises-Repairs & Maintenance,"40000-REPAIRS,ALTERATIONS & MAINTENANCE-PREM",344.06,Revenue,04/03/2015,Regeneration
WC54-0664,BRELMAYNE LTD,Supplies & Services,"Equip,Furniture & Materials",60008-MAINTENANCE-FURNITURE & EQUIPMENT,382.01,Revenue,04/03/2015,Neighbourhood Services
WC54-0665,BRELMAYNE LTD,Supplies & Services,"Equip,Furniture & Materials",60008-MAINTENANCE-FURNITURE & EQUIPMENT,383.61,Revenue,04/03/2015,Neighbourhood Services
WC54-0666,BRELMAYNE LTD,Premises,Premises-Repairs & Maintenance,"40000-REPAIRS,ALTERATIONS & MAINTENANCE-PREM",393.78,Revenue,05/03/2015,Regeneration
WC54-0667,BRELMAYNE LTD,Supplies & Services,"Equip,Furniture & Materials",60008-MAINTENANCE-FURNITURE & EQUIPMENT,396.34,Revenue,20/03/2015,Neighbourhood Services
WC54-0668,BRELMAYNE LTD,Premises,Premises-Repairs & Maintenance,"40000-REPAIRS,ALTERATIONS & MAINTENANCE-PREM",398,Revenue,01/03/2015,Regeneration
WC54-0669,BRELMAYNE LTD,Premises,Premises-Repairs & Maintenance,"40000-REPAIRS,ALTERATIONS & MAINTENANCE-PREM",438.06,Revenue,05/03/2015,Regeneration
WC54-0670,BRELMAYNE LTD,Supplies & Services,"Equip,Furniture & Materials",60008-MAINTENANCE-FURNITURE & EQUIPMENT,440.62,Revenue,02/03/2015,Neighbourhood Services
WC54-0671,BRELMAYNE LTD,Premises,Premises-Repairs & Maintenance,"40000-REPAIRS,ALTERATIONS & MAINTENANCE-PREM",445.22,Revenue,05/03/2015,Regeneration
WC54-0672,BRELMAYNE LTD,Third Party Payments,Private Contractor Fees,73025-PROFESSIONAL SERVICES-PRIV CONTRACTOR & OTHER AGENCIES,466.07,Revenue,11/03/2015,Regeneration
WC54-0673,BRELMAYNE LTD,Third Party Payments,Private Contractor Fees,73025-PROFESSIONAL SERVICES-PRIV CONTRACTOR & OTHER AGENCIES,485.38,Revenue,23/03/2015,Regeneration
WC54-0674,BRELMAYNE LTD,Premises,Premises-Repairs & Maintenance,"40000-REPAIRS,ALTERATIONS & MAINTENANCE-PREM",495.29,Revenue,31/03/2015,Regeneration
WC54-0675,BRELMAYNE LTD,Third Party Payments,Private Contractor Fees,73025-PROFESSIONAL SERVICES-PRIV CONTRACTOR & OTHER AGENCIES,502.5,Revenue,17/03/2015,Regeneration
WC54-0676,BRELMAYNE LTD,Third Party Payments,Private Contractor Fees,73025-PROFESSIONAL SERVICES-PRIV CONTRACTOR & OTHER AGENCIES,513.09,Revenue,17/03/2015,Regeneration
WC54-0677,BRELMAYNE LTD,Premises,Premises-Repairs & Maintenance,"40000-REPAIRS,ALTERATIONS & MAINTENANCE-PREM",559.52,Revenue,31/03/2015,Childrens
WC54-0678,BRELMAYNE LTD,Premises,Premises-Repairs & Maintenance,"40000-REPAIRS,ALTERATIONS & MAINTENANCE-PREM",689,Revenue,04/03/2015,Regeneration
WC54-0679,BRELMAYNE LTD,Third Party Payments,Private Contractor Fees,73025-PROFESSIONAL SERVICES-PRIV CONTRACTOR & OTHER AGENCIES,689,Revenue,18/03/2015,Regeneration
WC54-0680,BRELMAYNE LTD,Supplies & Services,"Equip,Furniture & Materials",60008-MAINTENANCE-FURNITURE & EQUIPMENT,771.92,Revenue,04/03/2015,Neighbourhood Services
WC54-0681,BRELMAYNE LTD,Third Party Payments,Private Contractor Fees,73025-PROFESSIONAL SERVICES-PRIV CONTRACTOR & OTHER AGENCIES,925,Revenue,04/03/2015,Regeneration
WC54-0682,BRELMAYNE LTD,Premises,Premises-Repairs & Maintenance,"40000-REPAIRS,ALTERATIONS & MAINTENANCE-PREM",986.5,Revenue,18/03/2015,Regeneration
WC54-0683,BRELMAYNE LTD,Premises,Premises-Repairs & Maintenance,"40000-REPAIRS,ALTERATIONS & MAINTENANCE-PREM","1,137.41",Revenue,11/03/2015,Regeneration
WC54-0684,BRELMAYNE LTD,Third Party Payments,Private Contractor Fees,73025-PROFESSIONAL SERVICES-PRIV CONTRACTOR & OTHER AGENCIES,"1,232.00",Revenue,17/03/2015,Regeneration
WC54-0685,BRELMAYNE LTD,Premises,Premises-Repairs & Maintenance,"40000-REPAIRS,ALTERATIONS & MAINTENANCE-PREM","1,246.70",Revenue,17/03/2015,Regeneration
WC54-0686,BRELMAYNE LTD,Premises,Premises-Repairs & Maintenance,"40000-REPAIRS,ALTERATIONS & MAINTENANCE-PREM","1,532.00",Revenue,04/03/2015,Regeneration
WC54-0687,BRELMAYNE LTD,Premises,Premises-Repairs & Maintenance,"40000-REPAIRS,ALTERATIONS & MAINTENANCE-PREM","1,640.70",Revenue,18/03/2015,Regeneration
WC54-0688,BRELMAYNE LTD,Premises,Premises-Repairs & Maintenance,"40000-REPAIRS,ALTERATIONS & MAINTENANCE-PREM","1,877.00",Revenue,18/03/2015,Regeneration
WC54-0689,BRELMAYNE LTD,Premises,Premises-Repairs & Maintenance,"40000-REPAIRS,ALTERATIONS & MAINTENANCE-PREM","1,963.00",Revenue,18/03/2015,Regeneration
WC54-0690,BRELMAYNE LTD,Premises,Premises-Repairs & Maintenance,"40000-REPAIRS,ALTERATIONS & MAINTENANCE-PREM","2,015.00",Revenue,11/03/2015,Neighbourhood Services
WC54-0691,BRELMAYNE LTD,Premises,Premises-Repairs & Maintenance,"40000-REPAIRS,ALTERATIONS & MAINTENANCE-PREM","2,266.93",Revenue,03/03/2015,Regeneration
WC54-0692,BRELMAYNE LTD,Supplies & Services,"Equip,Furniture & Materials",60006-NEW-FURNITURE & EQUIPMENT,"2,859.75",Revenue,01/03/2015,Neighbourhood Services
WC54-0693,BRELMAYNE LTD,Supplies & Services,"Equip,Furniture & Materials",60006-NEW-FURNITURE & EQUIPMENT,"2,921.37",Revenue,04/03/2015,Neighbourhood Services
WC54-0694,BRELMAYNE LTD,Supplies & Services,"Equip,Furniture & Materials",60006-NEW-FURNITURE & EQUIPMENT,"8,103.08",Revenue,20/03/2015,Neighbourhood Services
WC54-0695,BRELMAYNE LTD,Capital,Capital,01006-SITE WORKS MAIN CONTRACTORS,"57,353.32",Capital,01/03/2015,Regeneration
WC54-0696,REDACTED,Transfer Payments,Transfer Payments,76422-DIRECT PAYMENTS TO SOCIAL SERVICES CLIENTS,550,Revenue,18/03/2015,Social Care & Inclusion
WC54-0697,REDACTED,Transfer Payments,Transfer Payments,76422-DIRECT PAYMENTS TO SOCIAL SERVICES CLIENTS,270,Revenue,18/03/2015,Social Care & Inclusion
WC54-0698,REDACTED,Third Party Payments,Private Contractor Fees,74006-HOLIDAY/CHRISTMAS ALLOWANCE-FOSTER CARERS-OTH AGENCY PROVISION,"1,278.80",Revenue,02/03/2015,Childrens
WC54-0699,REDACTED,Third Party Payments,Private Contractor Fees,74006-HOLIDAY/CHRISTMAS ALLOWANCE-FOSTER CARERS-OTH AGENCY PROVISION,"1,282.92",Revenue,30/03/2015,Childrens
WC54-0700,REDACTED,Supplies & Services,Other Supplies & Services,62515-MISCELLANEOUS SUPPLIES,"1,492.65",Revenue,30/03/2015,Childrens
WC54-0701,REDACTED,Supplies & Services,Other Supplies & Services,62515-MISCELLANEOUS SUPPLIES,"1,575.32",Revenue,02/03/2015,Childrens
WC54-0702,REDACTED,Transfer Payments,Transfer Payments,76422-DIRECT PAYMENTS TO SOCIAL SERVICES CLIENTS,680,Revenue,18/03/2015,Social Care & Inclusion
WC54-0703,BRENNTAG UK LIMITED,Transport,Other Transport,50301-FUEL-TRANSPORT RUN COSTS,711.68,Revenue,16/03/2015,Neighbourhood Services
WC54-0704,REDACTED,Third Party Payments,Private Contractor Fees,73374-SUPPORTED & OTHER ACCOMMODATION,"2,935.24",Revenue,23/03/2015,Social Care & Inclusion
WC54-0705,REDACTED,Transfer Payments,Transfer Payments,76422-DIRECT PAYMENTS TO SOCIAL SERVICES CLIENTS,616.5,Revenue,18/03/2015,Social Care & Inclusion
WC54-0706,REDACTED,Transfer Payments,Transfer Payments,76422-DIRECT PAYMENTS TO SOCIAL SERVICES CLIENTS,"1,618.50",Revenue,18/03/2015,Social Care & Inclusion
WC54-0707,REDACTED,Transfer Payments,Transfer Payments,76422-DIRECT PAYMENTS TO SOCIAL SERVICES CLIENTS,871.25,Revenue,18/03/2015,Social Care & Inclusion
WC54-0708,BRIDGEWOOD HEALTH CARE LTD,Third Party Payments,Private Contractor Fees,73373-RESIDENTIAL & NURSING CARE PLACEMENTS,"5,058.44",Revenue,17/03/2015,Social Care & Inclusion
WC54-0709,REDACTED,Transfer Payments,Transfer Payments,76422-DIRECT PAYMENTS TO SOCIAL SERVICES CLIENTS,"1,299.73",Revenue,18/03/2015,Social Care & Inclusion
WC54-0710,BRISTOW & SUTOR,Supplies & Services,Services,63102-CONSULTANTS FEES - CORPORATE,263.74,Revenue,03/03/2015,Resources
WC54-0711,BRISTOW & SUTOR,Supplies & Services,Services,63102-CONSULTANTS FEES - CORPORATE,622.67,Revenue,26/03/2015,Resources
WC54-0712,BRITANNIA APPRENTICESHIPS LTD,Third Party Payments,Grants to Other Orgs,66500-GRANTS TO OTHER ORGS,"1,125.00",Revenue,12/03/2015,Regeneration
WC54-0713,BRITANNIA APPRENTICESHIPS LTD,Third Party Payments,Grants to Other Orgs,66500-GRANTS TO OTHER ORGS,"1,125.00",Revenue,12/03/2015,Regeneration
WC54-0714,BRITISH GAS BUSINESS,Premises,Utilities,42001-GAS METERED-ENERGY COSTS,363.61,Revenue,23/03/2015,Childrens
WC54-0715,BRITISH GAS BUSINESS,Premises,Utilities,42001-GAS METERED-ENERGY COSTS,370.92,Revenue,23/03/2015,Childrens
WC54-0716,BRITISH GAS BUSINESS,Premises,Utilities,42000-GAS-ENERGY COSTS,377.97,Revenue,20/03/2015,Childrens
WC54-0717,BRITISH GAS BUSINESS,Premises,Utilities,42000-GAS-ENERGY COSTS,401.18,Revenue,16/03/2015,Childrens
WC54-0718,BRITISH GAS BUSINESS,Premises,Utilities,42000-GAS-ENERGY COSTS,452.84,Revenue,02/03/2015,Childrens
WC54-0719,BRITISH GAS BUSINESS,Premises,Utilities,42001-GAS METERED-ENERGY COSTS,497.51,Revenue,20/03/2015,Childrens
WC54-0720,BRITISH GAS BUSINESS,Premises,Utilities,42000-GAS-ENERGY COSTS,"1,096.57",Revenue,12/03/2015,Childrens
WC54-0721,BRITISH GAS BUSINESS,Premises,Utilities,42000-GAS-ENERGY COSTS,"2,781.77",Revenue,12/03/2015,Regeneration
WC54-0722,BRITISH GAS BUSINESS,Premises,Utilities,42000-GAS-ENERGY COSTS,"5,997.24",Revenue,02/03/2015,Childrens
WC54-0723,BRITISH PARKING ASSOCIATON,Supplies & Services,Services,63000-PROFESSIONAL FEES AND SERVICES,631,Revenue,01/03/2015,Neighbourhood Services
WC54-0724,BROADOAK CARE,Third Party Payments,Private Contractor Fees,73373-RESIDENTIAL & NURSING CARE PLACEMENTS,"1,259.94",Revenue,17/03/2015,Social Care & Inclusion
WC54-0725,BROADOAK CARE,Third Party Payments,Private Contractor Fees,73373-RESIDENTIAL & NURSING CARE PLACEMENTS,"1,458.16",Revenue,10/03/2015,Social Care & Inclusion
WC54-0726,BROADOAK CARE,Third Party Payments,Private Contractor Fees,73373-RESIDENTIAL & NURSING CARE PLACEMENTS,"1,458.16",Revenue,10/03/2015,Social Care & Inclusion
WC54-0727,BROADOAK CARE,Third Party Payments,Private Contractor Fees,73373-RESIDENTIAL & NURSING CARE PLACEMENTS,"1,458.16",Revenue,10/03/2015,Social Care & Inclusion
WC54-0728,BROADOAK CARE,Third Party Payments,Private Contractor Fees,73373-RESIDENTIAL & NURSING CARE PLACEMENTS,"1,534.00",Revenue,10/03/2015,Social Care & Inclusion
WC54-0729,BROADOAK CARE,Third Party Payments,Private Contractor Fees,73373-RESIDENTIAL & NURSING CARE PLACEMENTS,"1,534.08",Revenue,10/03/2015,Social Care & Inclusion
WC54-0730,BROADOAK CARE,Third Party Payments,Private Contractor Fees,73373-RESIDENTIAL & NURSING CARE PLACEMENTS,"1,534.08",Revenue,10/03/2015,Social Care & Inclusion
WC54-0731,BROADOAK CARE,Third Party Payments,Private Contractor Fees,73373-RESIDENTIAL & NURSING CARE PLACEMENTS,"1,534.08",Revenue,10/03/2015,Social Care & Inclusion
WC54-0732,BROADOAK CARE,Third Party Payments,Private Contractor Fees,73373-RESIDENTIAL & NURSING CARE PLACEMENTS,"1,534.08",Revenue,10/03/2015,Social Care & Inclusion
WC54-0733,BROADOAK CARE,Third Party Payments,Private Contractor Fees,73373-RESIDENTIAL & NURSING CARE PLACEMENTS,"1,534.08",Revenue,10/03/2015,Social Care & Inclusion
WC54-0734,BROADOAK CARE,Third Party Payments,Private Contractor Fees,73373-RESIDENTIAL & NURSING CARE PLACEMENTS,"1,534.08",Revenue,10/03/2015,Social Care & Inclusion
WC54-0735,BROADOAK CARE,Third Party Payments,Private Contractor Fees,73373-RESIDENTIAL & NURSING CARE PLACEMENTS,"1,534.08",Revenue,10/03/2015,Social Care & Inclusion
WC54-0736,BROADOAK CARE,Third Party Payments,Private Contractor Fees,73373-RESIDENTIAL & NURSING CARE PLACEMENTS,"1,534.08",Revenue,10/03/2015,Social Care & Inclusion
WC54-0737,BROADOAK CARE,Third Party Payments,Private Contractor Fees,73373-RESIDENTIAL & NURSING CARE PLACEMENTS,"1,534.08",Revenue,10/03/2015,Social Care & Inclusion
WC54-0738,BROADOAK CARE,Third Party Payments,Private Contractor Fees,73373-RESIDENTIAL & NURSING CARE PLACEMENTS,"1,534.08",Revenue,10/03/2015,Social Care & Inclusion
WC54-0739,BROADOAK CARE,Third Party Payments,Private Contractor Fees,73373-RESIDENTIAL & NURSING CARE PLACEMENTS,"1,534.08",Revenue,10/03/2015,Social Care & Inclusion
WC54-0740,BROADOAK CARE,Third Party Payments,Private Contractor Fees,73373-RESIDENTIAL & NURSING CARE PLACEMENTS,"1,534.08",Revenue,10/03/2015,Social Care & Inclusion
WC54-0741,BROADOAK CARE,Third Party Payments,Private Contractor Fees,73373-RESIDENTIAL & NURSING CARE PLACEMENTS,"1,534.08",Revenue,17/03/2015,Social Care & Inclusion
WC54-0742,BROADOAK CARE,Third Party Payments,Private Contractor Fees,73373-RESIDENTIAL & NURSING CARE PLACEMENTS,"1,534.08",Revenue,17/03/2015,Social Care & Inclusion
WC54-0743,BROADOAK CARE,Third Party Payments,Private Contractor Fees,73373-RESIDENTIAL & NURSING CARE PLACEMENTS,"1,534.12",Revenue,10/03/2015,Social Care & Inclusion
WC54-0744,BROADOAK CARE,Third Party Payments,Private Contractor Fees,73373-RESIDENTIAL & NURSING CARE PLACEMENTS,"1,534.22",Revenue,10/03/2015,Social Care & Inclusion
WC54-0745,BROADOAK CARE,Third Party Payments,Private Contractor Fees,73373-RESIDENTIAL & NURSING CARE PLACEMENTS,"3,076.85",Revenue,03/03/2015,Social Care & Inclusion
WC54-0746,BROADWAY LODGE,Supplies & Services,Services,63000-PROFESSIONAL FEES AND SERVICES,"6,000.00",Revenue,18/03/2015,Neighbourhood Services
WC54-0747,BROADWAY PHARMACY,Supplies & Services,Services,63000-PROFESSIONAL FEES AND SERVICES,133.9,Revenue,10/03/2015,Neighbourhood Services
WC54-0748,BROADWAY PHARMACY,Supplies & Services,Services,63000-PROFESSIONAL FEES AND SERVICES,247.5,Revenue,10/03/2015,Neighbourhood Services
WC54-0749,BROADWAY PHARMACY,Supplies & Services,Services,63000-PROFESSIONAL FEES AND SERVICES,332.24,Revenue,10/03/2015,Neighbourhood Services
WC54-0750,BROOK YOUNG PEOPLE,Supplies & Services,Services,63000-PROFESSIONAL FEES AND SERVICES,"5,873.50",Revenue,23/03/2015,Neighbourhood Services
WC54-0751,BROWNHILLS ASPHALT TARMACADAM,Supplies & Services,"Equip,Furniture & Materials",60500-GENERAL MATERIALS,260,Revenue,30/03/2015,Neighbourhood Services
WC54-0752,BROWNHILLS ASPHALT TARMACADAM,Premises,Premises-Repairs & Maintenance,"40000-REPAIRS,ALTERATIONS & MAINTENANCE-PREM",350,Revenue,11/03/2015,Neighbourhood Services
WC54-0753,BROWNHILLS ASPHALT TARMACADAM,Premises,Premises-Repairs & Maintenance,"40000-REPAIRS,ALTERATIONS & MAINTENANCE-PREM",395,Revenue,17/03/2015,Neighbourhood Services
WC54-0754,BROWNHILLS ASPHALT TARMACADAM,Premises,Premises-Repairs & Maintenance,"40000-REPAIRS,ALTERATIONS & MAINTENANCE-PREM",450,Revenue,17/03/2015,Neighbourhood Services
WC54-0755,BROWNHILLS ASPHALT TARMACADAM,Supplies & Services,"Equip,Furniture & Materials",60500-GENERAL MATERIALS,457,Revenue,26/03/2015,Neighbourhood Services
WC54-0756,BROWNHILLS ASPHALT TARMACADAM,Supplies & Services,"Equip,Furniture & Materials",60500-GENERAL MATERIALS,457,Revenue,26/03/2015,Neighbourhood Services
WC54-0757,BROWNHILLS ASPHALT TARMACADAM,Supplies & Services,"Equip,Furniture & Materials",60500-GENERAL MATERIALS,555,Revenue,04/03/2015,Neighbourhood Services
WC54-0758,BROWNHILLS ASPHALT TARMACADAM,Premises,Premises-Repairs & Maintenance,"40000-REPAIRS,ALTERATIONS & MAINTENANCE-PREM",600,Revenue,17/03/2015,Regeneration
WC54-0759,BROWNHILLS ASPHALT TARMACADAM,Premises,Premises-Repairs & Maintenance,"40000-REPAIRS,ALTERATIONS & MAINTENANCE-PREM",850,Revenue,20/03/2015,Neighbourhood Services
WC54-0760,BROWNHILLS ASPHALT TARMACADAM,Third Party Payments,Private Contractor Fees,73025-PROFESSIONAL SERVICES-PRIV CONTRACTOR & OTHER AGENCIES,"1,295.00",Revenue,23/03/2015,Regeneration
WC54-0761,BROWNHILLS ASPHALT TARMACADAM,Premises,Premises-Repairs & Maintenance,"40000-REPAIRS,ALTERATIONS & MAINTENANCE-PREM","1,700.00",Revenue,31/03/2015,Regeneration
WC54-0762,BROWNHILLS ASPHALT TARMACADAM,Capital,Capital,01006-SITE WORKS MAIN CONTRACTORS,"2,500.00",Capital,23/03/2015,Childrens
WC54-0763,BROWNHILLS ASPHALT TARMACADAM,Third Party Payments,Private Contractor Fees,73025-PROFESSIONAL SERVICES-PRIV CONTRACTOR & OTHER AGENCIES,"3,169.00",Revenue,04/03/2015,Neighbourhood Services
WC54-0764,BROWNHILLS COMMUNITY ASSOCIAT,Supplies & Services,Other Supplies & Services,62515-MISCELLANEOUS SUPPLIES,"2,372.00",Revenue,18/03/2015,Neighbourhood Services
WC54-0765,BROWNHILLS COMMUNITY ASSOCIATION,Third Party Payments,Grants to Other Orgs,66505-OTHER-GRANTS TO OTHER ORGS,"6,366.78",Revenue,17/03/2015,Childrens
WC54-0766,BROWNHILLS COMMUNITY ASSOCIATION,Third Party Payments,Grants to Other Orgs,66505-OTHER-GRANTS TO OTHER ORGS,"11,868.18",Revenue,11/03/2015,Childrens
WC54-0767,BROXAP LTD,Capital,Capital,01009-SITE WORKS - OTHER CONTRACTORS,"3,488.00",Capital,09/03/2015,Regeneration
WC54-0768,BROXAP LTD,Capital,Capital,01009-SITE WORKS - OTHER CONTRACTORS,"5,769.00",Capital,11/03/2015,Regeneration
WC54-0769,REDACTED,Transfer Payments,Transfer Payments,76422-DIRECT PAYMENTS TO SOCIAL SERVICES CLIENTS,"1,806.25",Revenue,18/03/2015,Social Care & Inclusion
WC54-0770,REDACTED,Third Party Payments,Grants to Other Orgs,66500-GRANTS TO OTHER ORGS,262,Revenue,05/03/2015,Neighbourhood Services
WC54-0771,REDACTED,Supplies & Services,Services,63000-PROFESSIONAL FEES AND SERVICES,"2,081.25",Revenue,16/03/2015,Neighbourhood Services
WC54-0772,BT PLC,Supplies & Services,Communications & Computing,63602-COST OF RENTAL-TELEPHONES,204.2,Revenue,02/03/2015,Childrens
WC54-0773,BT PLC,Supplies & Services,Communications & Computing,63603-COST OF CALLS-TELEPHONES,585.52,Revenue,02/03/2015,Childrens
WC54-0774,BT PLC,Supplies & Services,Communications & Computing,63602-COST OF RENTAL-TELEPHONES,653.74,Revenue,05/03/2015,Childrens
WC54-0775,BT PLC,Supplies & Services,Communications & Computing,63603-COST OF CALLS-TELEPHONES,994,Revenue,04/03/2015,Resources
WC54-0776,BT PLC,Supplies & Services,Communications & Computing,63601-COSTS (NOT INTERNAL RECHARGES)-TELEPHONES,"8,312.11",Revenue,20/03/2015,Resources
WC54-0777,BT PLC,Supplies & Services,Communications & Computing,63800-COMPUTER EQUIPMENT AND SUPPLIES,"8,602.00",Revenue,25/03/2015,Resources
WC54-0778,BT PLC,Supplies & Services,Communications & Computing,63601-COSTS (NOT INTERNAL RECHARGES)-TELEPHONES,"12,968.04",Revenue,20/03/2015,Resources
WC54-0779,BT REDCARE,Third Party Payments,Private Contractor Fees,73025-PROFESSIONAL SERVICES-PRIV CONTRACTOR & OTHER AGENCIES,"2,504.22",Revenue,26/03/2015,Neighbourhood Services
WC54-0780,BULLEYS CHARTERED SURVEYORS,Supplies & Services,Other Supplies & Services,67000-MISC INSURANCES - INSURANCE PREMIUMS,443.63,Revenue,02/03/2015,Childrens
WC54-0781,BULLEYS CHARTERED SURVEYORS,Premises,Rent,43000-RENTS,"2,812.50",Revenue,27/03/2015,Childrens
WC54-0782,BUPA CARE HOMES (CFHCARE) LTD,Third Party Payments,Private Contractor Fees,73373-RESIDENTIAL & NURSING CARE PLACEMENTS,624.86,Revenue,27/03/2015,Social Care & Inclusion
WC54-0783,BUPA CARE HOMES (CFHCARE) LTD,Third Party Payments,Private Contractor Fees,73373-RESIDENTIAL & NURSING CARE PLACEMENTS,640.28,Revenue,27/03/2015,Social Care & Inclusion
WC54-0784,BUPA CARE HOMES (CFHCARE) LTD,Third Party Payments,Private Contractor Fees,73373-RESIDENTIAL & NURSING CARE PLACEMENTS,833.14,Revenue,27/03/2015,Social Care & Inclusion
WC54-0785,BUPA CARE HOMES (CFHCARE) LTD,Third Party Payments,Private Contractor Fees,73373-RESIDENTIAL & NURSING CARE PLACEMENTS,853.72,Revenue,27/03/2015,Social Care & Inclusion
WC54-0786,BUPA CARE HOMES (CFHCARE) LTD,Third Party Payments,Private Contractor Fees,73373-RESIDENTIAL & NURSING CARE PLACEMENTS,"1,311.82",Revenue,27/03/2015,Social Care & Inclusion
WC54-0787,BUPA CARE HOMES (CFHCARE) LTD,Third Party Payments,Private Contractor Fees,73373-RESIDENTIAL & NURSING CARE PLACEMENTS,"1,458.00",Revenue,10/03/2015,Social Care & Inclusion
WC54-0788,BUPA CARE HOMES (CFHCARE) LTD,Third Party Payments,Private Contractor Fees,73373-RESIDENTIAL & NURSING CARE PLACEMENTS,"1,494.00",Revenue,10/03/2015,Social Care & Inclusion
WC54-0789,BUPA CARE HOMES (CFHCARE) LTD,Third Party Payments,Private Contractor Fees,73373-RESIDENTIAL & NURSING CARE PLACEMENTS,"1,749.10",Revenue,27/03/2015,Social Care & Inclusion
WC54-0790,BUPA CARE HOMES (CFHCARE) LTD,Third Party Payments,Private Contractor Fees,73373-RESIDENTIAL & NURSING CARE PLACEMENTS,"3,060.92",Revenue,10/03/2015,Social Care & Inclusion
WC54-0791,BUSH HOME LTD,Third Party Payments,Private Contractor Fees,73373-RESIDENTIAL & NURSING CARE PLACEMENTS,383.53,Revenue,17/03/2015,Social Care & Inclusion
WC54-0792,BUSH HOME LTD,Third Party Payments,Private Contractor Fees,73373-RESIDENTIAL & NURSING CARE PLACEMENTS,938.83,Revenue,10/03/2015,Social Care & Inclusion
WC54-0793,BUSH HOME LTD,Third Party Payments,Private Contractor Fees,73373-RESIDENTIAL & NURSING CARE PLACEMENTS,"1,458.16",Revenue,10/03/2015,Social Care & Inclusion
WC54-0794,BUSH HOME LTD,Third Party Payments,Private Contractor Fees,73373-RESIDENTIAL & NURSING CARE PLACEMENTS,"1,460.40",Revenue,10/03/2015,Social Care & Inclusion
WC54-0795,BUSH HOME LTD,Third Party Payments,Private Contractor Fees,73373-RESIDENTIAL & NURSING CARE PLACEMENTS,"1,460.40",Revenue,10/03/2015,Social Care & Inclusion
WC54-0796,BUSH HOME LTD,Third Party Payments,Private Contractor Fees,73373-RESIDENTIAL & NURSING CARE PLACEMENTS,"1,460.40",Revenue,10/03/2015,Social Care & Inclusion
WC54-0797,BUSH HOME LTD,Third Party Payments,Private Contractor Fees,73373-RESIDENTIAL & NURSING CARE PLACEMENTS,"1,534.12",Revenue,10/03/2015,Social Care & Inclusion
WC54-0798,BUSH HOME LTD,Third Party Payments,Private Contractor Fees,73373-RESIDENTIAL & NURSING CARE PLACEMENTS,"1,534.12",Revenue,10/03/2015,Social Care & Inclusion
WC54-0799,BUSH HOME LTD,Third Party Payments,Private Contractor Fees,73373-RESIDENTIAL & NURSING CARE PLACEMENTS,"1,534.12",Revenue,10/03/2015,Social Care & Inclusion
WC54-0800,BUSH HOME LTD,Third Party Payments,Private Contractor Fees,73373-RESIDENTIAL & NURSING CARE PLACEMENTS,"1,534.12",Revenue,10/03/2015,Social Care & Inclusion
WC54-0801,BUSH HOME LTD,Third Party Payments,Private Contractor Fees,73373-RESIDENTIAL & NURSING CARE PLACEMENTS,"1,534.12",Revenue,10/03/2015,Social Care & Inclusion
WC54-0802,BUSH HOME LTD,Third Party Payments,Private Contractor Fees,73373-RESIDENTIAL & NURSING CARE PLACEMENTS,"1,534.12",Revenue,10/03/2015,Social Care & Inclusion
WC54-0803,BUSH HOME LTD,Third Party Payments,Private Contractor Fees,73373-RESIDENTIAL & NURSING CARE PLACEMENTS,"1,534.13",Revenue,10/03/2015,Social Care & Inclusion
WC54-0804,BUSH HOME LTD,Third Party Payments,Private Contractor Fees,73373-RESIDENTIAL & NURSING CARE PLACEMENTS,"1,557.60",Revenue,10/03/2015,Social Care & Inclusion
WC54-0805,BUSY BEES CHILDCARE LTD,Third Party Payments,Grants to Other Orgs,66505-OTHER-GRANTS TO OTHER ORGS,264.06,Revenue,17/03/2015,Childrens
WC54-0806,BUSY BEES CHILDCARE LTD,Third Party Payments,Grants to Other Orgs,66505-OTHER-GRANTS TO OTHER ORGS,"3,483.44",Revenue,11/03/2015,Childrens
WC54-0807,BY THE BRIDGE,Third Party Payments,Private Contractor Fees,74037-INDEPENDENT FOSTER CARE-OTH AGENCY PROVISION,"4,295.71",Revenue,19/03/2015,Childrens
WC54-0808,C & V ORCHARD MANOR LTD,Third Party Payments,Private Contractor Fees,73373-RESIDENTIAL & NURSING CARE PLACEMENTS,931.43,Revenue,17/03/2015,Social Care & Inclusion
WC54-0809,C & V ORCHARD MANOR LTD,Third Party Payments,Private Contractor Fees,73373-RESIDENTIAL & NURSING CARE PLACEMENTS,"1,356.09",Revenue,17/03/2015,Social Care & Inclusion
WC54-0810,C & V ORCHARD MANOR LTD,Third Party Payments,Private Contractor Fees,73373-RESIDENTIAL & NURSING CARE PLACEMENTS,"1,439.80",Revenue,17/03/2015,Social Care & Inclusion
WC54-0811,C & V ORCHARD MANOR LTD,Third Party Payments,Private Contractor Fees,73373-RESIDENTIAL & NURSING CARE PLACEMENTS,"1,439.80",Revenue,17/03/2015,Social Care & Inclusion
WC54-0812,C & V ORCHARD MANOR LTD,Third Party Payments,Private Contractor Fees,73373-RESIDENTIAL & NURSING CARE PLACEMENTS,"1,439.81",Revenue,17/03/2015,Social Care & Inclusion
WC54-0813,C & V ORCHARD MANOR LTD,Third Party Payments,Private Contractor Fees,73373-RESIDENTIAL & NURSING CARE PLACEMENTS,"1,460.10",Revenue,17/03/2015,Social Care & Inclusion
WC54-0814,C & V ORCHARD MANOR LTD,Third Party Payments,Private Contractor Fees,73373-RESIDENTIAL & NURSING CARE PLACEMENTS,"1,460.40",Revenue,17/03/2015,Social Care & Inclusion
WC54-0815,C & V ORCHARD MANOR LTD,Third Party Payments,Private Contractor Fees,73373-RESIDENTIAL & NURSING CARE PLACEMENTS,"1,460.40",Revenue,17/03/2015,Social Care & Inclusion
WC54-0816,C & V ORCHARD MANOR LTD,Third Party Payments,Private Contractor Fees,73373-RESIDENTIAL & NURSING CARE PLACEMENTS,"1,460.40",Revenue,17/03/2015,Social Care & Inclusion
WC54-0817,C & V ORCHARD MANOR LTD,Third Party Payments,Private Contractor Fees,73373-RESIDENTIAL & NURSING CARE PLACEMENTS,"1,460.40",Revenue,17/03/2015,Social Care & Inclusion
WC54-0818,C & V ORCHARD MANOR LTD,Third Party Payments,Private Contractor Fees,73373-RESIDENTIAL & NURSING CARE PLACEMENTS,"1,512.56",Revenue,10/03/2015,Social Care & Inclusion
WC54-0819,C & V ORCHARD MANOR LTD,Third Party Payments,Private Contractor Fees,73373-RESIDENTIAL & NURSING CARE PLACEMENTS,"1,531.76",Revenue,17/03/2015,Social Care & Inclusion
WC54-0820,C & V ORCHARD MANOR LTD,Third Party Payments,Private Contractor Fees,73373-RESIDENTIAL & NURSING CARE PLACEMENTS,"1,531.76",Revenue,17/03/2015,Social Care & Inclusion
WC54-0821,C & V ORCHARD RESIDENTIAL LTD,Third Party Payments,Private Contractor Fees,73373-RESIDENTIAL & NURSING CARE PLACEMENTS,"1,408.20",Revenue,25/03/2015,Social Care & Inclusion
WC54-0822,C & V ORCHARD RESIDENTIAL LTD,Third Party Payments,Private Contractor Fees,73373-RESIDENTIAL & NURSING CARE PLACEMENTS,"1,458.16",Revenue,17/03/2015,Social Care & Inclusion
WC54-0823,C & V ORCHARD RESIDENTIAL LTD,Third Party Payments,Private Contractor Fees,73373-RESIDENTIAL & NURSING CARE PLACEMENTS,"1,460.40",Revenue,17/03/2015,Social Care & Inclusion
WC54-0824,C & V ORCHARD RESIDENTIAL LTD,Third Party Payments,Private Contractor Fees,73373-RESIDENTIAL & NURSING CARE PLACEMENTS,"1,477.09",Revenue,25/03/2015,Social Care & Inclusion
WC54-0825,C & V ORCHARD RESIDENTIAL LTD,Third Party Payments,Private Contractor Fees,73373-RESIDENTIAL & NURSING CARE PLACEMENTS,"1,531.00",Revenue,17/03/2015,Social Care & Inclusion
WC54-0826,C & V ORCHARD RESIDENTIAL LTD,Third Party Payments,Private Contractor Fees,73373-RESIDENTIAL & NURSING CARE PLACEMENTS,"1,531.00",Revenue,17/03/2015,Social Care & Inclusion
WC54-0827,C & V ORCHARD RESIDENTIAL LTD,Third Party Payments,Private Contractor Fees,73373-RESIDENTIAL & NURSING CARE PLACEMENTS,"1,531.76",Revenue,17/03/2015,Social Care & Inclusion
WC54-0828,C & V ORCHARD RESIDENTIAL LTD,Third Party Payments,Private Contractor Fees,73373-RESIDENTIAL & NURSING CARE PLACEMENTS,"1,531.76",Revenue,17/03/2015,Social Care & Inclusion
WC54-0829,C & V ORCHARD RESIDENTIAL LTD,Third Party Payments,Private Contractor Fees,73373-RESIDENTIAL & NURSING CARE PLACEMENTS,"1,531.76",Revenue,17/03/2015,Social Care & Inclusion
WC54-0830,C & V ORCHARD RESIDENTIAL LTD,Third Party Payments,Private Contractor Fees,73373-RESIDENTIAL & NURSING CARE PLACEMENTS,"1,534.12",Revenue,17/03/2015,Social Care & Inclusion
WC54-0831,C & V ORCHARD RESIDENTIAL LTD,Third Party Payments,Private Contractor Fees,73373-RESIDENTIAL & NURSING CARE PLACEMENTS,"1,534.12",Revenue,17/03/2015,Social Care & Inclusion
WC54-0832,C & V ORCHARD RESIDENTIAL LTD,Third Party Payments,Private Contractor Fees,73373-RESIDENTIAL & NURSING CARE PLACEMENTS,"1,534.12",Revenue,17/03/2015,Social Care & Inclusion
WC54-0833,C & V ORCHARD RESIDENTIAL LTD,Third Party Payments,Private Contractor Fees,73373-RESIDENTIAL & NURSING CARE PLACEMENTS,"1,534.12",Revenue,17/03/2015,Social Care & Inclusion
WC54-0834,C ART ART TRANSPORT LTD,Third Party Payments,Private Contractor Fees,73032-TRANSPORTATION-PRIV CONTRACTOR FEES,500,Revenue,16/03/2015,Neighbourhood Services
WC54-0835,C ART ART TRANSPORT LTD,Third Party Payments,Private Contractor Fees,73032-TRANSPORTATION-PRIV CONTRACTOR FEES,"1,025.00",Revenue,16/03/2015,Neighbourhood Services
WC54-0836,REDACTED,Supplies & Services,Other Supplies & Services,62515-MISCELLANEOUS SUPPLIES,"4,267.08",Revenue,02/03/2015,Childrens
WC54-0837,REDACTED,Supplies & Services,Other Supplies & Services,62515-MISCELLANEOUS SUPPLIES,"4,276.12",Revenue,30/03/2015,Childrens
WC54-0838,REDACTED,Third Party Payments,Private Contractor Fees,74006-HOLIDAY/CHRISTMAS ALLOWANCE-FOSTER CARERS-OTH AGENCY PROVISION,"4,619.40",Revenue,02/03/2015,Childrens
WC54-0839,REDACTED,Third Party Payments,Private Contractor Fees,74006-HOLIDAY/CHRISTMAS ALLOWANCE-FOSTER CARERS-OTH AGENCY PROVISION,"4,634.26",Revenue,30/03/2015,Childrens
WC54-0840,REDACTED,Supplies & Services,Other Supplies & Services,62515-MISCELLANEOUS SUPPLIES,"1,428.44",Revenue,02/03/2015,Childrens
WC54-0841,REDACTED,Supplies & Services,Other Supplies & Services,62515-MISCELLANEOUS SUPPLIES,"1,431.45",Revenue,30/03/2015,Childrens
WC54-0842,REDACTED,Third Party Payments,Private Contractor Fees,74006-HOLIDAY/CHRISTMAS ALLOWANCE-FOSTER CARERS-OTH AGENCY PROVISION,"1,435.40",Revenue,02/03/2015,Childrens
WC54-0843,REDACTED,Third Party Payments,Private Contractor Fees,74006-HOLIDAY/CHRISTMAS ALLOWANCE-FOSTER CARERS-OTH AGENCY PROVISION,"1,619.45",Revenue,30/03/2015,Childrens
WC54-0844,CALDMORE AREA HOUSING ASS LTD,Third Party Payments,Private Contractor Fees,73373-RESIDENTIAL & NURSING CARE PLACEMENTS,265.43,Revenue,25/03/2015,Social Care & Inclusion
WC54-0845,CALDMORE AREA HOUSING ASS LTD,Third Party Payments,Private Contractor Fees,73374-SUPPORTED & OTHER ACCOMMODATION,288.4,Revenue,12/03/2015,Social Care & Inclusion
WC54-0846,CALDMORE AREA HOUSING ASS LTD,Third Party Payments,Private Contractor Fees,73373-RESIDENTIAL & NURSING CARE PLACEMENTS,353.9,Revenue,17/03/2015,Social Care & Inclusion
WC54-0847,CALDMORE AREA HOUSING ASS LTD,Third Party Payments,Private Contractor Fees,73373-RESIDENTIAL & NURSING CARE PLACEMENTS,442.38,Revenue,25/03/2015,Social Care & Inclusion
WC54-0848,CALDMORE AREA HOUSING ASS LTD,Third Party Payments,Private Contractor Fees,73374-SUPPORTED & OTHER ACCOMMODATION,576.8,Revenue,12/03/2015,Social Care & Inclusion
WC54-0849,CALDMORE AREA HOUSING ASS LTD,Third Party Payments,Private Contractor Fees,73374-SUPPORTED & OTHER ACCOMMODATION,576.8,Revenue,12/03/2015,Social Care & Inclusion
WC54-0850,CALDMORE AREA HOUSING ASS LTD,Third Party Payments,Private Contractor Fees,73374-SUPPORTED & OTHER ACCOMMODATION,576.8,Revenue,12/03/2015,Social Care & Inclusion
WC54-0851,CALDMORE AREA HOUSING ASS LTD,Third Party Payments,Private Contractor Fees,73374-SUPPORTED & OTHER ACCOMMODATION,576.8,Revenue,12/03/2015,Social Care & Inclusion
WC54-0852,CALDMORE AREA HOUSING ASS LTD,Third Party Payments,Private Contractor Fees,73374-SUPPORTED & OTHER ACCOMMODATION,576.8,Revenue,12/03/2015,Social Care & Inclusion
WC54-0853,CALDMORE AREA HOUSING ASS LTD,Third Party Payments,Private Contractor Fees,73374-SUPPORTED & OTHER ACCOMMODATION,576.8,Revenue,12/03/2015,Social Care & Inclusion
WC54-0854,CALDMORE AREA HOUSING ASS LTD,Third Party Payments,Private Contractor Fees,73374-SUPPORTED & OTHER ACCOMMODATION,576.8,Revenue,12/03/2015,Social Care & Inclusion
WC54-0855,CALDMORE AREA HOUSING ASS LTD,Third Party Payments,Private Contractor Fees,73374-SUPPORTED & OTHER ACCOMMODATION,576.8,Revenue,12/03/2015,Social Care & Inclusion
WC54-0856,CALDMORE AREA HOUSING ASS LTD,Third Party Payments,Private Contractor Fees,73374-SUPPORTED & OTHER ACCOMMODATION,576.8,Revenue,12/03/2015,Social Care & Inclusion
WC54-0857,CALDMORE AREA HOUSING ASS LTD,Third Party Payments,Private Contractor Fees,73373-RESIDENTIAL & NURSING CARE PLACEMENTS,619.33,Revenue,25/03/2015,Social Care & Inclusion
WC54-0858,CALDMORE AREA HOUSING ASS LTD,Third Party Payments,Private Contractor Fees,73373-RESIDENTIAL & NURSING CARE PLACEMENTS,796.28,Revenue,25/03/2015,Social Care & Inclusion
WC54-0859,CALDMORE AREA HOUSING ASS LTD,Third Party Payments,Private Contractor Fees,73373-RESIDENTIAL & NURSING CARE PLACEMENTS,"1,592.56",Revenue,17/03/2015,Social Care & Inclusion
WC54-0860,CALDMORE AREA HOUSING ASS LTD,Third Party Payments,Private Contractor Fees,73373-RESIDENTIAL & NURSING CARE PLACEMENTS,"2,123.42",Revenue,17/03/2015,Social Care & Inclusion
WC54-0861,CALDMORE AREA HOUSING ASS LTD,Third Party Payments,Private Contractor Fees,73373-RESIDENTIAL & NURSING CARE PLACEMENTS,"2,477.32",Revenue,17/03/2015,Social Care & Inclusion
WC54-0862,CALDMORE AREA HOUSING ASS LTD,Third Party Payments,Private Contractor Fees,73373-RESIDENTIAL & NURSING CARE PLACEMENTS,"2,477.32",Revenue,17/03/2015,Social Care & Inclusion
WC54-0863,CALDMORE AREA HOUSING ASS LTD,Third Party Payments,Private Contractor Fees,73373-RESIDENTIAL & NURSING CARE PLACEMENTS,"2,477.32",Revenue,17/03/2015,Social Care & Inclusion
WC54-0864,CALDMORE AREA HOUSING ASS LTD,Third Party Payments,Private Contractor Fees,73373-RESIDENTIAL & NURSING CARE PLACEMENTS,"2,477.32",Revenue,17/03/2015,Social Care & Inclusion
WC54-0865,CALDMORE AREA HOUSING ASS LTD,Third Party Payments,Private Contractor Fees,73373-RESIDENTIAL & NURSING CARE PLACEMENTS,"2,477.32",Revenue,17/03/2015,Social Care & Inclusion
WC54-0866,CALDMORE AREA HOUSING ASS LTD,Third Party Payments,Private Contractor Fees,73373-RESIDENTIAL & NURSING CARE PLACEMENTS,"2,477.32",Revenue,17/03/2015,Social Care & Inclusion
WC54-0867,CALDMORE AREA HOUSING ASS LTD,Third Party Payments,Private Contractor Fees,73373-RESIDENTIAL & NURSING CARE PLACEMENTS,"2,477.32",Revenue,17/03/2015,Social Care & Inclusion
WC54-0868,CALDMORE AREA HOUSING ASS LTD,Third Party Payments,Private Contractor Fees,73373-RESIDENTIAL & NURSING CARE PLACEMENTS,"2,477.32",Revenue,17/03/2015,Social Care & Inclusion
WC54-0869,CALDMORE AREA HOUSING ASS LTD,Third Party Payments,Private Contractor Fees,73373-RESIDENTIAL & NURSING CARE PLACEMENTS,"2,477.32",Revenue,17/03/2015,Social Care & Inclusion
WC54-0870,CALDMORE AREA HOUSING ASS LTD,Third Party Payments,Private Contractor Fees,73373-RESIDENTIAL & NURSING CARE PLACEMENTS,"2,477.32",Revenue,25/03/2015,Social Care & Inclusion
WC54-0871,CALDMORE AREA HOUSING ASS LTD,Third Party Payments,Private Contractor Fees,73373-RESIDENTIAL & NURSING CARE PLACEMENTS,"3,096.65",Revenue,25/03/2015,Social Care & Inclusion
WC54-0872,REDACTED,Third Party Payments,Private Contractor Fees,74006-HOLIDAY/CHRISTMAS ALLOWANCE-FOSTER CARERS-OTH AGENCY PROVISION,373.6,Revenue,16/03/2015,Childrens
WC54-0873,REDACTED,Transfer Payments,Transfer Payments,76422-DIRECT PAYMENTS TO SOCIAL SERVICES CLIENTS,359.63,Revenue,18/03/2015,Childrens
WC54-0874,CAMBIAN CHILDCARE LIMITED,Transfer Payments,Transfer Payments,77300-ISB-FORMULA ALLOCATION,900,Revenue,18/03/2015,Childrens
WC54-0875,CAMBIAN CHILDCARE LIMITED,Third Party Payments,Private Contractor Fees,74036-EXTERNAL RESIDENTIAL CARE-OTH AGENCY PROVISION,"2,399.88",Revenue,04/03/2015,Childrens
WC54-0876,CAMBIAN CHILDCARE LIMITED,Third Party Payments,Private Contractor Fees,74036-EXTERNAL RESIDENTIAL CARE-OTH AGENCY PROVISION,"2,657.01",Revenue,31/03/2015,Childrens
WC54-0877,CAMBIAN CHILDCARE LIMITED,Third Party Payments,Private Contractor Fees,74037-INDEPENDENT FOSTER CARE-OTH AGENCY PROVISION,"2,802.80",Revenue,31/03/2015,Childrens
WC54-0878,CAMBIAN CHILDCARE LIMITED,Third Party Payments,Private Contractor Fees,74037-INDEPENDENT FOSTER CARE-OTH AGENCY PROVISION,"3,036.32",Revenue,31/03/2015,Childrens
WC54-0879,CAMBIAN CHILDCARE LIMITED,Third Party Payments,Private Contractor Fees,74036-EXTERNAL RESIDENTIAL CARE-OTH AGENCY PROVISION,"12,951.96",Revenue,04/03/2015,Childrens
WC54-0880,CAMBIAN CHILDCARE LIMITED,Third Party Payments,Private Contractor Fees,74036-EXTERNAL RESIDENTIAL CARE-OTH AGENCY PROVISION,"14,339.67",Revenue,31/03/2015,Childrens
WC54-0881,CAMBIAN LEARNING DISABILITES MIDLANDS LIMITED,Third Party Payments,Private Contractor Fees,73375-IN PATIENT BEDS,"10,908.90",Revenue,01/03/2015,Social Care & Inclusion
WC54-0882,CAMBRIDGE ENVIRONMENTAL RESEARCH CONSULTANTS LTD,Supplies & Services,Communications & Computing,63820-RECHARGE FOR MAINTENANCE/APPLICATION COSTS-COMPUTER,"1,800.00",Revenue,31/03/2015,Resources
WC54-0883,CAMERA ONE LIMITED,Third Party Payments,Private Contractor Fees,73025-PROFESSIONAL SERVICES-PRIV CONTRACTOR & OTHER AGENCIES,465,Revenue,12/03/2015,Neighbourhood Services
WC54-0884,CAMERA ONE LIMITED,Supplies & Services,"Equip,Furniture & Materials",60006-NEW-FURNITURE & EQUIPMENT,625,Revenue,02/03/2015,Neighbourhood Services
WC54-0885,CAMERON FORECOURT LTD,Third Party Payments,Private Contractor Fees,73025-PROFESSIONAL SERVICES-PRIV CONTRACTOR & OTHER AGENCIES,"2,606.00",Revenue,19/03/2015,Neighbourhood Services
WC54-0886,REDACTED,Supplies & Services,Communications & Computing,68001-PUBLICITY & ADVERTISING (NOT STAFF ADVERTISING),600,Revenue,25/03/2015,Neighbourhood Services
WC54-0887,CANNOCK CHASE HIGH SCHOOL,Transfer Payments,Transfer Payments,77300-ISB-FORMULA ALLOCATION,890,Revenue,18/03/2015,Childrens
WC54-0888,CAPELAND LIMITED,Supplies & Services,"Equip,Furniture & Materials",60006-NEW-FURNITURE & EQUIPMENT,"9,884.20",Revenue,12/03/2015,Neighbourhood Services
WC54-0889,CAPITA BUSINESS SERVICES LTD 001,Supplies & Services,Communications & Computing,63820-RECHARGE FOR MAINTENANCE/APPLICATION COSTS-COMPUTER,"16,923.82",Revenue,25/03/2015,Resources
WC54-0890,CAPITA CHILDREN'S SERVICES,Employees,Training,30030-EXTERNAL TRAINING,250,Revenue,09/03/2015,Childrens
WC54-0891,CAPITA CHILDREN'S SERVICES,Supplies & Services,Other Supplies & Services,63114-OTHER FEES & LICENCES-SERVICES-FEES,"106,375.52",Revenue,25/03/2015,Childrens
WC54-0892,CAPITA IT SERVICES (BSF) LIMITED,Supplies & Services,Communications & Computing,63800-COMPUTER EQUIPMENT AND SUPPLIES,691.68,Revenue,01/03/2015,Childrens
WC54-0893,CAPITA TREASURY SOLUTIONS LIMITED,Supplies & Services,"Equip,Furniture & Materials",60000-FURNITURE & EQUIPMENT,500,Revenue,25/03/2015,Neighbourhood Services
WC54-0894,CAPITA TREASURY SOLUTIONS LIMITED,Supplies & Services,Services,63000-PROFESSIONAL FEES AND SERVICES,"4,375.00",Revenue,03/03/2015,Capital Financing
WC54-0895,CAPITAL HAIR & BEAUTY LTD,Supplies & Services,Other Supplies & Services,63115-HIRE OF ROOM (duplicate please use 63128)-SERVICES-FEES,800,Revenue,18/03/2015,Neighbourhood Services
WC54-0896,CAPSTONE FOSTER CARE (SOUTH EAST) LIMITED,Third Party Payments,Private Contractor Fees,74037-INDEPENDENT FOSTER CARE-OTH AGENCY PROVISION,"2,770.65",Revenue,10/03/2015,Childrens
WC54-0897,CAPSTONE FOSTER CARE (SOUTH EAST) LIMITED,Third Party Payments,Private Contractor Fees,74037-INDEPENDENT FOSTER CARE-OTH AGENCY PROVISION,"2,770.65",Revenue,10/03/2015,Childrens
WC54-0898,CAPSTONE FOSTER CARE (SOUTH EAST) LIMITED,Third Party Payments,Private Contractor Fees,74037-INDEPENDENT FOSTER CARE-OTH AGENCY PROVISION,"3,259.34",Revenue,10/03/2015,Childrens
WC54-0899,CAPSTONE FOSTER CARE (SOUTH EAST) LIMITED,Third Party Payments,Private Contractor Fees,74037-INDEPENDENT FOSTER CARE-OTH AGENCY PROVISION,"3,780.10",Revenue,10/03/2015,Childrens
WC54-0900,CARE 2 U LIMITED,Third Party Payments,Private Contractor Fees,73372-DOMICILIARY CARE,"41,487.43",Revenue,02/03/2015,Social Care & Inclusion
WC54-0901,CARE AVENUES LTD,Third Party Payments,Private Contractor Fees,73372-DOMICILIARY CARE,"1,050.40",Revenue,03/03/2015,Social Care & Inclusion
WC54-0902,CARE AVENUES LTD,Third Party Payments,Private Contractor Fees,73372-DOMICILIARY CARE,"5,453.54",Revenue,02/03/2015,Social Care & Inclusion
WC54-0903,CARE AVENUES LTD,Third Party Payments,Private Contractor Fees,73372-DOMICILIARY CARE,"5,875.29",Revenue,31/03/2015,Social Care & Inclusion
WC54-0904,CARE AVENUES LTD,Third Party Payments,Private Contractor Fees,73372-DOMICILIARY CARE,"5,952.21",Revenue,02/03/2015,Social Care & Inclusion
WC54-0905,CARE FIRST CARE HOMES LTD,Third Party Payments,Private Contractor Fees,73373-RESIDENTIAL & NURSING CARE PLACEMENTS,266.79,Revenue,25/03/2015,Social Care & Inclusion
WC54-0906,CARE FIRST CARE HOMES LTD,Third Party Payments,Private Contractor Fees,73373-RESIDENTIAL & NURSING CARE PLACEMENTS,746.9,Revenue,27/03/2015,Social Care & Inclusion
WC54-0907,CARE FIRST MANAGEMENT SERVICES LTD,Third Party Payments,Private Contractor Fees,73372-DOMICILIARY CARE,780,Revenue,26/03/2015,Social Care & Inclusion
WC54-0908,CARE LEAVERS,Supplies & Services,Other Supplies & Services,64002-OTHER EXPENSES-EXPENSES,50,Revenue,20/03/2015,Childrens
WC54-0909,CARE LEAVERS,Supplies & Services,Other Supplies & Services,63114-OTHER FEES & LICENCES-SERVICES-FEES,72.5,Revenue,27/03/2015,Childrens
WC54-0910,CARE LEAVERS,Supplies & Services,Other Supplies & Services,63114-OTHER FEES & LICENCES-SERVICES-FEES,86.25,Revenue,05/03/2015,Childrens
WC54-0911,CARE LEAVERS,Supplies & Services,Other Supplies & Services,64002-OTHER EXPENSES-EXPENSES,255.75,Revenue,27/03/2015,Childrens
WC54-0912,CARE LEAVERS,Supplies & Services,Other Supplies & Services,64002-OTHER EXPENSES-EXPENSES,587.18,Revenue,05/03/2015,Childrens
WC54-0913,CARE LEAVERS,Supplies & Services,Other Supplies & Services,64002-OTHER EXPENSES-EXPENSES,652.73,Revenue,18/03/2015,Childrens
WC54-0914,CARE LEAVERS,Transfer Payments,Transfer Payments,76400-RESIDENTS PERSONAL EXPENSES-ALLOWANCES TO S/S CLIENTS,658.2,Revenue,18/03/2015,Childrens
WC54-0915,CARE LEAVERS,Third Party Payments,Private Contractor Fees,74500-CARE LEAVERS MTCE PAYMENTS,"1,195.00",Revenue,18/03/2015,Childrens
WC54-0916,CARE LEAVERS,Transfer Payments,Transfer Payments,76010-ACCOMMODATION AND RELATED COSTS-ASSISTANCE TO S/S CLIENTS,"1,280.08",Revenue,27/03/2015,Childrens
WC54-0917,CARE LEAVERS,Third Party Payments,Private Contractor Fees,74500-CARE LEAVERS MTCE PAYMENTS,"1,641.61",Revenue,27/03/2015,Childrens
WC54-0918,CARE LEAVERS,Transfer Payments,Transfer Payments,76400-RESIDENTS PERSONAL EXPENSES-ALLOWANCES TO S/S CLIENTS,"2,675.71",Revenue,20/03/2015,Childrens
WC54-0919,CARE LEAVERS,Transfer Payments,Transfer Payments,76400-RESIDENTS PERSONAL EXPENSES-ALLOWANCES TO S/S CLIENTS,"2,760.95",Revenue,27/03/2015,Childrens
WC54-0920,CARE LEAVERS,Third Party Payments,Private Contractor Fees,74500-CARE LEAVERS MTCE PAYMENTS,"2,798.99",Revenue,05/03/2015,Childrens
WC54-0921,CARE LEAVERS,Transfer Payments,Transfer Payments,76400-RESIDENTS PERSONAL EXPENSES-ALLOWANCES TO S/S CLIENTS,"2,949.41",Revenue,05/03/2015,Childrens
WC54-0922,CARE LEAVERS,Transfer Payments,Transfer Payments,76010-ACCOMMODATION AND RELATED COSTS-ASSISTANCE TO S/S CLIENTS,"3,243.66",Revenue,05/03/2015,Childrens
WC54-0923,CARE LEAVERS,Transfer Payments,Transfer Payments,76000-TRANSFER PAYMENTS - SOCIAL SERVICES CLIENTS,"4,713.20",Revenue,20/03/2015,Childrens
WC54-0924,CARE LEAVERS,Transfer Payments,Transfer Payments,76000-TRANSFER PAYMENTS - SOCIAL SERVICES CLIENTS,"5,167.20",Revenue,05/03/2015,Childrens
WC54-0925,CARE LEAVERS,Transfer Payments,Transfer Payments,76010-ACCOMMODATION AND RELATED COSTS-ASSISTANCE TO S/S CLIENTS,"11,139.15",Revenue,20/03/2015,Childrens
WC54-0926,CARE LEAVERS,Transfer Payments,Transfer Payments,76000-TRANSFER PAYMENTS - SOCIAL SERVICES CLIENTS,"11,325.34",Revenue,27/03/2015,Childrens
WC54-0927,CARE LEAVERS,Transfer Payments,Transfer Payments,76010-ACCOMMODATION AND RELATED COSTS-ASSISTANCE TO S/S CLIENTS,"11,383.77",Revenue,18/03/2015,Childrens
WC54-0928,CARE MONITORING 2000 LTD,Supplies & Services,Communications & Computing,63800-COMPUTER EQUIPMENT AND SUPPLIES,"14,122.70",Revenue,25/03/2015,Resources
WC54-0929,CARE QUALITY COMMISSION,Third Party Payments,Private Contractor Fees,73025-PROFESSIONAL SERVICES-PRIV CONTRACTOR & OTHER AGENCIES,"6,600.00",Revenue,30/03/2015,Social Care & Inclusion
WC54-0930,CARE SHOP,Supplies & Services,"Equip,Furniture & Materials",60539-CLEANING MATERIALS,-901.84,Revenue,01/03/2015,Social Care & Inclusion
WC54-0931,CARE SHOP,Supplies & Services,"Equip,Furniture & Materials",60539-CLEANING MATERIALS,901.84,Revenue,05/03/2015,Social Care & Inclusion
WC54-0932,CARE4HEALTH LTD.,Third Party Payments,Private Contractor Fees,73019-PSE'S-PRIV CONTRACTOR FEES,293.25,Revenue,12/03/2015,Social Care & Inclusion
WC54-0933,CARE4HEALTH LTD.,Employees,Agency,34305-AGENCY STAFF-EMPLOYEES,748.95,Revenue,19/03/2015,Social Care & Inclusion
WC54-0934,CARE4HEALTH LTD.,Employees,Agency,34305-AGENCY STAFF-EMPLOYEES,970.95,Revenue,03/03/2015,Social Care & Inclusion
WC54-0935,CARE4HEALTH LTD.,Employees,Agency,34305-AGENCY STAFF-EMPLOYEES,"1,044.90",Revenue,09/03/2015,Social Care & Inclusion
WC54-0936,CARE4HEALTH LTD.,Employees,Agency,34305-AGENCY STAFF-EMPLOYEES,"1,046.25",Revenue,09/03/2015,Social Care & Inclusion
WC54-0937,CARE4HEALTH LTD.,Employees,Agency,34305-AGENCY STAFF-EMPLOYEES,"1,048.05",Revenue,09/03/2015,Social Care & Inclusion
WC54-0938,CARE4HEALTH LTD.,Employees,Agency,34305-AGENCY STAFF-EMPLOYEES,"1,048.95",Revenue,09/03/2015,Social Care & Inclusion
WC54-0939,CARE4HEALTH LTD.,Employees,Agency,34305-AGENCY STAFF-EMPLOYEES,"1,080.30",Revenue,19/03/2015,Social Care & Inclusion
WC54-0940,CARE4HEALTH LTD.,Employees,Agency,34305-AGENCY STAFF-EMPLOYEES,"1,305.90",Revenue,09/03/2015,Social Care & Inclusion
WC54-0941,CARE4HEALTH LTD.,Employees,Agency,34305-AGENCY STAFF-EMPLOYEES,"1,311.75",Revenue,09/03/2015,Social Care & Inclusion
WC54-0942,CARE4HEALTH LTD.,Third Party Payments,Private Contractor Fees,73019-PSE'S-PRIV CONTRACTOR FEES,"1,348.58",Revenue,24/03/2015,Social Care & Inclusion
WC54-0943,CARETECH COMMUNITY SERVICE,Third Party Payments,Private Contractor Fees,73374-SUPPORTED & OTHER ACCOMMODATION,"1,093.28",Revenue,17/03/2015,Social Care & Inclusion
WC54-0944,CARETECH COMMUNITY SERVICE,Third Party Payments,Private Contractor Fees,73374-SUPPORTED & OTHER ACCOMMODATION,"1,210.42",Revenue,17/03/2015,Social Care & Inclusion
WC54-0945,CARETECH COMMUNITY SERVICE,Third Party Payments,Private Contractor Fees,73374-SUPPORTED & OTHER ACCOMMODATION,"1,210.42",Revenue,31/03/2015,Social Care & Inclusion
WC54-0946,CARETECH COMMUNITY SERVICE,Third Party Payments,Private Contractor Fees,73374-SUPPORTED & OTHER ACCOMMODATION,"3,844.24",Revenue,16/03/2015,Social Care & Inclusion
WC54-0947,CARETECH COMMUNITY SERVICE,Third Party Payments,Private Contractor Fees,73374-SUPPORTED & OTHER ACCOMMODATION,"4,256.12",Revenue,17/03/2015,Social Care & Inclusion
WC54-0948,CARETECH COMMUNITY SERVICE,Third Party Payments,Private Contractor Fees,73374-SUPPORTED & OTHER ACCOMMODATION,"4,256.12",Revenue,30/03/2015,Social Care & Inclusion
WC54-0949,CARETECH COMMUNITY SERVICE,Third Party Payments,Private Contractor Fees,73374-SUPPORTED & OTHER ACCOMMODATION,"4,560.00",Revenue,16/03/2015,Social Care & Inclusion
WC54-0950,CARETECH COMMUNITY SERVICE,Third Party Payments,Private Contractor Fees,73374-SUPPORTED & OTHER ACCOMMODATION,"5,048.57",Revenue,13/03/2015,Social Care & Inclusion
WC54-0951,CARETECH COMMUNITY SERVICE,Third Party Payments,Private Contractor Fees,73374-SUPPORTED & OTHER ACCOMMODATION,"5,048.57",Revenue,30/03/2015,Social Care & Inclusion
WC54-0952,CARETOWER LTD,Supplies & Services,Communications & Computing,63820-RECHARGE FOR MAINTENANCE/APPLICATION COSTS-COMPUTER,"44,885.00",Revenue,04/03/2015,Resources
WC54-0953,CARILLION COMMUNICATIONS LIMITED,Supplies & Services,"Equip,Furniture & Materials",60006-NEW-FURNITURE & EQUIPMENT,784,Revenue,17/03/2015,Neighbourhood Services
WC54-0954,CARING CARE LIMITED,Third Party Payments,Private Contractor Fees,73372-DOMICILIARY CARE,"46,712.22",Revenue,02/03/2015,Social Care & Inclusion
WC54-0955,CARING HANDS LIMITED,Third Party Payments,Private Contractor Fees,73372-DOMICILIARY CARE,250,Revenue,17/03/2015,Social Care & Inclusion
WC54-0956,CARING HANDS LIMITED,Third Party Payments,Private Contractor Fees,73372-DOMICILIARY CARE,259,Revenue,17/03/2015,Social Care & Inclusion
WC54-0957,CARING HANDS LIMITED,Third Party Payments,Private Contractor Fees,73372-DOMICILIARY CARE,262,Revenue,17/03/2015,Social Care & Inclusion
WC54-0958,CARING HANDS LIMITED,Third Party Payments,Private Contractor Fees,73372-DOMICILIARY CARE,266,Revenue,19/03/2015,Social Care & Inclusion
WC54-0959,CARING HANDS LIMITED,Third Party Payments,Private Contractor Fees,73372-DOMICILIARY CARE,283,Revenue,17/03/2015,Social Care & Inclusion
WC54-0960,CARING HANDS LIMITED,Third Party Payments,Private Contractor Fees,73372-DOMICILIARY CARE,286.5,Revenue,17/03/2015,Social Care & Inclusion
WC54-0961,CARING HANDS LIMITED,Third Party Payments,Private Contractor Fees,73372-DOMICILIARY CARE,297.25,Revenue,10/03/2015,Social Care & Inclusion
WC54-0962,CARING HANDS LIMITED,Third Party Payments,Private Contractor Fees,73372-DOMICILIARY CARE,341,Revenue,17/03/2015,Social Care & Inclusion
WC54-0963,CARING HANDS LIMITED,Third Party Payments,Private Contractor Fees,73372-DOMICILIARY CARE,350,Revenue,11/03/2015,Social Care & Inclusion
WC54-0964,CARING HANDS LIMITED,Third Party Payments,Private Contractor Fees,73372-DOMICILIARY CARE,350,Revenue,17/03/2015,Social Care & Inclusion
WC54-0965,CARING HANDS LIMITED,Third Party Payments,Private Contractor Fees,73372-DOMICILIARY CARE,350,Revenue,17/03/2015,Social Care & Inclusion
WC54-0966,CARING HANDS LIMITED,Third Party Payments,Private Contractor Fees,73372-DOMICILIARY CARE,350,Revenue,18/03/2015,Social Care & Inclusion
WC54-0967,CARING HANDS LIMITED,Third Party Payments,Private Contractor Fees,73372-DOMICILIARY CARE,350,Revenue,19/03/2015,Social Care & Inclusion
WC54-0968,CARING HANDS LIMITED,Third Party Payments,Private Contractor Fees,73372-DOMICILIARY CARE,357.5,Revenue,19/03/2015,Social Care & Inclusion
WC54-0969,CARING HANDS LIMITED,Third Party Payments,Private Contractor Fees,73372-DOMICILIARY CARE,364,Revenue,17/03/2015,Social Care & Inclusion
WC54-0970,CARING HANDS LIMITED,Third Party Payments,Private Contractor Fees,73372-DOMICILIARY CARE,364,Revenue,17/03/2015,Social Care & Inclusion
WC54-0971,CARING HANDS LIMITED,Third Party Payments,Private Contractor Fees,73372-DOMICILIARY CARE,366,Revenue,17/03/2015,Social Care & Inclusion
WC54-0972,CARING HANDS LIMITED,Third Party Payments,Private Contractor Fees,73372-DOMICILIARY CARE,367.5,Revenue,18/03/2015,Social Care & Inclusion
WC54-0973,CARING HANDS LIMITED,Third Party Payments,Private Contractor Fees,73372-DOMICILIARY CARE,381.5,Revenue,18/03/2015,Social Care & Inclusion
WC54-0974,CARING HANDS LIMITED,Third Party Payments,Private Contractor Fees,73372-DOMICILIARY CARE,393,Revenue,17/03/2015,Social Care & Inclusion
WC54-0975,CARING HANDS LIMITED,Third Party Payments,Private Contractor Fees,73372-DOMICILIARY CARE,397.5,Revenue,17/03/2015,Social Care & Inclusion
WC54-0976,CARING HANDS LIMITED,Third Party Payments,Private Contractor Fees,73372-DOMICILIARY CARE,401.5,Revenue,10/03/2015,Social Care & Inclusion
WC54-0977,CARING HANDS LIMITED,Third Party Payments,Private Contractor Fees,73372-DOMICILIARY CARE,421,Revenue,17/03/2015,Social Care & Inclusion
WC54-0978,CARING HANDS LIMITED,Third Party Payments,Private Contractor Fees,73372-DOMICILIARY CARE,422,Revenue,03/03/2015,Social Care & Inclusion
WC54-0979,CARING HANDS LIMITED,Third Party Payments,Private Contractor Fees,73372-DOMICILIARY CARE,435.5,Revenue,19/03/2015,Social Care & Inclusion
WC54-0980,CARING HANDS LIMITED,Third Party Payments,Private Contractor Fees,73372-DOMICILIARY CARE,440.5,Revenue,17/03/2015,Social Care & Inclusion
WC54-0981,CARING HANDS LIMITED,Third Party Payments,Private Contractor Fees,73372-DOMICILIARY CARE,465,Revenue,17/03/2015,Social Care & Inclusion
WC54-0982,CARING HANDS LIMITED,Third Party Payments,Private Contractor Fees,73372-DOMICILIARY CARE,468.5,Revenue,17/03/2015,Social Care & Inclusion
WC54-0983,CARING HANDS LIMITED,Third Party Payments,Private Contractor Fees,73372-DOMICILIARY CARE,491.63,Revenue,24/03/2015,Social Care & Inclusion
WC54-0984,CARING HANDS LIMITED,Third Party Payments,Private Contractor Fees,73372-DOMICILIARY CARE,492.95,Revenue,24/03/2015,Social Care & Inclusion
WC54-0985,CARING HANDS LIMITED,Third Party Payments,Private Contractor Fees,73372-DOMICILIARY CARE,493.5,Revenue,11/03/2015,Social Care & Inclusion
WC54-0986,CARING HANDS LIMITED,Third Party Payments,Private Contractor Fees,73372-DOMICILIARY CARE,495.16,Revenue,24/03/2015,Social Care & Inclusion
WC54-0987,CARING HANDS LIMITED,Third Party Payments,Private Contractor Fees,73372-DOMICILIARY CARE,495.6,Revenue,24/03/2015,Social Care & Inclusion
WC54-0988,CARING HANDS LIMITED,Third Party Payments,Private Contractor Fees,73372-DOMICILIARY CARE,497.5,Revenue,19/03/2015,Social Care & Inclusion
WC54-0989,CARING HANDS LIMITED,Third Party Payments,Private Contractor Fees,73372-DOMICILIARY CARE,504.5,Revenue,10/03/2015,Social Care & Inclusion
WC54-0990,CARING HANDS LIMITED,Third Party Payments,Private Contractor Fees,73372-DOMICILIARY CARE,519,Revenue,17/03/2015,Social Care & Inclusion
WC54-0991,CARING HANDS LIMITED,Third Party Payments,Private Contractor Fees,73372-DOMICILIARY CARE,520,Revenue,24/03/2015,Social Care & Inclusion
WC54-0992,CARING HANDS LIMITED,Third Party Payments,Private Contractor Fees,73372-DOMICILIARY CARE,520.75,Revenue,18/03/2015,Social Care & Inclusion
WC54-0993,CARING HANDS LIMITED,Third Party Payments,Private Contractor Fees,73372-DOMICILIARY CARE,521,Revenue,17/03/2015,Social Care & Inclusion
WC54-0994,CARING HANDS LIMITED,Third Party Payments,Private Contractor Fees,73372-DOMICILIARY CARE,533.5,Revenue,18/03/2015,Social Care & Inclusion
WC54-0995,CARING HANDS LIMITED,Third Party Payments,Private Contractor Fees,73372-DOMICILIARY CARE,537,Revenue,17/03/2015,Social Care & Inclusion
WC54-0996,CARING HANDS LIMITED,Third Party Payments,Private Contractor Fees,73372-DOMICILIARY CARE,537.5,Revenue,17/03/2015,Social Care & Inclusion
WC54-0997,CARING HANDS LIMITED,Third Party Payments,Private Contractor Fees,73372-DOMICILIARY CARE,538.5,Revenue,10/03/2015,Social Care & Inclusion
WC54-0998,CARING HANDS LIMITED,Third Party Payments,Private Contractor Fees,73372-DOMICILIARY CARE,539,Revenue,18/03/2015,Social Care & Inclusion
WC54-0999,CARING HANDS LIMITED,Third Party Payments,Private Contractor Fees,73372-DOMICILIARY CARE,546,Revenue,10/03/2015,Social Care & Inclusion
WC54-1000,CARING HANDS LIMITED,Third Party Payments,Private Contractor Fees,73372-DOMICILIARY CARE,551,Revenue,10/03/2015,Social Care & Inclusion
WC54-1001,CARING HANDS LIMITED,Third Party Payments,Private Contractor Fees,73372-DOMICILIARY CARE,560.88,Revenue,17/03/2015,Social Care & Inclusion
WC54-1002,CARING HANDS LIMITED,Third Party Payments,Private Contractor Fees,73372-DOMICILIARY CARE,576.75,Revenue,17/03/2015,Social Care & Inclusion
WC54-1003,CARING HANDS LIMITED,Third Party Payments,Private Contractor Fees,73372-DOMICILIARY CARE,588,Revenue,10/03/2015,Social Care & Inclusion
WC54-1004,CARING HANDS LIMITED,Third Party Payments,Private Contractor Fees,73372-DOMICILIARY CARE,614,Revenue,03/03/2015,Social Care & Inclusion
WC54-1005,CARING HANDS LIMITED,Third Party Payments,Private Contractor Fees,73372-DOMICILIARY CARE,614.58,Revenue,24/03/2015,Social Care & Inclusion
WC54-1006,CARING HANDS LIMITED,Third Party Payments,Private Contractor Fees,73372-DOMICILIARY CARE,618.9,Revenue,24/03/2015,Social Care & Inclusion
WC54-1007,CARING HANDS LIMITED,Third Party Payments,Private Contractor Fees,73372-DOMICILIARY CARE,629,Revenue,18/03/2015,Social Care & Inclusion
WC54-1008,CARING HANDS LIMITED,Third Party Payments,Private Contractor Fees,73372-DOMICILIARY CARE,633.5,Revenue,19/03/2015,Social Care & Inclusion
WC54-1009,CARING HANDS LIMITED,Third Party Payments,Private Contractor Fees,73372-DOMICILIARY CARE,634.5,Revenue,17/03/2015,Social Care & Inclusion
WC54-1010,CARING HANDS LIMITED,Third Party Payments,Private Contractor Fees,73372-DOMICILIARY CARE,639,Revenue,17/03/2015,Social Care & Inclusion
WC54-1011,CARING HANDS LIMITED,Third Party Payments,Private Contractor Fees,73372-DOMICILIARY CARE,640,Revenue,17/03/2015,Social Care & Inclusion
WC54-1012,CARING HANDS LIMITED,Third Party Payments,Private Contractor Fees,73372-DOMICILIARY CARE,643.5,Revenue,17/03/2015,Social Care & Inclusion
WC54-1013,CARING HANDS LIMITED,Third Party Payments,Private Contractor Fees,73372-DOMICILIARY CARE,648.5,Revenue,17/03/2015,Social Care & Inclusion
WC54-1014,CARING HANDS LIMITED,Third Party Payments,Private Contractor Fees,73372-DOMICILIARY CARE,651,Revenue,17/03/2015,Social Care & Inclusion
WC54-1015,CARING HANDS LIMITED,Third Party Payments,Private Contractor Fees,73372-DOMICILIARY CARE,653,Revenue,10/03/2015,Social Care & Inclusion
WC54-1016,CARING HANDS LIMITED,Third Party Payments,Private Contractor Fees,73372-DOMICILIARY CARE,657,Revenue,17/03/2015,Social Care & Inclusion
WC54-1017,CARING HANDS LIMITED,Third Party Payments,Private Contractor Fees,73372-DOMICILIARY CARE,660.03,Revenue,24/03/2015,Social Care & Inclusion
WC54-1018,CARING HANDS LIMITED,Third Party Payments,Private Contractor Fees,73372-DOMICILIARY CARE,682,Revenue,17/03/2015,Social Care & Inclusion
WC54-1019,CARING HANDS LIMITED,Third Party Payments,Private Contractor Fees,73372-DOMICILIARY CARE,688,Revenue,19/03/2015,Social Care & Inclusion
WC54-1020,CARING HANDS LIMITED,Third Party Payments,Private Contractor Fees,73372-DOMICILIARY CARE,691,Revenue,17/03/2015,Social Care & Inclusion
WC54-1021,CARING HANDS LIMITED,Third Party Payments,Private Contractor Fees,73372-DOMICILIARY CARE,694,Revenue,18/03/2015,Social Care & Inclusion
WC54-1022,CARING HANDS LIMITED,Third Party Payments,Private Contractor Fees,73372-DOMICILIARY CARE,696.5,Revenue,18/03/2015,Social Care & Inclusion
WC54-1023,CARING HANDS LIMITED,Third Party Payments,Private Contractor Fees,73372-DOMICILIARY CARE,704,Revenue,18/03/2015,Social Care & Inclusion
WC54-1024,CARING HANDS LIMITED,Third Party Payments,Private Contractor Fees,73372-DOMICILIARY CARE,719,Revenue,11/03/2015,Social Care & Inclusion
WC54-1025,CARING HANDS LIMITED,Third Party Payments,Private Contractor Fees,73372-DOMICILIARY CARE,721,Revenue,17/03/2015,Social Care & Inclusion
WC54-1026,CARING HANDS LIMITED,Third Party Payments,Private Contractor Fees,73372-DOMICILIARY CARE,724,Revenue,17/03/2015,Social Care & Inclusion
WC54-1027,CARING HANDS LIMITED,Third Party Payments,Private Contractor Fees,73372-DOMICILIARY CARE,728,Revenue,17/03/2015,Social Care & Inclusion
WC54-1028,CARING HANDS LIMITED,Third Party Payments,Private Contractor Fees,73372-DOMICILIARY CARE,730.5,Revenue,19/03/2015,Social Care & Inclusion
WC54-1029,CARING HANDS LIMITED,Third Party Payments,Private Contractor Fees,73372-DOMICILIARY CARE,732.5,Revenue,17/03/2015,Social Care & Inclusion
WC54-1030,CARING HANDS LIMITED,Third Party Payments,Private Contractor Fees,73372-DOMICILIARY CARE,736,Revenue,17/03/2015,Social Care & Inclusion
WC54-1031,CARING HANDS LIMITED,Third Party Payments,Private Contractor Fees,73372-DOMICILIARY CARE,738,Revenue,17/03/2015,Social Care & Inclusion
WC54-1032,CARING HANDS LIMITED,Third Party Payments,Private Contractor Fees,73372-DOMICILIARY CARE,739.5,Revenue,11/03/2015,Social Care & Inclusion
WC54-1033,CARING HANDS LIMITED,Third Party Payments,Private Contractor Fees,73372-DOMICILIARY CARE,747.5,Revenue,19/03/2015,Social Care & Inclusion
WC54-1034,CARING HANDS LIMITED,Third Party Payments,Private Contractor Fees,73372-DOMICILIARY CARE,760,Revenue,10/03/2015,Social Care & Inclusion
WC54-1035,CARING HANDS LIMITED,Third Party Payments,Private Contractor Fees,73372-DOMICILIARY CARE,763.5,Revenue,19/03/2015,Social Care & Inclusion
WC54-1036,CARING HANDS LIMITED,Third Party Payments,Private Contractor Fees,73372-DOMICILIARY CARE,768,Revenue,17/03/2015,Social Care & Inclusion
WC54-1037,CARING HANDS LIMITED,Third Party Payments,Private Contractor Fees,73372-DOMICILIARY CARE,773.5,Revenue,10/03/2015,Social Care & Inclusion
WC54-1038,CARING HANDS LIMITED,Third Party Payments,Private Contractor Fees,73372-DOMICILIARY CARE,782.5,Revenue,17/03/2015,Social Care & Inclusion
WC54-1039,CARING HANDS LIMITED,Third Party Payments,Private Contractor Fees,73372-DOMICILIARY CARE,783.5,Revenue,17/03/2015,Social Care & Inclusion
WC54-1040,CARING HANDS LIMITED,Third Party Payments,Private Contractor Fees,73372-DOMICILIARY CARE,794.25,Revenue,17/03/2015,Social Care & Inclusion
WC54-1041,CARING HANDS LIMITED,Third Party Payments,Private Contractor Fees,73372-DOMICILIARY CARE,800,Revenue,19/03/2015,Social Care & Inclusion
WC54-1042,CARING HANDS LIMITED,Third Party Payments,Private Contractor Fees,73372-DOMICILIARY CARE,807,Revenue,18/03/2015,Social Care & Inclusion
WC54-1043,CARING HANDS LIMITED,Third Party Payments,Private Contractor Fees,73372-DOMICILIARY CARE,819.25,Revenue,19/03/2015,Social Care & Inclusion
WC54-1044,CARING HANDS LIMITED,Third Party Payments,Private Contractor Fees,73372-DOMICILIARY CARE,824.5,Revenue,10/03/2015,Social Care & Inclusion
WC54-1045,CARING HANDS LIMITED,Third Party Payments,Private Contractor Fees,73372-DOMICILIARY CARE,837,Revenue,10/03/2015,Social Care & Inclusion
WC54-1046,CARING HANDS LIMITED,Third Party Payments,Private Contractor Fees,73372-DOMICILIARY CARE,854.5,Revenue,17/03/2015,Social Care & Inclusion
WC54-1047,CARING HANDS LIMITED,Third Party Payments,Private Contractor Fees,73372-DOMICILIARY CARE,858.5,Revenue,18/03/2015,Social Care & Inclusion
WC54-1048,CARING HANDS LIMITED,Third Party Payments,Private Contractor Fees,73372-DOMICILIARY CARE,865,Revenue,17/03/2015,Social Care & Inclusion
WC54-1049,CARING HANDS LIMITED,Third Party Payments,Private Contractor Fees,73372-DOMICILIARY CARE,867.5,Revenue,17/03/2015,Social Care & Inclusion
WC54-1050,CARING HANDS LIMITED,Third Party Payments,Private Contractor Fees,73372-DOMICILIARY CARE,890,Revenue,19/03/2015,Social Care & Inclusion
WC54-1051,CARING HANDS LIMITED,Third Party Payments,Private Contractor Fees,73372-DOMICILIARY CARE,896.5,Revenue,19/03/2015,Social Care & Inclusion
WC54-1052,CARING HANDS LIMITED,Third Party Payments,Private Contractor Fees,73372-DOMICILIARY CARE,904.25,Revenue,17/03/2015,Social Care & Inclusion
WC54-1053,CARING HANDS LIMITED,Third Party Payments,Private Contractor Fees,73372-DOMICILIARY CARE,921,Revenue,17/03/2015,Social Care & Inclusion
WC54-1054,CARING HANDS LIMITED,Third Party Payments,Private Contractor Fees,73372-DOMICILIARY CARE,963.25,Revenue,11/03/2015,Social Care & Inclusion
WC54-1055,CARING HANDS LIMITED,Third Party Payments,Private Contractor Fees,73372-DOMICILIARY CARE,974,Revenue,17/03/2015,Social Care & Inclusion
WC54-1056,CARING HANDS LIMITED,Third Party Payments,Private Contractor Fees,73372-DOMICILIARY CARE,"1,073.00",Revenue,17/03/2015,Social Care & Inclusion
WC54-1057,CARING HANDS LIMITED,Third Party Payments,Private Contractor Fees,73372-DOMICILIARY CARE,"1,077.00",Revenue,18/03/2015,Social Care & Inclusion
WC54-1058,CARING HANDS LIMITED,Third Party Payments,Private Contractor Fees,73372-DOMICILIARY CARE,"1,080.00",Revenue,10/03/2015,Social Care & Inclusion
WC54-1059,CARING HANDS LIMITED,Third Party Payments,Private Contractor Fees,73372-DOMICILIARY CARE,"1,086.00",Revenue,19/03/2015,Social Care & Inclusion
WC54-1060,CARING HANDS LIMITED,Third Party Payments,Private Contractor Fees,73372-DOMICILIARY CARE,"1,092.00",Revenue,03/03/2015,Social Care & Inclusion
WC54-1061,CARING HANDS LIMITED,Third Party Payments,Private Contractor Fees,73372-DOMICILIARY CARE,"1,099.00",Revenue,17/03/2015,Social Care & Inclusion
WC54-1062,CARING HANDS LIMITED,Third Party Payments,Private Contractor Fees,73372-DOMICILIARY CARE,"1,129.00",Revenue,17/03/2015,Social Care & Inclusion
WC54-1063,CARING HANDS LIMITED,Third Party Payments,Private Contractor Fees,73372-DOMICILIARY CARE,"1,136.50",Revenue,17/03/2015,Social Care & Inclusion
WC54-1064,CARING HANDS LIMITED,Third Party Payments,Private Contractor Fees,73372-DOMICILIARY CARE,"1,139.50",Revenue,19/03/2015,Social Care & Inclusion
WC54-1065,CARING HANDS LIMITED,Third Party Payments,Private Contractor Fees,73372-DOMICILIARY CARE,"1,197.00",Revenue,19/03/2015,Social Care & Inclusion
WC54-1066,CARING HANDS LIMITED,Third Party Payments,Private Contractor Fees,73372-DOMICILIARY CARE,"1,253.00",Revenue,11/03/2015,Social Care & Inclusion
WC54-1067,CARING HANDS LIMITED,Third Party Payments,Private Contractor Fees,73372-DOMICILIARY CARE,"1,277.00",Revenue,17/03/2015,Social Care & Inclusion
WC54-1068,CARING HANDS LIMITED,Third Party Payments,Private Contractor Fees,73372-DOMICILIARY CARE,"1,290.00",Revenue,17/03/2015,Social Care & Inclusion
WC54-1069,CARING HANDS LIMITED,Third Party Payments,Private Contractor Fees,73372-DOMICILIARY CARE,"1,300.00",Revenue,19/03/2015,Social Care & Inclusion
WC54-1070,CARING HANDS LIMITED,Third Party Payments,Private Contractor Fees,73372-DOMICILIARY CARE,"1,423.00",Revenue,17/03/2015,Social Care & Inclusion
WC54-1071,CARING HANDS LIMITED,Third Party Payments,Private Contractor Fees,73372-DOMICILIARY CARE,"1,459.00",Revenue,10/03/2015,Social Care & Inclusion
WC54-1072,CARING HANDS LIMITED,Third Party Payments,Private Contractor Fees,73372-DOMICILIARY CARE,"1,462.50",Revenue,18/03/2015,Social Care & Inclusion
WC54-1073,CARING HANDS LIMITED,Third Party Payments,Private Contractor Fees,73372-DOMICILIARY CARE,"1,470.00",Revenue,17/03/2015,Social Care & Inclusion
WC54-1074,CARING HANDS LIMITED,Third Party Payments,Private Contractor Fees,73372-DOMICILIARY CARE,"1,472.50",Revenue,18/03/2015,Social Care & Inclusion
WC54-1075,CARING HANDS LIMITED,Third Party Payments,Private Contractor Fees,73372-DOMICILIARY CARE,"1,478.13",Revenue,17/03/2015,Social Care & Inclusion
WC54-1076,CARING HANDS LIMITED,Third Party Payments,Private Contractor Fees,73372-DOMICILIARY CARE,"1,491.50",Revenue,10/03/2015,Social Care & Inclusion
WC54-1077,CARING HANDS LIMITED,Third Party Payments,Private Contractor Fees,73372-DOMICILIARY CARE,"1,518.50",Revenue,17/03/2015,Social Care & Inclusion
WC54-1078,CARING HANDS LIMITED,Third Party Payments,Private Contractor Fees,73374-SUPPORTED & OTHER ACCOMMODATION,"1,532.13",Revenue,18/03/2015,Social Care & Inclusion
WC54-1079,CARING HANDS LIMITED,Third Party Payments,Private Contractor Fees,73372-DOMICILIARY CARE,"1,567.50",Revenue,17/03/2015,Social Care & Inclusion
WC54-1080,CARING HANDS LIMITED,Third Party Payments,Private Contractor Fees,73372-DOMICILIARY CARE,"1,568.00",Revenue,19/03/2015,Social Care & Inclusion
WC54-1081,CARING HANDS LIMITED,Third Party Payments,Private Contractor Fees,73372-DOMICILIARY CARE,"1,595.50",Revenue,17/03/2015,Social Care & Inclusion
WC54-1082,CARING HANDS LIMITED,Third Party Payments,Private Contractor Fees,73372-DOMICILIARY CARE,"1,601.50",Revenue,17/03/2015,Social Care & Inclusion
WC54-1083,CARING HANDS LIMITED,Third Party Payments,Private Contractor Fees,73372-DOMICILIARY CARE,"1,611.00",Revenue,17/03/2015,Social Care & Inclusion
WC54-1084,CARING HANDS LIMITED,Third Party Payments,Private Contractor Fees,73372-DOMICILIARY CARE,"1,612.50",Revenue,17/03/2015,Social Care & Inclusion
WC54-1085,CARING HANDS LIMITED,Third Party Payments,Private Contractor Fees,73372-DOMICILIARY CARE,"1,613.50",Revenue,11/03/2015,Social Care & Inclusion
WC54-1086,CARING HANDS LIMITED,Third Party Payments,Private Contractor Fees,73374-SUPPORTED & OTHER ACCOMMODATION,"1,618.00",Revenue,18/03/2015,Social Care & Inclusion
WC54-1087,CARING HANDS LIMITED,Third Party Payments,Private Contractor Fees,73372-DOMICILIARY CARE,"1,622.00",Revenue,18/03/2015,Social Care & Inclusion
WC54-1088,CARING HANDS LIMITED,Third Party Payments,Private Contractor Fees,73372-DOMICILIARY CARE,"1,622.50",Revenue,17/03/2015,Social Care & Inclusion
WC54-1089,CARING HANDS LIMITED,Third Party Payments,Private Contractor Fees,73372-DOMICILIARY CARE,"1,623.00",Revenue,11/03/2015,Social Care & Inclusion
WC54-1090,CARING HANDS LIMITED,Third Party Payments,Private Contractor Fees,73372-DOMICILIARY CARE,"1,624.00",Revenue,17/03/2015,Social Care & Inclusion
WC54-1091,CARING HANDS LIMITED,Third Party Payments,Private Contractor Fees,73372-DOMICILIARY CARE,"1,627.00",Revenue,10/03/2015,Social Care & Inclusion
WC54-1092,CARING HANDS LIMITED,Third Party Payments,Private Contractor Fees,73372-DOMICILIARY CARE,"1,664.25",Revenue,10/03/2015,Social Care & Inclusion
WC54-1093,CARING HANDS LIMITED,Third Party Payments,Private Contractor Fees,73372-DOMICILIARY CARE,"1,666.50",Revenue,03/03/2015,Social Care & Inclusion
WC54-1094,CARING HANDS LIMITED,Third Party Payments,Private Contractor Fees,73372-DOMICILIARY CARE,"1,701.00",Revenue,18/03/2015,Social Care & Inclusion
WC54-1095,CARING HANDS LIMITED,Third Party Payments,Private Contractor Fees,73372-DOMICILIARY CARE,"1,703.00",Revenue,17/03/2015,Social Care & Inclusion
WC54-1096,CARING HANDS LIMITED,Third Party Payments,Private Contractor Fees,73372-DOMICILIARY CARE,"1,720.50",Revenue,10/03/2015,Social Care & Inclusion
WC54-1097,CARING HANDS LIMITED,Third Party Payments,Private Contractor Fees,73372-DOMICILIARY CARE,"1,729.50",Revenue,17/03/2015,Social Care & Inclusion
WC54-1098,CARING HANDS LIMITED,Third Party Payments,Private Contractor Fees,73372-DOMICILIARY CARE,"1,741.00",Revenue,19/03/2015,Social Care & Inclusion
WC54-1099,CARING HANDS LIMITED,Third Party Payments,Private Contractor Fees,73372-DOMICILIARY CARE,"1,772.00",Revenue,17/03/2015,Social Care & Inclusion
WC54-1100,CARING HANDS LIMITED,Third Party Payments,Private Contractor Fees,73372-DOMICILIARY CARE,"1,780.00",Revenue,17/03/2015,Social Care & Inclusion
WC54-1101,CARING HANDS LIMITED,Third Party Payments,Private Contractor Fees,73372-DOMICILIARY CARE,"1,815.50",Revenue,17/03/2015,Social Care & Inclusion
WC54-1102,CARING HANDS LIMITED,Third Party Payments,Private Contractor Fees,73372-DOMICILIARY CARE,"2,032.75",Revenue,17/03/2015,Social Care & Inclusion
WC54-1103,CARING HANDS LIMITED,Third Party Payments,Private Contractor Fees,73372-DOMICILIARY CARE,"2,035.63",Revenue,18/03/2015,Social Care & Inclusion
WC54-1104,CARING HANDS LIMITED,Third Party Payments,Private Contractor Fees,73372-DOMICILIARY CARE,"2,205.50",Revenue,11/03/2015,Social Care & Inclusion
WC54-1105,CARING HANDS LIMITED,Third Party Payments,Private Contractor Fees,73372-DOMICILIARY CARE,"2,229.00",Revenue,11/03/2015,Social Care & Inclusion
WC54-1106,CARING HANDS LIMITED,Third Party Payments,Private Contractor Fees,73372-DOMICILIARY CARE,"7,253.16",Revenue,02/03/2015,Social Care & Inclusion
WC54-1107,CARING HANDS LIMITED,Third Party Payments,Private Contractor Fees,73372-DOMICILIARY CARE,"7,272.77",Revenue,02/03/2015,Social Care & Inclusion
WC54-1108,CARING HANDS LIMITED,Third Party Payments,Private Contractor Fees,73372-DOMICILIARY CARE,"7,311.86",Revenue,02/03/2015,Social Care & Inclusion
WC54-1109,CARING HANDS LIMITED,Third Party Payments,Private Contractor Fees,73372-DOMICILIARY CARE,"50,210.39",Revenue,02/03/2015,Social Care & Inclusion
WC54-1110,REDACTED,Third Party Payments,Private Contractor Fees,73374-SUPPORTED & OTHER ACCOMMODATION,451.63,Revenue,18/03/2015,Social Care & Inclusion
WC54-1111,REDACTED,Third Party Payments,Private Contractor Fees,73374-SUPPORTED & OTHER ACCOMMODATION,"4,912.20",Revenue,19/03/2015,Social Care & Inclusion
WC54-1112,REDACTED,Transfer Payments,Transfer Payments,76422-DIRECT PAYMENTS TO SOCIAL SERVICES CLIENTS,562.5,Revenue,18/03/2015,Social Care & Inclusion
WC54-1113,REDACTED,Third Party Payments,Private Contractor Fees,74006-HOLIDAY/CHRISTMAS ALLOWANCE-FOSTER CARERS-OTH AGENCY PROVISION,462.47,Revenue,30/03/2015,Childrens
WC54-1114,REDACTED,Supplies & Services,Other Supplies & Services,62515-MISCELLANEOUS SUPPLIES,533.96,Revenue,02/03/2015,Childrens
WC54-1115,REDACTED,Supplies & Services,Other Supplies & Services,62515-MISCELLANEOUS SUPPLIES,535.07,Revenue,30/03/2015,Childrens
WC54-1116,CARTER SYNERGY LTD,Premises,Premises-Repairs & Maintenance,40015-ALARM CALL OUTS-OP MTCE,743.19,Revenue,01/03/2015,Neighbourhood Services
WC54-1117,CARTER SYNERGY LTD,Supplies & Services,Services,63000-PROFESSIONAL FEES AND SERVICES,"1,045.00",Revenue,01/03/2015,Neighbourhood Services
WC54-1118,CARTER SYNERGY LTD,Premises,Premises-Repairs & Maintenance,40011-SECURITY SYSTEM-OP MTCE,"8,337.28",Revenue,19/03/2015,Neighbourhood Services
WC54-1119,CARTER SYNERGY LTD,Premises,Premises-Repairs & Maintenance,40216-OTHER-PLAN MTCE,"9,939.41",Revenue,04/03/2015,Neighbourhood Services
WC54-1120,CASHFRIDAY,Third Party Payments,Private Contractor Fees,73372-DOMICILIARY CARE,420,Revenue,01/03/2015,Social Care & Inclusion
WC54-1121,CASTLE BROMWICH JUNIOR SCHOOL,Transfer Payments,Transfer Payments,77300-ISB-FORMULA ALLOCATION,"1,000.00",Revenue,31/03/2015,Childrens
WC54-1122,CASTLE GROUP LIMITED,Employees,Training,30030-EXTERNAL TRAINING,"2,177.00",Revenue,12/03/2015,Neighbourhood Services
WC54-1123,CATCHER MEDIA,Supplies & Services,Subscriptions,64500-PUBLICATIONS/ORGANISATIONS-SUBSCRIPTIONS,250,Revenue,24/03/2015,Childrens
WC54-1124,REDACTED,Third Party Payments,Private Contractor Fees,73014-LEGAL FEES-PRIV CONTRACTOR FEES,388.62,Revenue,30/03/2015,Childrens
WC54-1125,REDACTED,Third Party Payments,Private Contractor Fees,73014-LEGAL FEES-PRIV CONTRACTOR FEES,"6,625.00",Revenue,30/03/2015,Childrens
WC54-1126,REDACTED,Transfer Payments,Transfer Payments,76422-DIRECT PAYMENTS TO SOCIAL SERVICES CLIENTS,778.35,Revenue,18/03/2015,Social Care & Inclusion
WC54-1127,REDACTED,Transfer Payments,Transfer Payments,76422-DIRECT PAYMENTS TO SOCIAL SERVICES CLIENTS,863.1,Revenue,18/03/2015,Social Care & Inclusion
WC54-1128,REDACTED,Third Party Payments,Private Contractor Fees,74006-HOLIDAY/CHRISTMAS ALLOWANCE-FOSTER CARERS-OTH AGENCY PROVISION,417.56,Revenue,16/03/2015,Childrens
WC54-1129,REDACTED,Transfer Payments,Transfer Payments,76422-DIRECT PAYMENTS TO SOCIAL SERVICES CLIENTS,485.5,Revenue,18/03/2015,Social Care & Inclusion
WC54-1130,REDACTED,Transfer Payments,Transfer Payments,76422-DIRECT PAYMENTS TO SOCIAL SERVICES CLIENTS,"1,267.83",Revenue,18/03/2015,Childrens
WC54-1131,REDACTED,Third Party Payments,Private Contractor Fees,74006-HOLIDAY/CHRISTMAS ALLOWANCE-FOSTER CARERS-OTH AGENCY PROVISION,417.56,Revenue,16/03/2015,Childrens
WC54-1132,CE RISK SAFETY AND SECURITY LTD,Third Party Payments,Private Contractor Fees,73002-SECURITY-PRIV CONTRACTOR FEES,324.8,Revenue,25/03/2015,Regeneration
WC54-1133,CE RISK SAFETY AND SECURITY LTD,Third Party Payments,Private Contractor Fees,73002-SECURITY-PRIV CONTRACTOR FEES,334.95,Revenue,25/03/2015,Regeneration
WC54-1134,CEDER LODGE NURSING HOME,Third Party Payments,Private Contractor Fees,73373-RESIDENTIAL & NURSING CARE PLACEMENTS,"2,140.29",Revenue,10/03/2015,Social Care & Inclusion
WC54-1135,CENGAGE LEARNING SERVICES,Supplies & Services,"Equip,Furniture & Materials",60501-LIBRARY BOOKS,"5,649.00",Revenue,26/03/2015,Neighbourhood Services
WC54-1136,CENTRAL INSULATION & ENVIRONM,Premises,Premises-Repairs & Maintenance,"40000-REPAIRS,ALTERATIONS & MAINTENANCE-PREM",515,Revenue,11/03/2015,Regeneration
WC54-1137,CENTRO WMPTA,Transport,Other Transport,53101-OTHER/VOLUNTEERS-PUBLIC TRANSPORT,"2,200.00",Revenue,16/03/2015,Social Care & Inclusion
WC54-1138,REDACTED,Third Party Payments,Private Contractor Fees,74006-HOLIDAY/CHRISTMAS ALLOWANCE-FOSTER CARERS-OTH AGENCY PROVISION,561.32,Revenue,16/03/2015,Childrens
WC54-1139,CERTAS ENERGY UK LIMITED,Transport,Other Transport,50301-FUEL-TRANSPORT RUN COSTS,461.9,Revenue,11/03/2015,Neighbourhood Services
WC54-1140,CERTAS ENERGY UK LIMITED,Transport,Other Transport,50301-FUEL-TRANSPORT RUN COSTS,"1,342.65",Revenue,03/03/2015,Neighbourhood Services
WC54-1141,CERTAS ENERGY UK LIMITED,Transport,Other Transport,50301-FUEL-TRANSPORT RUN COSTS,"1,400.70",Revenue,30/03/2015,Neighbourhood Services
WC54-1142,CERTAS ENERGY UK LIMITED,Transport,Other Transport,50301-FUEL-TRANSPORT RUN COSTS,"13,890.00",Revenue,18/03/2015,Neighbourhood Services
WC54-1143,CERTAS ENERGY UK LIMITED,Transport,Other Transport,50301-FUEL-TRANSPORT RUN COSTS,"17,238.27",Revenue,03/03/2015,Neighbourhood Services
WC54-1144,CERTAS ENERGY UK LIMITED,Transport,Other Transport,50301-FUEL-TRANSPORT RUN COSTS,"18,013.32",Revenue,04/03/2015,Neighbourhood Services
WC54-1145,CERTAS ENERGY UK LIMITED,Transport,Other Transport,50301-FUEL-TRANSPORT RUN COSTS,"18,545.85",Revenue,25/03/2015,Neighbourhood Services
WC54-1146,CF ASSET FINANCE LIMITED,Supplies & Services,"Equip,Furniture & Materials",60009-LEASING/HIRE/RENTAL-EQUIPMENT,254.64,Revenue,02/03/2015,Resources
WC54-1147,CF ASSET FINANCE LIMITED,Supplies & Services,"Equip,Furniture & Materials",60009-LEASING/HIRE/RENTAL-EQUIPMENT,272.86,Revenue,24/03/2015,Childrens
WC54-1148,CF ASSET FINANCE LIMITED,Supplies & Services,"Equip,Furniture & Materials",60009-LEASING/HIRE/RENTAL-EQUIPMENT,272.86,Revenue,24/03/2015,Childrens
WC54-1149,CF ASSET FINANCE LIMITED,Supplies & Services,"Equip,Furniture & Materials",60009-LEASING/HIRE/RENTAL-EQUIPMENT,309.7,Revenue,02/03/2015,Resources
WC54-1150,CF ASSET FINANCE LIMITED,Supplies & Services,"Equip,Furniture & Materials",60009-LEASING/HIRE/RENTAL-EQUIPMENT,323.94,Revenue,31/03/2015,Neighbourhood Services
WC54-1151,CF ASSET FINANCE LIMITED,Supplies & Services,Other Supplies & Services,64008-OUTINGS-EXPENSES,330.8,Revenue,09/03/2015,Social Care & Inclusion
WC54-1152,CF CORPORATE FINANCE LTD,Supplies & Services,"Equip,Furniture & Materials",60009-LEASING/HIRE/RENTAL-EQUIPMENT,442.4,Revenue,30/03/2015,Childrens
WC54-1153,CFT FOSTERING LIMITED,Third Party Payments,Private Contractor Fees,74037-INDEPENDENT FOSTER CARE-OTH AGENCY PROVISION,"5,850.32",Revenue,10/03/2015,Childrens
WC54-1154,CHANDOS LODGE CARE HOME,Third Party Payments,Private Contractor Fees,73373-RESIDENTIAL & NURSING CARE PLACEMENTS,"1,632.00",Revenue,10/03/2015,Social Care & Inclusion
WC54-1155,CHANGE AGENCY AND ASSOCIATES LTD T/A CHANGE AGENCY,Employees,Training,30030-EXTERNAL TRAINING,800,Revenue,30/03/2015,Childrens
WC54-1156,REDACTED,Transfer Payments,Transfer Payments,76422-DIRECT PAYMENTS TO SOCIAL SERVICES CLIENTS,935,Revenue,18/03/2015,Social Care & Inclusion
WC54-1157,REDACTED,Third Party Payments,Private Contractor Fees,74006-HOLIDAY/CHRISTMAS ALLOWANCE-FOSTER CARERS-OTH AGENCY PROVISION,748.05,Revenue,16/03/2015,Childrens
WC54-1158,CHARLIE CATERPILLAR'S DAY NURSERY,Employees,Agency,34305-AGENCY STAFF-EMPLOYEES,522.2,Revenue,30/03/2015,Childrens
WC54-1159,CHARLIE CATERPILLAR'S DAY NURSERY,Employees,Agency,34305-AGENCY STAFF-EMPLOYEES,607.24,Revenue,16/03/2015,Childrens
WC54-1160,CHARLIE CATERPILLAR'S DAY NURSERY,Employees,Agency,34305-AGENCY STAFF-EMPLOYEES,"1,821.73",Revenue,12/03/2015,Childrens
WC54-1161,CHARLIE CATERPILLAR'S DAY NURSERY,Third Party Payments,Grants to Other Orgs,66505-OTHER-GRANTS TO OTHER ORGS,"9,990.27",Revenue,17/03/2015,Childrens
WC54-1162,CHARLIE CATERPILLAR'S DAY NURSERY,Third Party Payments,Grants to Other Orgs,66505-OTHER-GRANTS TO OTHER ORGS,"10,025.61",Revenue,11/03/2015,Childrens
WC54-1163,REDACTED,Transfer Payments,Transfer Payments,76422-DIRECT PAYMENTS TO SOCIAL SERVICES CLIENTS,323.7,Revenue,18/03/2015,Childrens
WC54-1164,CHARMEND LTD,Third Party Payments,Private Contractor Fees,73373-RESIDENTIAL & NURSING CARE PLACEMENTS,"2,140.28",Revenue,10/03/2015,Social Care & Inclusion
WC54-1165,CHARMEND LTD,Third Party Payments,Private Contractor Fees,73373-RESIDENTIAL & NURSING CARE PLACEMENTS,"2,145.16",Revenue,10/03/2015,Social Care & Inclusion
WC54-1166,CHARTER CARE,Third Party Payments,Private Contractor Fees,73372-DOMICILIARY CARE,"39,153.71",Revenue,02/03/2015,Social Care & Inclusion
WC54-1167,CHARTERED INSTITUTE OF ECOLOGY & ENVIROMENTAL MANAGEMENT,Employees,Training,30030-EXTERNAL TRAINING,375,Revenue,23/03/2015,Regeneration
WC54-1168,CHASE HOUSE AND PARTNER,Third Party Payments,Private Contractor Fees,73373-RESIDENTIAL & NURSING CARE PLACEMENTS,"4,445.68",Revenue,27/03/2015,Social Care & Inclusion
WC54-1169,CHASE HOUSE AND PARTNER,Third Party Payments,Private Contractor Fees,73373-RESIDENTIAL & NURSING CARE PLACEMENTS,"4,455.44",Revenue,27/03/2015,Social Care & Inclusion
WC54-1170,CHASE HOUSE AND PARTNER,Third Party Payments,Private Contractor Fees,73373-RESIDENTIAL & NURSING CARE PLACEMENTS,"4,562.48",Revenue,27/03/2015,Social Care & Inclusion
WC54-1171,CHASE HOUSE AND PARTNER,Third Party Payments,Private Contractor Fees,73373-RESIDENTIAL & NURSING CARE PLACEMENTS,"4,753.76",Revenue,27/03/2015,Social Care & Inclusion
WC54-1172,CHASEVIEW CARE HOME,Third Party Payments,Private Contractor Fees,73373-RESIDENTIAL & NURSING CARE PLACEMENTS,"1,654.07",Revenue,10/03/2015,Social Care & Inclusion
WC54-1173,CHECKPRINT LTD,Supplies & Services,Communications & Computing,63820-RECHARGE FOR MAINTENANCE/APPLICATION COSTS-COMPUTER,918.73,Revenue,19/03/2015,Resources
WC54-1174,CHEEKY MONKEY CHILDMINDING - LOUISE LAKE,Third Party Payments,Grants to Other Orgs,66505-OTHER-GRANTS TO OTHER ORGS,"1,433.00",Revenue,11/03/2015,Childrens
WC54-1175,CHEMTECH WASTE MANAGEMENT LTD,Third Party Payments,Private Contractor Fees,73029-HAZARDOUS WASTE REMOVAL/DISPOSAL-PRIV CONTRACTOR FEES,450,Revenue,31/03/2015,Neighbourhood Services
WC54-1176,CHERISH HOME CARE,Third Party Payments,Private Contractor Fees,73372-DOMICILIARY CARE,286.47,Revenue,19/03/2015,Social Care & Inclusion
WC54-1177,CHERISH HOME CARE,Third Party Payments,Private Contractor Fees,73372-DOMICILIARY CARE,297.08,Revenue,19/03/2015,Social Care & Inclusion
WC54-1178,CHERISH HOME CARE,Third Party Payments,Private Contractor Fees,73372-DOMICILIARY CARE,297.08,Revenue,31/03/2015,Social Care & Inclusion
WC54-1179,CHERISH HOME CARE,Third Party Payments,Private Contractor Fees,73372-DOMICILIARY CARE,352.98,Revenue,19/03/2015,Social Care & Inclusion
WC54-1180,CHERISH HOME CARE,Third Party Payments,Private Contractor Fees,73372-DOMICILIARY CARE,578.79,Revenue,31/03/2015,Social Care & Inclusion
WC54-1181,CHERISH HOME CARE,Third Party Payments,Private Contractor Fees,73372-DOMICILIARY CARE,743.12,Revenue,31/03/2015,Social Care & Inclusion
WC54-1182,REDACTED,Transfer Payments,Transfer Payments,76422-DIRECT PAYMENTS TO SOCIAL SERVICES CLIENTS,250,Revenue,18/03/2015,Social Care & Inclusion
WC54-1183,REDACTED,Third Party Payments,Grants to Other Orgs,66505-OTHER-GRANTS TO OTHER ORGS,264.06,Revenue,17/03/2015,Childrens
WC54-1184,CHEVIN FLEET SOLUTIONS LTD,Supplies & Services,Communications & Computing,63820-RECHARGE FOR MAINTENANCE/APPLICATION COSTS-COMPUTER,"1,425.00",Revenue,25/03/2015,Resources
WC54-1185,REDACTED,Transfer Payments,Transfer Payments,76422-DIRECT PAYMENTS TO SOCIAL SERVICES CLIENTS,"2,002.00",Revenue,18/03/2015,Social Care & Inclusion
WC54-1186,CHILDCARE BUREAU LTD,Third Party Payments,Private Contractor Fees,74037-INDEPENDENT FOSTER CARE-OTH AGENCY PROVISION,"3,733.52",Revenue,16/03/2015,Childrens
WC54-1187,CHILDCARE BUREAU LTD,Third Party Payments,Private Contractor Fees,74037-INDEPENDENT FOSTER CARE-OTH AGENCY PROVISION,"6,939.80",Revenue,16/03/2015,Childrens
WC54-1188,CHILDLINK,Supplies & Services,Other Supplies & Services,63128-HIRE OF ROOM-SERVICES-FEES,2.53,Revenue,16/03/2015,Childrens
WC54-1189,CHILDLINK,Supplies & Services,Other Supplies & Services,63128-HIRE OF ROOM-SERVICES-FEES,2.53,Revenue,16/03/2015,Childrens
WC54-1190,CHILDLINK,Supplies & Services,Other Supplies & Services,63128-HIRE OF ROOM-SERVICES-FEES,2.64,Revenue,02/03/2015,Childrens
WC54-1191,CHILDLINK,Transport,Car Allowances,53001-OTHER/VOLUNTEERS-CAR ALLOWANCES,10.3,Revenue,24/03/2015,Childrens
WC54-1192,CHILDLINK,Transfer Payments,Transfer Payments,76408-OUTINGS-ALLOWANCES TO S/S CLIENTS,10.91,Revenue,01/03/2015,Childrens
WC54-1193,CHILDLINK,Transfer Payments,Transfer Payments,76408-OUTINGS-ALLOWANCES TO S/S CLIENTS,21.12,Revenue,02/03/2015,Childrens
WC54-1194,CHILDLINK,Transport,Car Allowances,53003-OTHER-TRAVEL ALLOWANCES,21.4,Revenue,01/03/2015,Childrens
WC54-1195,CHILDLINK,Transport,Car Allowances,53003-OTHER-TRAVEL ALLOWANCES,21.7,Revenue,16/03/2015,Childrens
WC54-1196,CHILDLINK,Transport,Car Allowances,53001-OTHER/VOLUNTEERS-CAR ALLOWANCES,22.6,Revenue,16/03/2015,Childrens
WC54-1197,CHILDLINK,Transport,Car Allowances,53001-OTHER/VOLUNTEERS-CAR ALLOWANCES,24.51,Revenue,24/03/2015,Childrens
WC54-1198,CHILDLINK,Third Party Payments,Private Contractor Fees,76003-SECTION 34 (CONTACT),24.8,Revenue,01/03/2015,Childrens
WC54-1199,CHILDLINK,Supplies & Services,Other Supplies & Services,63128-HIRE OF ROOM-SERVICES-FEES,25.39,Revenue,02/03/2015,Childrens
WC54-1200,CHILDLINK,Transport,Car Allowances,53001-OTHER/VOLUNTEERS-CAR ALLOWANCES,29.72,Revenue,24/03/2015,Childrens
WC54-1201,CHILDLINK,Transport,Car Allowances,53003-OTHER-TRAVEL ALLOWANCES,32.84,Revenue,24/03/2015,Childrens
WC54-1202,CHILDLINK,Transport,Car Allowances,53001-OTHER/VOLUNTEERS-CAR ALLOWANCES,34.11,Revenue,16/03/2015,Childrens
WC54-1203,CHILDLINK,Third Party Payments,Private Contractor Fees,76003-SECTION 34 (CONTACT),34.21,Revenue,24/03/2015,Childrens
WC54-1204,CHILDLINK,Transport,Car Allowances,53001-OTHER/VOLUNTEERS-CAR ALLOWANCES,34.45,Revenue,24/03/2015,Childrens
WC54-1205,CHILDLINK,Transport,Car Allowances,53003-OTHER-TRAVEL ALLOWANCES,34.46,Revenue,16/03/2015,Childrens
WC54-1206,CHILDLINK,Transport,Car Allowances,53003-OTHER-TRAVEL ALLOWANCES,34.81,Revenue,24/03/2015,Childrens
WC54-1207,CHILDLINK,Transport,Car Allowances,53001-OTHER/VOLUNTEERS-CAR ALLOWANCES,34.88,Revenue,03/03/2015,Childrens
WC54-1208,CHILDLINK,Transport,Car Allowances,53001-OTHER/VOLUNTEERS-CAR ALLOWANCES,34.88,Revenue,16/03/2015,Childrens
WC54-1209,CHILDLINK,Transport,Car Allowances,53003-OTHER-TRAVEL ALLOWANCES,35.24,Revenue,03/03/2015,Childrens
WC54-1210,CHILDLINK,Transport,Car Allowances,53003-OTHER-TRAVEL ALLOWANCES,35.24,Revenue,16/03/2015,Childrens
WC54-1211,CHILDLINK,Supplies & Services,Other Supplies & Services,63128-HIRE OF ROOM-SERVICES-FEES,36.62,Revenue,24/03/2015,Childrens
WC54-1212,CHILDLINK,Transfer Payments,Transfer Payments,76408-OUTINGS-ALLOWANCES TO S/S CLIENTS,37.77,Revenue,16/03/2015,Childrens
WC54-1213,CHILDLINK,Transfer Payments,Transfer Payments,76408-OUTINGS-ALLOWANCES TO S/S CLIENTS,37.77,Revenue,24/03/2015,Childrens
WC54-1214,CHILDLINK,Transfer Payments,Transfer Payments,76408-OUTINGS-ALLOWANCES TO S/S CLIENTS,37.77,Revenue,24/03/2015,Childrens
WC54-1215,CHILDLINK,Supplies & Services,Other Supplies & Services,63128-HIRE OF ROOM-SERVICES-FEES,43.81,Revenue,03/03/2015,Childrens
WC54-1216,CHILDLINK,Supplies & Services,Other Supplies & Services,63128-HIRE OF ROOM-SERVICES-FEES,43.81,Revenue,16/03/2015,Childrens
WC54-1217,CHILDLINK,Supplies & Services,Other Supplies & Services,63128-HIRE OF ROOM-SERVICES-FEES,44.22,Revenue,16/03/2015,Childrens
WC54-1218,CHILDLINK,Supplies & Services,Other Supplies & Services,63128-HIRE OF ROOM-SERVICES-FEES,45.82,Revenue,24/03/2015,Childrens
WC54-1219,CHILDLINK,Transport,Car Allowances,53001-OTHER/VOLUNTEERS-CAR ALLOWANCES,60.21,Revenue,16/03/2015,Childrens
WC54-1220,CHILDLINK,Transport,Car Allowances,53001-OTHER/VOLUNTEERS-CAR ALLOWANCES,60.21,Revenue,16/03/2015,Childrens
WC54-1221,CHILDLINK,Transport,Car Allowances,53001-OTHER/VOLUNTEERS-CAR ALLOWANCES,61.85,Revenue,01/03/2015,Childrens
WC54-1222,CHILDLINK,Transport,Car Allowances,53001-OTHER/VOLUNTEERS-CAR ALLOWANCES,62.66,Revenue,02/03/2015,Childrens
WC54-1223,CHILDLINK,Transport,Car Allowances,53001-OTHER/VOLUNTEERS-CAR ALLOWANCES,69.56,Revenue,16/03/2015,Childrens
WC54-1224,CHILDLINK,Supplies & Services,Other Supplies & Services,63128-HIRE OF ROOM-SERVICES-FEES,73.38,Revenue,30/03/2015,Childrens
WC54-1225,CHILDLINK,Transport,Car Allowances,53003-OTHER-TRAVEL ALLOWANCES,78.14,Revenue,24/03/2015,Childrens
WC54-1226,CHILDLINK,Transport,Car Allowances,53003-OTHER-TRAVEL ALLOWANCES,78.59,Revenue,01/03/2015,Childrens
WC54-1227,CHILDLINK,Third Party Payments,Private Contractor Fees,76003-SECTION 34 (CONTACT),81.4,Revenue,24/03/2015,Childrens
WC54-1228,CHILDLINK,Transport,Car Allowances,53001-OTHER/VOLUNTEERS-CAR ALLOWANCES,82.2,Revenue,24/03/2015,Childrens
WC54-1229,CHILDLINK,Third Party Payments,Private Contractor Fees,76003-SECTION 34 (CONTACT),83.61,Revenue,24/03/2015,Childrens
WC54-1230,CHILDLINK,Transport,Car Allowances,53001-OTHER/VOLUNTEERS-CAR ALLOWANCES,84.37,Revenue,16/03/2015,Childrens
WC54-1231,CHILDLINK,Third Party Payments,Private Contractor Fees,76003-SECTION 34 (CONTACT),85.16,Revenue,24/03/2015,Childrens
WC54-1232,CHILDLINK,Third Party Payments,Private Contractor Fees,76003-SECTION 34 (CONTACT),86.96,Revenue,16/03/2015,Childrens
WC54-1233,CHILDLINK,Transport,Car Allowances,53003-OTHER-TRAVEL ALLOWANCES,87.39,Revenue,24/03/2015,Childrens
WC54-1234,CHILDLINK,Third Party Payments,Private Contractor Fees,76003-SECTION 34 (CONTACT),92.42,Revenue,16/03/2015,Childrens
WC54-1235,CHILDLINK,Transport,Car Allowances,53003-OTHER-TRAVEL ALLOWANCES,94.75,Revenue,24/03/2015,Childrens
WC54-1236,CHILDLINK,Third Party Payments,Private Contractor Fees,76003-SECTION 34 (CONTACT),94.77,Revenue,02/03/2015,Childrens
WC54-1237,CHILDLINK,Third Party Payments,Private Contractor Fees,76003-SECTION 34 (CONTACT),94.77,Revenue,16/03/2015,Childrens
WC54-1238,CHILDLINK,Third Party Payments,Private Contractor Fees,76003-SECTION 34 (CONTACT),95.05,Revenue,02/03/2015,Childrens
WC54-1239,CHILDLINK,Transport,Car Allowances,53003-OTHER-TRAVEL ALLOWANCES,96.01,Revenue,16/03/2015,Childrens
WC54-1240,CHILDLINK,Transport,Car Allowances,53003-OTHER-TRAVEL ALLOWANCES,97.16,Revenue,02/03/2015,Childrens
WC54-1241,CHILDLINK,Third Party Payments,Private Contractor Fees,76003-SECTION 34 (CONTACT),98.7,Revenue,24/03/2015,Childrens
WC54-1242,CHILDLINK,Transport,Car Allowances,53001-OTHER/VOLUNTEERS-CAR ALLOWANCES,99.21,Revenue,16/03/2015,Childrens
WC54-1243,CHILDLINK,Transport,Car Allowances,53001-OTHER/VOLUNTEERS-CAR ALLOWANCES,99.75,Revenue,02/03/2015,Childrens
WC54-1244,CHILDLINK,Transport,Car Allowances,53001-OTHER/VOLUNTEERS-CAR ALLOWANCES,100.9,Revenue,02/03/2015,Childrens
WC54-1245,CHILDLINK,Supplies & Services,Other Supplies & Services,63128-HIRE OF ROOM-SERVICES-FEES,101.47,Revenue,02/03/2015,Childrens
WC54-1246,CHILDLINK,Supplies & Services,Other Supplies & Services,63128-HIRE OF ROOM-SERVICES-FEES,101.47,Revenue,16/03/2015,Childrens
WC54-1247,CHILDLINK,Supplies & Services,Other Supplies & Services,63128-HIRE OF ROOM-SERVICES-FEES,101.47,Revenue,16/03/2015,Childrens
WC54-1248,CHILDLINK,Transport,Car Allowances,53001-OTHER/VOLUNTEERS-CAR ALLOWANCES,101.73,Revenue,02/03/2015,Childrens
WC54-1249,CHILDLINK,Transport,Car Allowances,53001-OTHER/VOLUNTEERS-CAR ALLOWANCES,101.73,Revenue,16/03/2015,Childrens
WC54-1250,CHILDLINK,Transport,Car Allowances,53003-OTHER-TRAVEL ALLOWANCES,101.95,Revenue,16/03/2015,Childrens
WC54-1251,CHILDLINK,Transport,Car Allowances,53003-OTHER-TRAVEL ALLOWANCES,101.95,Revenue,16/03/2015,Childrens
WC54-1252,CHILDLINK,Transport,Car Allowances,53003-OTHER-TRAVEL ALLOWANCES,101.95,Revenue,24/03/2015,Childrens
WC54-1253,CHILDLINK,Transport,Car Allowances,53001-OTHER/VOLUNTEERS-CAR ALLOWANCES,103.53,Revenue,30/03/2015,Childrens
WC54-1254,CHILDLINK,Transport,Car Allowances,53001-OTHER/VOLUNTEERS-CAR ALLOWANCES,103.6,Revenue,02/03/2015,Childrens
WC54-1255,CHILDLINK,Transport,Car Allowances,53001-OTHER/VOLUNTEERS-CAR ALLOWANCES,103.6,Revenue,16/03/2015,Childrens
WC54-1256,CHILDLINK,Transport,Car Allowances,53001-OTHER/VOLUNTEERS-CAR ALLOWANCES,103.6,Revenue,16/03/2015,Childrens
WC54-1257,CHILDLINK,Transport,Car Allowances,53001-OTHER/VOLUNTEERS-CAR ALLOWANCES,104.66,Revenue,16/03/2015,Childrens
WC54-1258,CHILDLINK,Transport,Car Allowances,53001-OTHER/VOLUNTEERS-CAR ALLOWANCES,104.66,Revenue,16/03/2015,Childrens
WC54-1259,CHILDLINK,Transport,Car Allowances,53001-OTHER/VOLUNTEERS-CAR ALLOWANCES,104.66,Revenue,24/03/2015,Childrens
WC54-1260,CHILDLINK,Transport,Car Allowances,53001-OTHER/VOLUNTEERS-CAR ALLOWANCES,104.9,Revenue,02/03/2015,Childrens
WC54-1261,CHILDLINK,Transport,Car Allowances,53003-OTHER-TRAVEL ALLOWANCES,105.67,Revenue,02/03/2015,Childrens
WC54-1262,CHILDLINK,Transport,Car Allowances,53003-OTHER-TRAVEL ALLOWANCES,107.47,Revenue,02/03/2015,Childrens
WC54-1263,CHILDLINK,Transport,Car Allowances,53001-OTHER/VOLUNTEERS-CAR ALLOWANCES,108.49,Revenue,03/03/2015,Childrens
WC54-1264,CHILDLINK,Transport,Car Allowances,53001-OTHER/VOLUNTEERS-CAR ALLOWANCES,108.49,Revenue,16/03/2015,Childrens
WC54-1265,CHILDLINK,Transport,Car Allowances,53003-OTHER-TRAVEL ALLOWANCES,108.56,Revenue,02/03/2015,Childrens
WC54-1266,CHILDLINK,Transport,Car Allowances,53003-OTHER-TRAVEL ALLOWANCES,108.56,Revenue,16/03/2015,Childrens
WC54-1267,CHILDLINK,Transport,Car Allowances,53003-OTHER-TRAVEL ALLOWANCES,108.56,Revenue,16/03/2015,Childrens
WC54-1268,CHILDLINK,Third Party Payments,Private Contractor Fees,76003-SECTION 34 (CONTACT),108.57,Revenue,02/03/2015,Childrens
WC54-1269,CHILDLINK,Third Party Payments,Private Contractor Fees,76003-SECTION 34 (CONTACT),108.57,Revenue,16/03/2015,Childrens
WC54-1270,CHILDLINK,Third Party Payments,Private Contractor Fees,76003-SECTION 34 (CONTACT),108.57,Revenue,16/03/2015,Childrens
WC54-1271,CHILDLINK,Transport,Car Allowances,53001-OTHER/VOLUNTEERS-CAR ALLOWANCES,109.52,Revenue,16/03/2015,Childrens
WC54-1272,CHILDLINK,Third Party Payments,Private Contractor Fees,76003-SECTION 34 (CONTACT),109.57,Revenue,16/03/2015,Childrens
WC54-1273,CHILDLINK,Transport,Car Allowances,53001-OTHER/VOLUNTEERS-CAR ALLOWANCES,113.47,Revenue,24/03/2015,Childrens
WC54-1274,CHILDLINK,Transport,Car Allowances,53003-OTHER-TRAVEL ALLOWANCES,114.52,Revenue,16/03/2015,Childrens
WC54-1275,CHILDLINK,Transport,Car Allowances,53003-OTHER-TRAVEL ALLOWANCES,114.81,Revenue,02/03/2015,Childrens
WC54-1276,CHILDLINK,Transport,Car Allowances,53001-OTHER/VOLUNTEERS-CAR ALLOWANCES,115,Revenue,24/03/2015,Childrens
WC54-1277,CHILDLINK,Transport,Car Allowances,53003-OTHER-TRAVEL ALLOWANCES,115.84,Revenue,30/03/2015,Childrens
WC54-1278,CHILDLINK,Third Party Payments,Private Contractor Fees,76003-SECTION 34 (CONTACT),115.85,Revenue,30/03/2015,Childrens
WC54-1279,CHILDLINK,Third Party Payments,Private Contractor Fees,76003-SECTION 34 (CONTACT),117.18,Revenue,16/03/2015,Childrens
WC54-1280,CHILDLINK,Transport,Car Allowances,53003-OTHER-TRAVEL ALLOWANCES,119.36,Revenue,02/03/2015,Childrens
WC54-1281,CHILDLINK,Transport,Car Allowances,53003-OTHER-TRAVEL ALLOWANCES,121.68,Revenue,02/03/2015,Childrens
WC54-1282,CHILDLINK,Transport,Car Allowances,53003-OTHER-TRAVEL ALLOWANCES,122.47,Revenue,16/03/2015,Childrens
WC54-1283,CHILDLINK,Transport,Car Allowances,53003-OTHER-TRAVEL ALLOWANCES,122.77,Revenue,16/03/2015,Childrens
WC54-1284,CHILDLINK,Transport,Car Allowances,53001-OTHER/VOLUNTEERS-CAR ALLOWANCES,124.92,Revenue,02/03/2015,Childrens
WC54-1285,CHILDLINK,Transport,Car Allowances,53003-OTHER-TRAVEL ALLOWANCES,125.9,Revenue,02/03/2015,Childrens
WC54-1286,CHILDLINK,Transport,Car Allowances,53003-OTHER-TRAVEL ALLOWANCES,125.9,Revenue,16/03/2015,Childrens
WC54-1287,CHILDLINK,Third Party Payments,Private Contractor Fees,76003-SECTION 34 (CONTACT),144.26,Revenue,01/03/2015,Childrens
